Department family,Entity,Date,Expense type,Expense area,Supplier,Transaction number,Amount,Description
MOJ,LAA,01/05/2019,Civil Representation,LEGAL AID FUND,A & N CARE SOLICITORS,1696772:3000001314960032,"42,083.74",Legal Aid Civil Representation
MOJ,LAA,01/05/2019,Civil Representation,LEGAL AID FUND,A & N CARE SOLICITORS,1696772:3000002269310044,"29,046.22",Legal Aid Civil Representation
MOJ,LAA,01/05/2019,Higher Crime,LEGAL AID FUND,ABBEY SOLICITORS,1697758:152211831,"75,222.46",Legal Aid Higher Crime
MOJ,LAA,01/05/2019,Higher Crime,LEGAL AID FUND,ABBEY SOLICITORS,1697758:152263223,"41,215.85",Legal Aid Higher Crime
MOJ,LAA,01/05/2019,Lower Crime,LEGAL AID FUND,ABBEY SOLICITORS,1697758:152238194,"25,000.00",Legal Aid Lower Crime
MOJ,LAA,01/05/2019,Legal Help,LEGAL AID FUND,ABBOTSTONE LAW LLP,1696488:152237824,"71,449.00",Legal Aid Legal Help
MOJ,LAA,01/05/2019,Higher Crime,LEGAL AID FUND,ABDUL S IQBAL QC,1699356:152211620,"28,372.46",Legal Aid Higher Crime
MOJ,LAA,01/05/2019,Lower Crime,LEGAL AID FUND,ABR SOLICITORS,1700384:152238697,"34,521.00",Legal Aid Lower Crime
MOJ,LAA,01/05/2019,Higher Crime,LEGAL AID FUND,ABR SOLICITORS,1700384:152211254,"25,497.36",Legal Aid Higher Crime
MOJ,LAA,01/05/2019,Lower Crime,LEGAL AID FUND,ABV SOLICITORS,1697819:152238055,"67,600.00",Legal Aid Lower Crime
MOJ,LAA,01/05/2019,Higher Crime,LEGAL AID FUND,ADRIAN J FARROW,1696956:152221825,"36,360.00",Legal Aid Higher Crime
MOJ,LAA,01/05/2019,Higher Crime,LEGAL AID FUND,ADRIAN L REYNOLDS,1697196:152211101,"32,010.00",Legal Aid Higher Crime
MOJ,LAA,01/05/2019,Legal Help,LEGAL AID FUND,ALASTAIR BATEMAN & CO,1697910:152237235,"25,562.00",Legal Aid Legal Help
MOJ,LAA,01/05/2019,Lower Crime,LEGAL AID FUND,ALBIN & CO LTD,1696246:152239242,"54,546.00",Legal Aid Lower Crime
MOJ,LAA,01/05/2019,Legal Help,LEGAL AID FUND,ALBIN & CO LTD,1697769:152237480,"32,080.00",Legal Aid Legal Help
MOJ,LAA,01/05/2019,Lower Crime,LEGAL AID FUND,ALEXANDER BENNETT,1696304:152239460,"30,730.00",Legal Aid Lower Crime
MOJ,LAA,01/05/2019,Lower Crime,LEGAL AID FUND,ALEXANDER BENNETT,1696463:152238308,"25,400.00",Legal Aid Lower Crime
MOJ,LAA,01/05/2019,Lower Crime,LEGAL AID FUND,ALLEN HOOLE LTD,1700246:152238244,"37,700.00",Legal Aid Lower Crime
MOJ,LAA,01/05/2019,Lower Crime,LEGAL AID FUND,ALLEN HOOLE LTD,1698836:152239292,"31,696.00",Legal Aid Lower Crime
MOJ,LAA,01/05/2019,Higher Crime,LEGAL AID FUND,ALLINGTON HUGHES LTD,1700629:152263318,"89,975.11",Legal Aid Higher Crime
MOJ,LAA,01/05/2019,Higher Crime,LEGAL AID FUND,ALLINGTON HUGHES LTD,1700629:152230314,"25,717.91",Legal Aid Higher Crime
MOJ,LAA,01/05/2019,Civil Representation,LEGAL AID FUND,ALSTERS KELLEY SOLICITORS LTD,1700320:3000003053500026,"30,922.10",Legal Aid Civil Representation
MOJ,LAA,01/05/2019,Higher Crime,LEGAL AID FUND,ALTAF SOLICITORS LTD,1697703:152263417,"45,355.46",Legal Aid Higher Crime
MOJ,LAA,01/05/2019,Higher Crime,LEGAL AID FUND,AMANDA E PINTO QC,1697226:152268141,"48,360.00",Legal Aid Higher Crime
MOJ,LAA,01/05/2019,Higher Crime,LEGAL AID FUND,ANDREW R PRICE,1697093:152263480,"29,400.00",Legal Aid Higher Crime
MOJ,LAA,01/05/2019,Lower Crime,LEGAL AID FUND,ANGELA PORTER SOLICITORS,1697736:152238837,"65,887.00",Legal Aid Lower Crime
MOJ,LAA,01/05/2019,Civil Representation,LEGAL AID FUND,ANTHONY R HAND,1700004:3000003795450020,"28,362.87",Legal Aid Civil Representation
MOJ,LAA,01/05/2019,Legal Help,LEGAL AID FUND,APPLEMAN LEGAL,1696482:152237828,"41,774.00",Legal Aid Legal Help
MOJ,LAA,01/05/2019,Higher Crime,LEGAL AID FUND,ASHCOTT SOLICITORS LTD,1697615:152221891,"127,029.30",Legal Aid Higher Crime
MOJ,LAA,01/05/2019,Higher Crime,LEGAL AID FUND,AVISONS LAW LTD,1700167:152231567,"75,296.10",Legal Aid Higher Crime
MOJ,LAA,01/05/2019,Lower Crime,LEGAL AID FUND,BAINS SOLICITORS,1700525:152238407,"30,617.00",Legal Aid Lower Crime
MOJ,LAA,01/05/2019,Lower Crime,LEGAL AID FUND,BAL DHALIWAL SOLICITORS,1697993:152238477,"25,908.00",Legal Aid Lower Crime
MOJ,LAA,01/05/2019,Legal Help,LEGAL AID FUND,BARNES HARRILD & DYER,1698315:152237289,"54,915.00",Legal Aid Legal Help
MOJ,LAA,01/05/2019,Legal Help,LEGAL AID FUND,BARNES HARRILD & DYER,1696562:152237685,"42,350.00",Legal Aid Legal Help
MOJ,LAA,01/05/2019,Lower Crime,LEGAL AID FUND,BELL LAMB & JOYNSON,1700496:152238196,"25,500.00",Legal Aid Lower Crime
MOJ,LAA,01/05/2019,Lower Crime,LEGAL AID FUND,BELMORES SOLICITORS LTD,1700335:152238451,"38,201.00",Legal Aid Lower Crime
MOJ,LAA,01/05/2019,Lower Crime,LEGAL AID FUND,BESWICKS SOLICITORS LLP,1701028:152238911,"44,792.00",Legal Aid Lower Crime
MOJ,LAA,01/05/2019,Higher Crime,LEGAL AID FUND,BETH O'REILLY,1700098:152221973,"25,248.72",Legal Aid Higher Crime
MOJ,LAA,01/05/2019,Higher Crime,LEGAL AID FUND,BHANDAL LAW,1696214:152230666,"71,537.49",Legal Aid Higher Crime
MOJ,LAA,01/05/2019,Lower Crime,LEGAL AID FUND,BHATIA BEST LTD,1700680:152237986,"90,100.00",Legal Aid Lower Crime
MOJ,LAA,01/05/2019,Lower Crime,LEGAL AID FUND,BHATIA BEST LTD,1700678:152237989,"36,200.00",Legal Aid Lower Crime
MOJ,LAA,01/05/2019,Legal Help,LEGAL AID FUND,BINDMANS LLP,1697914:152236933,"85,000.00",Legal Aid Legal Help
MOJ,LAA,01/05/2019,Lower Crime,LEGAL AID FUND,BIRDS SOLICITORS LTD,1700450:152238045,"103,200.00",Legal Aid Lower Crime
MOJ,LAA,01/05/2019,Legal Help,LEGAL AID FUND,BISON SOLICITORS LTD,1696494:152235868,"98,000.00",Legal Aid Legal Help
MOJ,LAA,01/05/2019,Legal Help,LEGAL AID FUND,BISON SOLICITORS LTD,1696494:152235870,"97,000.00",Legal Aid Legal Help
MOJ,LAA,01/05/2019,Higher Crime,LEGAL AID FUND,BIVONAS LLP,1698161:152244908,"89,975.11",Legal Aid Higher Crime
MOJ,LAA,01/05/2019,Lower Crime,LEGAL AID FUND,BJ & CO SOLICITORS LTD T/A  BRIAN JACKSON & CO,1697906:152238097,"32,100.00",Legal Aid Lower Crime
MOJ,LAA,01/05/2019,Lower Crime,LEGAL AID FUND,BLACKFORDS LLP,1701132:152238507,"41,949.00",Legal Aid Lower Crime
MOJ,LAA,01/05/2019,Lower Crime,LEGAL AID FUND,BLACKWELLS,1700469:152238143,"46,400.00",Legal Aid Lower Crime
MOJ,LAA,01/05/2019,Lower Crime,LEGAL AID FUND,BOBBETTS MACKAN,1698470:152238237,"34,400.00",Legal Aid Lower Crime
MOJ,LAA,01/05/2019,Lower Crime,LEGAL AID FUND,BOND JOSEPH,1697913:152238800,"41,825.00",Legal Aid Lower Crime
MOJ,LAA,01/05/2019,Higher Crime,LEGAL AID FUND,BRADY EASTWOOD PIERCE & STEWART,1698438:152221006,"34,311.85",Legal Aid Higher Crime
MOJ,LAA,01/05/2019,Lower Crime,LEGAL AID FUND,BRADY EASTWOOD PIERCE & STEWART,1698438:152238550,"25,651.00",Legal Aid Lower Crime
MOJ,LAA,01/05/2019,Legal Help,LEGAL AID FUND,BRAITCH SOLICITORS (RB SOLICITORS),1700337:152237042,"25,470.00",Legal Aid Legal Help
MOJ,LAA,01/05/2019,Lower Crime,LEGAL AID FUND,BREYDONS SOLICITORS LTD,1696471:152239023,"34,914.00",Legal Aid Lower Crime
MOJ,LAA,01/05/2019,Legal Help,LEGAL AID FUND,BRIGHTON HOUSING TRUST,1697496:152235865,"99,000.00",Legal Aid Legal Help
MOJ,LAA,01/05/2019,Civil Representation,LEGAL AID FUND,BROOMHEAD & SAUL,1700978:3000002514220018,"32,928.65",Legal Aid Civil Representation
MOJ,LAA,01/05/2019,Legal Help,LEGAL AID FUND,BURKE NIAZI  LTD,1700879:152235860,"99,000.00",Legal Aid Legal Help
MOJ,LAA,01/05/2019,Legal Help,LEGAL AID FUND,BURKE NIAZI  LTD,1700879:152235861,"39,600.00",Legal Aid Legal Help
MOJ,LAA,01/05/2019,Lower Crime,LEGAL AID FUND,BURTON COPELAND LLP,1700599:152238780,"46,056.00",Legal Aid Lower Crime
MOJ,LAA,01/05/2019,Higher Crime,LEGAL AID FUND,BURTON COPELAND LLP,1700599:152221976,"37,812.65",Legal Aid Higher Crime
MOJ,LAA,01/05/2019,Legal Help,LEGAL AID FUND,BUTLER & CO,1697794:152236885,"30,000.00",Legal Aid Legal Help
MOJ,LAA,01/05/2019,Higher Crime,LEGAL AID FUND,C S SOLICITORS,1696306:152211349,"46,770.19",Legal Aid Higher Crime
MOJ,LAA,01/05/2019,Civil Representation,LEGAL AID FUND,CAROLINE A HARTLEY,1696924:3000002378250021,"30,585.60",Legal Aid Civil Representation
MOJ,LAA,01/05/2019,Lower Crime,LEGAL AID FUND,CARR & CO,1700784:152238141,"27,672.00",Legal Aid Lower Crime
MOJ,LAA,01/05/2019,Lower Crime,LEGAL AID FUND,CARRINGTONS SOLICITORS,1700359:152238410,"183,035.00",Legal Aid Lower Crime
MOJ,LAA,01/05/2019,Higher Crime,LEGAL AID FUND,CARTER MOORE SOLICITORS LTD,1700317:152263575,"77,519.23",Legal Aid Higher Crime
MOJ,LAA,01/05/2019,Lower Crime,LEGAL AID FUND,CARTER OSBORNE LTD,1698056:152238408,"116,686.00",Legal Aid Lower Crime
MOJ,LAA,01/05/2019,Higher Crime,LEGAL AID FUND,CARTWRIGHT KING LTD,1700427:152245564,"76,437.77",Legal Aid Higher Crime
MOJ,LAA,01/05/2019,Legal Help,LEGAL AID FUND,CARTWRIGHT KING LTD,1700427:152237449,"58,868.00",Legal Aid Legal Help
MOJ,LAA,01/05/2019,Lower Crime,LEGAL AID FUND,CARTWRIGHT KING LTD,1700427:152238416,"28,511.00",Legal Aid Lower Crime
MOJ,LAA,01/05/2019,Higher Crime,LEGAL AID FUND,CHRISTOPHER H STABLES,1699796:152211467,"36,708.12",Legal Aid Higher Crime
MOJ,LAA,01/05/2019,Lower Crime,LEGAL AID FUND,CHURCHERS SOLICITORS,1697637:152238821,"33,922.00",Legal Aid Lower Crime
MOJ,LAA,01/05/2019,Higher Crime,LEGAL AID FUND,CITY LAW CHAMBERS LTD,1700259:152220888,"47,548.07",Legal Aid Higher Crime
MOJ,LAA,01/05/2019,Higher Crime,LEGAL AID FUND,CITY LAW CHAMBERS LTD,1700259:152210746,"43,555.55",Legal Aid Higher Crime
MOJ,LAA,01/05/2019,Legal Help,LEGAL AID FUND,CJCH SOLICITORS,1699046:152237832,"39,070.00",Legal Aid Legal Help
MOJ,LAA,01/05/2019,Lower Crime,LEGAL AID FUND,CJH SOLICITORS,1700513:152238007,"28,500.00",Legal Aid Lower Crime
MOJ,LAA,01/05/2019,Legal Help,LEGAL AID FUND,CMHT SOLICITORS LLP,1701036:152237050,"52,365.00",Legal Aid Legal Help
MOJ,LAA,01/05/2019,Legal Help,LEGAL AID FUND,CONFREYS,1701006:152237177,"26,854.00",Legal Aid Legal Help
MOJ,LAA,01/05/2019,Higher Crime,LEGAL AID FUND,CONNOR ROSS-BROWN SOLICITORS,1696682:152220676,"50,947.34",Legal Aid Higher Crime
MOJ,LAA,01/05/2019,Lower Crime,LEGAL AID FUND,CONNOR ROSS-BROWN SOLICITORS,1696682:152238302,"35,000.00",Legal Aid Lower Crime
MOJ,LAA,01/05/2019,Higher Crime,LEGAL AID FUND,CONNOR ROSS-BROWN SOLICITORS,1696682:152220714,"-28,460.78",Legal Aid Higher Crime
MOJ,LAA,01/05/2019,Lower Crime,LEGAL AID FUND,COUSINS TYRER SOLICITORS,1698117:152238695,"33,215.00",Legal Aid Lower Crime
MOJ,LAA,01/05/2019,Legal Help,LEGAL AID FUND,COVENTRY LAW CENTRE LTD,1697838:152237061,"30,913.00",Legal Aid Legal Help
MOJ,LAA,01/05/2019,Higher Crime,LEGAL AID FUND,COWANS SOLICITORS LLP,1697919:152231263,"50,578.94",Legal Aid Higher Crime
MOJ,LAA,01/05/2019,Lower Crime,LEGAL AID FUND,CRIMINAL DEFENCE MILTON KEYNES LTD,1700222:152238221,"29,000.00",Legal Aid Lower Crime
MOJ,LAA,01/05/2019,Lower Crime,LEGAL AID FUND,CRIMINAL DEFENCE SOLICITORS,1700329:152238077,"26,800.00",Legal Aid Lower Crime
MOJ,LAA,01/05/2019,Civil Representation,LEGAL AID FUND,CRM LAW LLP,1700663:152269764,"31,636.40",Legal Aid Civil Representation
MOJ,LAA,01/05/2019,Civil Representation,LEGAL AID FUND,CRM LAW LLP,1700663:152269765,"-30,904.88",Legal Aid Civil Representation
MOJ,LAA,01/05/2019,Lower Crime,LEGAL AID FUND,CROWE HUMBLE WESENCRAFT,1697857:152238114,"50,700.00",Legal Aid Lower Crime
MOJ,LAA,01/05/2019,Higher Crime,LEGAL AID FUND,CUNNINGHAMS LYTHGOE CAPLIN LTD,1697930:152231523,"105,857.75",Legal Aid Higher Crime
MOJ,LAA,01/05/2019,Higher Crime,LEGAL AID FUND,CUNNINGHAMS LYTHGOE CAPLIN LTD,1697930:152264525,"78,492.77",Legal Aid Higher Crime
MOJ,LAA,01/05/2019,Lower Crime,LEGAL AID FUND,DALTON HOLMES GRAY,1697945:152238566,"36,286.00",Legal Aid Lower Crime
MOJ,LAA,01/05/2019,Higher Crime,LEGAL AID FUND,DANIEL O JONES,1697465:152220569,"27,840.00",Legal Aid Higher Crime
MOJ,LAA,01/05/2019,Lower Crime,LEGAL AID FUND,DANIEL WOODMAN & CO LTD,1697828:152238242,"26,300.00",Legal Aid Lower Crime
MOJ,LAA,01/05/2019,Higher Crime,LEGAL AID FUND,DARTON LAW LIMITED,1700127:152210713,"31,018.39",Legal Aid Higher Crime
MOJ,LAA,01/05/2019,Higher Crime,LEGAL AID FUND,DASILVA SOLICITORS,1696163:152210221,"107,574.07",Legal Aid Higher Crime
MOJ,LAA,01/05/2019,Higher Crime,LEGAL AID FUND,DAVID A SMITH - 2605G,1696636:152245463,"26,552.40",Legal Aid Higher Crime
MOJ,LAA,01/05/2019,Legal Help,LEGAL AID FUND,DAVID GRAY LLP,1700474:152237408,"42,198.00",Legal Aid Legal Help
MOJ,LAA,01/05/2019,Higher Crime,LEGAL AID FUND,DAVID J JAMES,1697036:152270562,"45,960.00",Legal Aid Higher Crime
MOJ,LAA,01/05/2019,Higher Crime,LEGAL AID FUND,DAVID S HISLOP QC,1697045:152264175,"26,220.00",Legal Aid Higher Crime
MOJ,LAA,01/05/2019,Civil Representation,LEGAL AID FUND,DAVIS & SIMMONDS & DONAGHEY,1697686:3000000986070013,"39,694.44",Legal Aid Civil Representation
MOJ,LAA,01/05/2019,Civil Representation,LEGAL AID FUND,DEIGHTON PIERCE GLYNN LTD,1700887:151924039,"26,970.00",Legal Aid Civil Representation
MOJ,LAA,01/05/2019,Lower Crime,LEGAL AID FUND,DEVAS KEOGH JAMES SOLICITORS LTD,1698291:152238469,"26,551.00",Legal Aid Lower Crime
MOJ,LAA,01/05/2019,Lower Crime,LEGAL AID FUND,DEVONALD GRIFFITHS JOHN,1700577:152237979,"45,000.00",Legal Aid Lower Crime
MOJ,LAA,01/05/2019,Lower Crime,LEGAL AID FUND,DJMS SOLICITORS LTD,1700269:152238626,"26,325.00",Legal Aid Lower Crime
MOJ,LAA,01/05/2019,Legal Help,LEGAL AID FUND,DONOVAN NEWTON SOLICITORS,1697688:152237424,"44,811.00",Legal Aid Legal Help
MOJ,LAA,01/05/2019,Higher Crime,LEGAL AID FUND,DPP LAW LTD,1697877:152211230,"99,344.81",Legal Aid Higher Crime
MOJ,LAA,01/05/2019,Higher Crime,LEGAL AID FUND,DPP LAW LTD,1697878:152211284,"89,975.11",Legal Aid Higher Crime
MOJ,LAA,01/05/2019,Lower Crime,LEGAL AID FUND,DRISCOLL YOUNG SOLICITORS LTD,1700512:152238344,"28,357.00",Legal Aid Lower Crime
MOJ,LAA,01/05/2019,Higher Crime,LEGAL AID FUND,DRUMMOND SOLICITORS LTD,1696333:152244858,"63,478.90",Legal Aid Higher Crime
MOJ,LAA,01/05/2019,Legal Help,LEGAL AID FUND,DUNCAN LEWIS SOLICITORS  LTD,1700492:152235856,"90,000.00",Legal Aid Legal Help
MOJ,LAA,01/05/2019,Higher Crime,LEGAL AID FUND,DUNCAN LEWIS SOLICITORS  LTD,1700493:152210156,"89,975.11",Legal Aid Higher Crime
MOJ,LAA,01/05/2019,Legal Help,LEGAL AID FUND,DUNCAN LEWIS SOLICITORS  LTD,1700492:152235858,"89,400.00",Legal Aid Legal Help
MOJ,LAA,01/05/2019,Legal Help,LEGAL AID FUND,DUNCAN LEWIS SOLICITORS  LTD,1700492:152235857,"89,000.00",Legal Aid Legal Help
MOJ,LAA,01/05/2019,Legal Help,LEGAL AID FUND,DUNCAN LEWIS SOLICITORS  LTD,1700493:152235438,"88,000.00",Legal Aid Legal Help
MOJ,LAA,01/05/2019,Legal Help,LEGAL AID FUND,DUNCAN LEWIS SOLICITORS  LTD,1700493:152235439,"87,000.00",Legal Aid Legal Help
MOJ,LAA,01/05/2019,Legal Help,LEGAL AID FUND,DUNCAN LEWIS SOLICITORS  LTD,1700493:152235781,"86,000.00",Legal Aid Legal Help
MOJ,LAA,01/05/2019,Legal Help,LEGAL AID FUND,DUNCAN LEWIS SOLICITORS  LTD,1700493:152235783,"85,000.00",Legal Aid Legal Help
MOJ,LAA,01/05/2019,Legal Help,LEGAL AID FUND,DUNCAN LEWIS SOLICITORS  LTD,1699145:152237014,"59,300.00",Legal Aid Legal Help
MOJ,LAA,01/05/2019,Legal Help,LEGAL AID FUND,DUNCAN LEWIS SOLICITORS  LTD,1700493:152235784,"54,000.00",Legal Aid Legal Help
MOJ,LAA,01/05/2019,Lower Crime,LEGAL AID FUND,DUNCAN LEWIS SOLICITORS  LTD,1700492:152238063,"43,200.00",Legal Aid Lower Crime
MOJ,LAA,01/05/2019,Civil Representation,LEGAL AID FUND,DUTTON GREGORY LLP,1701057:3000003053090014,"50,719.00",Legal Aid Civil Representation
MOJ,LAA,01/05/2019,Lower Crime,LEGAL AID FUND,EBR ATTRIDGE LLP,1700297:152238499,"42,099.00",Legal Aid Lower Crime
MOJ,LAA,01/05/2019,Higher Crime,LEGAL AID FUND,EBR ATTRIDGE LLP,1700295:152211110,"31,093.44",Legal Aid Higher Crime
MOJ,LAA,01/05/2019,Higher Crime,LEGAL AID FUND,EDWARD FAIL BRADSHAW & WATERSON,1698503:152246020,"46,819.44",Legal Aid Higher Crime
MOJ,LAA,01/05/2019,Legal Help,LEGAL AID FUND,EDWARDS DUTHIE SHAMASH SOLICITORS,1698440:152237275,"35,809.00",Legal Aid Legal Help
MOJ,LAA,01/05/2019,Legal Help,LEGAL AID FUND,ELDER RAHIMI LIMITED,1700602:152237334,"69,402.00",Legal Aid Legal Help
MOJ,LAA,01/05/2019,Higher Crime,LEGAL AID FUND,ELDWICK LAW,1696183:152231179,"61,329.42",Legal Aid Higher Crime
MOJ,LAA,01/05/2019,Civil Representation,LEGAL AID FUND,ELIZABETH LUGG,1699808:3000002257380015,"31,519.80",Legal Aid Civil Representation
MOJ,LAA,01/05/2019,Civil Representation,LEGAL AID FUND,ELIZABETH NARTEY,1697011:3000000795170009,"26,130.00",Legal Aid Civil Representation
MOJ,LAA,01/05/2019,Lower Crime,LEGAL AID FUND,ELLIOT MATHER LLP,1700702:152238003,"28,800.00",Legal Aid Lower Crime
MOJ,LAA,01/05/2019,Higher Crime,LEGAL AID FUND,ENNON & CO LTD,1700368:152210070,"29,664.55",Legal Aid Higher Crime
MOJ,LAA,01/05/2019,Legal Help,LEGAL AID FUND,FADIGA & CO LTD,1698250:152237282,"39,435.00",Legal Aid Legal Help
MOJ,LAA,01/05/2019,Higher Crime,LEGAL AID FUND,FARADAYS SOLICITORS LTD,1700535:152244525,"89,975.11",Legal Aid Higher Crime
MOJ,LAA,01/05/2019,Lower Crime,LEGAL AID FUND,FARLEYS SOLICITORS LLP,1698236:152238164,"25,700.00",Legal Aid Lower Crime
MOJ,LAA,01/05/2019,Legal Help,LEGAL AID FUND,FISHER JONES GREENWOOD LLP,1699141:152237708,"41,182.00",Legal Aid Legal Help
MOJ,LAA,01/05/2019,Lower Crime,LEGAL AID FUND,FMW LAW LTD,1698319:152238479,"54,554.00",Legal Aid Lower Crime
MOJ,LAA,01/05/2019,Higher Crime,LEGAL AID FUND,FORBES SOLICITORS,1697925:152264195,"89,975.11",Legal Aid Higher Crime
MOJ,LAA,01/05/2019,Lower Crime,LEGAL AID FUND,FORBES SOLICITORS,1697925:152238172,"50,000.00",Legal Aid Lower Crime
MOJ,LAA,01/05/2019,Lower Crime,LEGAL AID FUND,FORBES SOLICITORS,1697924:152238174,"29,000.00",Legal Aid Lower Crime
MOJ,LAA,01/05/2019,Legal Help,LEGAL AID FUND,FOUNTAIN SOLICITORS LTD,1697667:152236864,"77,300.00",Legal Aid Legal Help
MOJ,LAA,01/05/2019,Legal Help,LEGAL AID FUND,FOUNTAIN SOLICITORS LTD,1698699:152237880,"35,085.00",Legal Aid Legal Help
MOJ,LAA,01/05/2019,Civil Representation,LEGAL AID FUND,FRANCES M HEATON,1699901:3000003023470027,"42,472.92",Legal Aid Civil Representation
MOJ,LAA,01/05/2019,Civil Representation,LEGAL AID FUND,FRANK T FEEHAN QC,1697167:3000001376470017,"79,218.00",Legal Aid Civil Representation
MOJ,LAA,01/05/2019,Lower Crime,LEGAL AID FUND,G T STEWART LTD,1697596:152239013,"79,642.00",Legal Aid Lower Crime
MOJ,LAA,01/05/2019,Lower Crime,LEGAL AID FUND,G T STEWART LTD,1700315:152238573,"55,109.00",Legal Aid Lower Crime
MOJ,LAA,01/05/2019,Legal Help,LEGAL AID FUND,G T STEWART LTD,1696707:152237635,"47,620.00",Legal Aid Legal Help
MOJ,LAA,01/05/2019,Lower Crime,LEGAL AID FUND,G T STEWART LTD,1697598:152239011,"29,393.00",Legal Aid Lower Crime
MOJ,LAA,01/05/2019,Lower Crime,LEGAL AID FUND,G T STEWART LTD,1696707:152239200,"27,574.00",Legal Aid Lower Crime
MOJ,LAA,01/05/2019,Lower Crime,LEGAL AID FUND,GAMMON PIERCY & GAIGER LLP,1701142:152238816,"53,356.00",Legal Aid Lower Crime
MOJ,LAA,01/05/2019,Lower Crime,LEGAL AID FUND,GARTSIDES,1701004:152238342,"28,871.00",Legal Aid Lower Crime
MOJ,LAA,01/05/2019,Civil Representation,LEGAL AID FUND,GARY JACOBS & CO LTD,1698095:3000003226440010,"31,674.91",Legal Aid Civil Representation
MOJ,LAA,01/05/2019,Lower Crime,LEGAL AID FUND,GEOFFREY FORRESTER & CO,1700773:152238109,"35,000.00",Legal Aid Lower Crime
MOJ,LAA,01/05/2019,Lower Crime,LEGAL AID FUND,GEPP & SONS SOLICITORS LLP,1698069:152238022,"25,800.00",Legal Aid Lower Crime
MOJ,LAA,01/05/2019,Lower Crime,LEGAL AID FUND,GHP LEGAL,1700529:152237984,"31,300.00",Legal Aid Lower Crime
MOJ,LAA,01/05/2019,Higher Crime,LEGAL AID FUND,GILES F COCKINGS,1699830:152220844,"69,487.12",Legal Aid Higher Crime
MOJ,LAA,01/05/2019,Legal Help,LEGAL AID FUND,GLEDHILL GILL SOLICITORS,1698428:152237081,"47,229.00",Legal Aid Legal Help
MOJ,LAA,01/05/2019,Lower Crime,LEGAL AID FUND,GOLDKORNS,1697594:152238966,"27,792.00",Legal Aid Lower Crime
MOJ,LAA,01/05/2019,Higher Crime,LEGAL AID FUND,GOLDSTONES SOLICITORS LTD,1701047:152210254,"49,729.07",Legal Aid Higher Crime
MOJ,LAA,01/05/2019,Lower Crime,LEGAL AID FUND,GOMER WILLIAMS,1701005:152238355,"29,870.00",Legal Aid Lower Crime
MOJ,LAA,01/05/2019,Lower Crime,LEGAL AID FUND,GOODALL BARNETT JAMES SOLICITORS,1700884:152238202,"27,100.00",Legal Aid Lower Crime
MOJ,LAA,01/05/2019,Higher Crime,LEGAL AID FUND,GORDON COLE QC,1699795:152263426,"35,768.23",Legal Aid Higher Crime
MOJ,LAA,01/05/2019,Higher Crime,LEGAL AID FUND,GRAHAM & CO SOLICITORS LTD,1696198:152245086,"43,920.11",Legal Aid Higher Crime
MOJ,LAA,01/05/2019,Lower Crime,LEGAL AID FUND,GRAHAM & CO SOLICITORS LTD,1696198:152239415,"31,280.00",Legal Aid Lower Crime
MOJ,LAA,01/05/2019,Higher Crime,LEGAL AID FUND,GRAHAME H JAMES,1699724:152263292,"30,714.00",Legal Aid Higher Crime
MOJ,LAA,01/05/2019,Legal Help,LEGAL AID FUND,GRAHAME STOWE BATESON,1697898:152237248,"25,081.00",Legal Aid Legal Help
MOJ,LAA,01/05/2019,Lower Crime,LEGAL AID FUND,GRAY & CO SOLICITORS LTD,1696852:152239102,"25,179.00",Legal Aid Lower Crime
MOJ,LAA,01/05/2019,Lower Crime,LEGAL AID FUND,GRECH GOODEN SOLICITORS LTD,1697709:152238370,"26,492.00",Legal Aid Lower Crime
MOJ,LAA,01/05/2019,Legal Help,LEGAL AID FUND,GUILE NICHOLAS-INC DONALD GALBRAITH & CO,1697669:152236931,"80,000.00",Legal Aid Legal Help
MOJ,LAA,01/05/2019,Legal Help,LEGAL AID FUND,GUILE NICHOLAS-INC DONALD GALBRAITH & CO,1696410:152237816,"25,055.00",Legal Aid Legal Help
MOJ,LAA,01/05/2019,Lower Crime,LEGAL AID FUND,GWB HARTHILLS LLP,1700467:152238669,"41,303.00",Legal Aid Lower Crime
MOJ,LAA,01/05/2019,Civil Representation,LEGAL AID FUND,GWB HARTHILLS LLP,1700248:3000002797720069,"36,379.39",Legal Aid Civil Representation
MOJ,LAA,01/05/2019,Lower Crime,LEGAL AID FUND,H P GOWER SOLICITORS,1697561:152239052,"54,233.00",Legal Aid Lower Crime
MOJ,LAA,01/05/2019,Higher Crime,LEGAL AID FUND,HALLINAN BLACKBURN GITTINGS & NOTT LLP,1701097:152210387,"65,378.40",Legal Aid Higher Crime
MOJ,LAA,01/05/2019,Civil Representation,LEGAL AID FUND,HANNAYS SOLICITORS &  ADVOCATES,1700826:3000001855250021,"58,480.56",Legal Aid Civil Representation
MOJ,LAA,01/05/2019,Lower Crime,LEGAL AID FUND,HARRIS CUFFARO & NICHOLS,1698200:152238018,"44,500.00",Legal Aid Lower Crime
MOJ,LAA,01/05/2019,Higher Crime,LEGAL AID FUND,HARRIS SOLICITORS LTD,1697628:152220928,"89,975.11",Legal Aid Higher Crime
MOJ,LAA,01/05/2019,Higher Crime,LEGAL AID FUND,HARRIS SOLICITORS LTD,1697628:152221208,"43,256.58",Legal Aid Higher Crime
MOJ,LAA,01/05/2019,Lower Crime,LEGAL AID FUND,HARRIS SOLICITORS LTD,1697628:152239032,"37,301.00",Legal Aid Lower Crime
MOJ,LAA,01/05/2019,Higher Crime,LEGAL AID FUND,HARVEYS,1697890:152263882,"89,975.11",Legal Aid Higher Crime
MOJ,LAA,01/05/2019,Higher Crime,LEGAL AID FUND,HASAN SOLICITORS,1698166:152221265,"26,464.44",Legal Aid Higher Crime
MOJ,LAA,01/05/2019,Lower Crime,LEGAL AID FUND,HASKELL & CO,1697660:152238792,"34,229.00",Legal Aid Lower Crime
MOJ,LAA,01/05/2019,Civil Representation,LEGAL AID FUND,HATTEN WYATT,1696500:3000002766980018,"25,896.48",Legal Aid Civil Representation
MOJ,LAA,01/05/2019,Lower Crime,LEGAL AID FUND,HAY & KILNER LLP,1698153:152238636,"29,323.00",Legal Aid Lower Crime
MOJ,LAA,01/05/2019,Lower Crime,LEGAL AID FUND,HENNESSY & HAMMUDI,1697644:152238228,"50,000.00",Legal Aid Lower Crime
MOJ,LAA,01/05/2019,Lower Crime,LEGAL AID FUND,HENRY HYAMS LTD,1698128:152238693,"41,444.00",Legal Aid Lower Crime
MOJ,LAA,01/05/2019,Higher Crime,LEGAL AID FUND,HETHERINGTONS SOLICITORS LTD,1700147:152263967,"89,975.11",Legal Aid Higher Crime
MOJ,LAA,01/05/2019,Lower Crime,LEGAL AID FUND,HILL TWINE,1699083:152239123,"25,434.00",Legal Aid Lower Crime
MOJ,LAA,01/05/2019,Lower Crime,LEGAL AID FUND,HINE SOLICITORS,1697619:152239016,"45,474.00",Legal Aid Lower Crime
MOJ,LAA,01/05/2019,Lower Crime,LEGAL AID FUND,HINE SOLICITORS,1698831:152239296,"36,362.00",Legal Aid Lower Crime
MOJ,LAA,01/05/2019,Civil Representation,LEGAL AID FUND,HKB WILTSHIRES,1698018:3000002601740012,"32,913.62",Legal Aid Civil Representation
MOJ,LAA,01/05/2019,Legal Help,LEGAL AID FUND,HODGE JONES & ALLEN SOLICITORS LTD,1700958:152237316,"91,221.00",Legal Aid Legal Help
MOJ,LAA,01/05/2019,Higher Crime,LEGAL AID FUND,HODGE JONES & ALLEN SOLICITORS LTD,1696280:152263227,"89,975.11",Legal Aid Higher Crime
MOJ,LAA,01/05/2019,Lower Crime,LEGAL AID FUND,HODGE JONES & ALLEN SOLICITORS LTD,1700958:152238557,"74,213.00",Legal Aid Lower Crime
MOJ,LAA,01/05/2019,Higher Crime,LEGAL AID FUND,HODGE JONES & ALLEN SOLICITORS LTD,1700958:152264671,"35,822.81",Legal Aid Higher Crime
MOJ,LAA,01/05/2019,Civil Representation,LEGAL AID FUND,HODGE JONES & ALLEN SOLICITORS LTD,1700958:152161812,"-25,062.00",Legal Aid Civil Representation
MOJ,LAA,01/05/2019,Civil Representation,LEGAL AID FUND,HODGE JONES & ALLEN SOLICITORS LTD,1700958:152206138,"-27,123.36",Legal Aid Civil Representation
MOJ,LAA,01/05/2019,Lower Crime,LEGAL AID FUND,HODGSON COULTHARD & CO,1700805:152238630,"27,676.00",Legal Aid Lower Crime
MOJ,LAA,01/05/2019,Lower Crime,LEGAL AID FUND,HORSMAN SOLICITORS LTD,1698268:152238796,"37,116.00",Legal Aid Lower Crime
MOJ,LAA,01/05/2019,Lower Crime,LEGAL AID FUND,HOWARD & BYRNE SOLICITORS,1697789:152238140,"67,500.00",Legal Aid Lower Crime
MOJ,LAA,01/05/2019,Lower Crime,LEGAL AID FUND,HOWARDS & HENRY'S SOLICITORS LTD,1696299:152239270,"35,802.00",Legal Aid Lower Crime
MOJ,LAA,01/05/2019,Higher Crime,LEGAL AID FUND,HOWARDS & HENRY'S SOLICITORS LTD,1696299:152174352,"-31,413.02",Legal Aid Higher Crime
MOJ,LAA,01/05/2019,Legal Help,LEGAL AID FUND,HOWE & CO,1700468:152237330,"72,243.00",Legal Aid Legal Help
MOJ,LAA,01/05/2019,Lower Crime,LEGAL AID FUND,HOWELLS LLP,1698110:152238129,"39,000.00",Legal Aid Lower Crime
MOJ,LAA,01/05/2019,Legal Help,LEGAL AID FUND,HOWELLS LLP,1698110:152236902,"33,500.00",Legal Aid Legal Help
MOJ,LAA,01/05/2019,Lower Crime,LEGAL AID FUND,HOWELLS LLP,1698109:152238136,"28,500.00",Legal Aid Lower Crime
MOJ,LAA,01/05/2019,Lower Crime,LEGAL AID FUND,HPJV SOLICITORS,1698342:152238343,"43,680.00",Legal Aid Lower Crime
MOJ,LAA,01/05/2019,Higher Crime,LEGAL AID FUND,HUGHMANS,1701096:152231517,"25,782.66",Legal Aid Higher Crime
MOJ,LAA,01/05/2019,Lower Crime,LEGAL AID FUND,HUMPHRYS DAWSON,1697849:152238377,"25,290.00",Legal Aid Lower Crime
MOJ,LAA,01/05/2019,Legal Help,LEGAL AID FUND,HUNT & COOMBS LLP,1700738:152237160,"33,429.00",Legal Aid Legal Help
MOJ,LAA,01/05/2019,Lower Crime,LEGAL AID FUND,HUNT & COOMBS LLP,1700738:152238471,"28,931.00",Legal Aid Lower Crime
MOJ,LAA,01/05/2019,Higher Crime,LEGAL AID FUND,HUSSAIN SOLICITORS LTD,1700408:152245511,"62,526.65",Legal Aid Higher Crime
MOJ,LAA,01/05/2019,Higher Crime,LEGAL AID FUND,HUTCHINSON THOMAS,1697942:152210478,"49,729.07",Legal Aid Higher Crime
MOJ,LAA,01/05/2019,Lower Crime,LEGAL AID FUND,I B B SOLICITORS,1697747:152238052,"48,600.00",Legal Aid Lower Crime
MOJ,LAA,01/05/2019,Higher Crime,LEGAL AID FUND,IAN F HENDERSON,1699655:152220242,"37,860.00",Legal Aid Higher Crime
MOJ,LAA,01/05/2019,Legal Help,LEGAL AID FUND,IMMIGRATION ADVICE SERVICE,1699114:152237722,"30,590.00",Legal Aid Legal Help
MOJ,LAA,01/05/2019,Higher Crime,LEGAL AID FUND,IMRAN KHAN & PARTNERS,1701070:152222305,"34,335.00",Legal Aid Higher Crime
MOJ,LAA,01/05/2019,Civil Representation,LEGAL AID FUND,IMRAN KHAN & PARTNERS,1696713:3000001816750038,"26,523.82",Legal Aid Civil Representation
MOJ,LAA,01/05/2019,Lower Crime,LEGAL AID FUND,INSTALAW,1696337:152239174,"79,250.00",Legal Aid Lower Crime
MOJ,LAA,01/05/2019,Legal Help,LEGAL AID FUND,IRIS LAW SOLICITORS,1700114:152237604,"36,883.00",Legal Aid Legal Help
MOJ,LAA,01/05/2019,Lower Crime,LEGAL AID FUND,IRVINE THANVI NATAS SOLICITORS,1700447:152238039,"43,500.00",Legal Aid Lower Crime
MOJ,LAA,01/05/2019,Civil Representation,LEGAL AID FUND,IRWIN MITCHELL LLP,1700839:3000002406670011,"26,892.68",Legal Aid Civil Representation
MOJ,LAA,01/05/2019,Lower Crime,LEGAL AID FUND,J D SOLICITORS,1698871:152239342,"71,555.00",Legal Aid Lower Crime
MOJ,LAA,01/05/2019,Lower Crime,LEGAL AID FUND,J D SPICER ZEB,1700961:152238518,"60,238.00",Legal Aid Lower Crime
MOJ,LAA,01/05/2019,Legal Help,LEGAL AID FUND,J D SPICER ZEB,1700960:152237296,"30,274.00",Legal Aid Legal Help
MOJ,LAA,01/05/2019,Legal Help,LEGAL AID FUND,JACKSON LEES GROUP LTD,1699373:152237794,"66,459.00",Legal Aid Legal Help
MOJ,LAA,01/05/2019,Lower Crime,LEGAL AID FUND,JACKSON LEES GROUP LTD,1699373:152239107,"51,591.00",Legal Aid Lower Crime
MOJ,LAA,01/05/2019,Higher Crime,LEGAL AID FUND,JANES SOLICITORS,1698258:152231203,"55,675.24",Legal Aid Higher Crime
MOJ,LAA,01/05/2019,Higher Crime,LEGAL AID FUND,JASON M BARTFELD,1699665:152245330,"39,240.00",Legal Aid Higher Crime
MOJ,LAA,01/05/2019,Higher Crime,LEGAL AID FUND,JEFFREY A ISRAEL,1697062:152230727,"53,268.00",Legal Aid Higher Crime
MOJ,LAA,01/05/2019,Civil Representation,LEGAL AID FUND,JENNIFER L SCULLY,1697454:3000003676760012,"27,086.40",Legal Aid Civil Representation
MOJ,LAA,01/05/2019,Civil Representation,LEGAL AID FUND,JEREMY P WESTON,1697439:3000001158150027,"41,590.20",Legal Aid Civil Representation
MOJ,LAA,01/05/2019,Lower Crime,LEGAL AID FUND,JERMAN SAMUELS & PEARSON LLP,1696172:152238315,"63,000.00",Legal Aid Lower Crime
MOJ,LAA,01/05/2019,Higher Crime,LEGAL AID FUND,JERMAN SAMUELS & PEARSON LLP,1696172:152263481,"36,079.99",Legal Aid Higher Crime
MOJ,LAA,01/05/2019,Lower Crime,LEGAL AID FUND,JOHN DELANEY & CO SOLICITORS,1700401:152238149,"33,000.00",Legal Aid Lower Crime
MOJ,LAA,01/05/2019,Lower Crime,LEGAL AID FUND,JOHN FULLER & PARTNERS,1697714:152238433,"31,230.00",Legal Aid Lower Crime
MOJ,LAA,01/05/2019,Higher Crime,LEGAL AID FUND,JOHN KEARNEY,1699828:152221424,"42,797.76",Legal Aid Higher Crime
MOJ,LAA,01/05/2019,Civil Representation,LEGAL AID FUND,JOHN KER-REID,1699577:3000002378350038,"37,485.67",Legal Aid Civil Representation
MOJ,LAA,01/05/2019,Civil Representation,LEGAL AID FUND,JOHN KER-REID,1699577:151817274,"-28,146.00",Legal Aid Civil Representation
MOJ,LAA,01/05/2019,Higher Crime,LEGAL AID FUND,JOHN R JONES QC,1696651:152230357,"70,817.16",Legal Aid Higher Crime
MOJ,LAA,01/05/2019,Higher Crime,LEGAL AID FUND,JONATHAN R T PAGE,1699709:152220393,"38,730.00",Legal Aid Higher Crime
MOJ,LAA,01/05/2019,Lower Crime,LEGAL AID FUND,JORDANS LLP,1698124:152238660,"32,360.00",Legal Aid Lower Crime
MOJ,LAA,01/05/2019,Lower Crime,LEGAL AID FUND,JOSEPH HILL & CO,1698172:152238521,"26,776.00",Legal Aid Lower Crime
MOJ,LAA,01/05/2019,Lower Crime,LEGAL AID FUND,JSP LAW LTD,1699069:152239137,"45,900.00",Legal Aid Lower Crime
MOJ,LAA,01/05/2019,Higher Crime,LEGAL AID FUND,JUNG & CO SOLICITORS,1696416:152264210,"29,664.55",Legal Aid Higher Crime
MOJ,LAA,01/05/2019,Lower Crime,LEGAL AID FUND,K LEGAL SOLICITORS,1700138:152239070,"31,632.00",Legal Aid Lower Crime
MOJ,LAA,01/05/2019,Higher Crime,LEGAL AID FUND,K LEGAL SOLICITORS,1700138:152245261,"30,334.10",Legal Aid Higher Crime
MOJ,LAA,01/05/2019,Higher Crime,LEGAL AID FUND,K LEGAL SOLICITORS,1700138:152230807,"25,090.14",Legal Aid Higher Crime
MOJ,LAA,01/05/2019,Higher Crime,LEGAL AID FUND,KEANEY & CO SOLICITORS,1696325:152220717,"89,975.11",Legal Aid Higher Crime
MOJ,LAA,01/05/2019,Lower Crime,LEGAL AID FUND,KEANEY WHITEHEAD PARTNERSHIP,1697700:152238610,"26,723.00",Legal Aid Lower Crime
MOJ,LAA,01/05/2019,Civil Representation,LEGAL AID FUND,KEEBLES LLP,1700201:3000003649790012,"29,363.27",Legal Aid Civil Representation
MOJ,LAA,01/05/2019,Higher Crime,LEGAL AID FUND,KEIR B MONTEITH,1699353:152263601,"38,513.40",Legal Aid Higher Crime
MOJ,LAA,01/05/2019,Lower Crime,LEGAL AID FUND,KELLOCKS,1700483:152238732,"28,401.00",Legal Aid Lower Crime
MOJ,LAA,01/05/2019,Higher Crime,LEGAL AID FUND,KENYON MCATEER SOLICITORS,1697570:152210240,"94,984.65",Legal Aid Higher Crime
MOJ,LAA,01/05/2019,Legal Help,LEGAL AID FUND,KESAR & CO SOLICITORS,1700132:152237787,"27,639.00",Legal Aid Legal Help
MOJ,LAA,01/05/2019,Civil Representation,LEGAL AID FUND,KEVIN SHEARN FAMILY LAW PRACTICE LTD,1700213:3000003684300015,"26,183.84",Legal Aid Civil Representation
MOJ,LAA,01/05/2019,Lower Crime,LEGAL AID FUND,KIRWANS,1698008:152238598,"25,566.00",Legal Aid Lower Crime
MOJ,LAA,01/05/2019,Lower Crime,LEGAL AID FUND,KRISTINA HARRISON SOLICITORS,1698296:152238775,"25,980.00",Legal Aid Lower Crime
MOJ,LAA,01/05/2019,Higher Crime,LEGAL AID FUND,L P EVANS SOLICITORS,1697585:152220623,"89,406.24",Legal Aid Higher Crime
MOJ,LAA,01/05/2019,Lower Crime,LEGAL AID FUND,LANSBURY WORTHINGTON LTD,1698289:152238029,"45,000.00",Legal Aid Lower Crime
MOJ,LAA,01/05/2019,Higher Crime,LEGAL AID FUND,LAURIE-ANNE POWER,1696995:152211289,"35,490.00",Legal Aid Higher Crime
MOJ,LAA,01/05/2019,Legal Help,LEGAL AID FUND,LAWANA & CO,1697721:152236920,"64,000.00",Legal Aid Legal Help
MOJ,LAA,01/05/2019,Lower Crime,LEGAL AID FUND,LAWRENCE & CO SOLICITORS CDS LLP,1698173:152238075,"42,500.00",Legal Aid Lower Crime
MOJ,LAA,01/05/2019,Lower Crime,LEGAL AID FUND,LAWTONS SOLICITORS LTD,1697554:152238296,"35,500.00",Legal Aid Lower Crime
MOJ,LAA,01/05/2019,Lower Crime,LEGAL AID FUND,LAWTONS SOLICITORS LTD,1698761:152238316,"35,000.00",Legal Aid Lower Crime
MOJ,LAA,01/05/2019,Legal Help,LEGAL AID FUND,LEGAL JUSTICE SOLICITORS,1699101:152237731,"53,467.00",Legal Aid Legal Help
MOJ,LAA,01/05/2019,Legal Help,LEGAL AID FUND,LEI DAT & BAIG SOLICITORS LTD,1697485:152237606,"75,959.00",Legal Aid Legal Help
MOJ,LAA,01/05/2019,Lower Crime,LEGAL AID FUND,LESLIE FRANKS SOLICITORS,1700363:152238562,"38,976.00",Legal Aid Lower Crime
MOJ,LAA,01/05/2019,Lower Crime,LEGAL AID FUND,LEVY & CO SOLICITORS LLP,1697717:152238447,"37,625.00",Legal Aid Lower Crime
MOJ,LAA,01/05/2019,Lower Crime,LEGAL AID FUND,LEVY & CO SOLICITORS LLP,1700227:152238019,"30,700.00",Legal Aid Lower Crime
MOJ,LAA,01/05/2019,Legal Help,LEGAL AID FUND,LEVY & CO SOLICITORS LLP,1697717:152237778,"25,950.00",Legal Aid Legal Help
MOJ,LAA,01/05/2019,Lower Crime,LEGAL AID FUND,LEWIS NEDAS LAW LTD,1696208:152239406,"28,937.00",Legal Aid Lower Crime
MOJ,LAA,01/05/2019,Higher Crime,LEGAL AID FUND,LEWIS RODGERS LTD,1697820:152231730,"77,466.75",Legal Aid Higher Crime
MOJ,LAA,01/05/2019,Lower Crime,LEGAL AID FUND,LHD SOLICITORS LTD,1700316:152238159,"37,000.00",Legal Aid Lower Crime
MOJ,LAA,01/05/2019,Lower Crime,LEGAL AID FUND,LLM SOLICITORS (LONDON) LTD,1697550:152239063,"32,353.00",Legal Aid Lower Crime
MOJ,LAA,01/05/2019,Lower Crime,LEGAL AID FUND,LLOYDS PR SOLICITORS,1700251:152238435,"56,724.00",Legal Aid Lower Crime
MOJ,LAA,01/05/2019,Lower Crime,LEGAL AID FUND,LLOYDS PR SOLICITORS,1700418:152238430,"49,267.00",Legal Aid Lower Crime
MOJ,LAA,01/05/2019,Higher Crime,LEGAL AID FUND,LUMB & MACGILL,1700476:152222095,"89,975.11",Legal Aid Higher Crime
MOJ,LAA,01/05/2019,Lower Crime,LEGAL AID FUND,LUMB & MACGILL,1700476:152238142,"30,000.00",Legal Aid Lower Crime
MOJ,LAA,01/05/2019,Legal Help,LEGAL AID FUND,LUQMANI THOMPSON & PARTNERS,1697872:152237270,"51,016.00",Legal Aid Legal Help
MOJ,LAA,01/05/2019,Higher Crime,LEGAL AID FUND,M & N SOLICITORS,1700563:152263666,"89,975.11",Legal Aid Higher Crime
MOJ,LAA,01/05/2019,Lower Crime,LEGAL AID FUND,M K LAW SOLICITORS LTD,1697602:152239025,"43,816.00",Legal Aid Lower Crime
MOJ,LAA,01/05/2019,Lower Crime,LEGAL AID FUND,M K LAW SOLICITORS LTD,1696695:152239205,"33,074.00",Legal Aid Lower Crime
MOJ,LAA,01/05/2019,Civil Representation,LEGAL AID FUND,MACKINTOSH LAW,1697940:151839474,"32,468.01",Legal Aid Civil Representation
MOJ,LAA,01/05/2019,Civil Representation,LEGAL AID FUND,MALCOLM MACDONALD,1696712:3000003055020040,"39,426.72",Legal Aid Civil Representation
MOJ,LAA,01/05/2019,Civil Representation,LEGAL AID FUND,MANDER CRUICKSHANK SOLICITORS LLP,1700729:3000002650870024,"35,244.05",Legal Aid Civil Representation
MOJ,LAA,01/05/2019,Higher Crime,LEGAL AID FUND,MANN & CO SOLICITORS LTD,1700508:152221700,"57,726.72",Legal Aid Higher Crime
MOJ,LAA,01/05/2019,Higher Crime,LEGAL AID FUND,MANN & CO SOLICITORS LTD,1700508:152210606,"35,597.46",Legal Aid Higher Crime
MOJ,LAA,01/05/2019,Lower Crime,LEGAL AID FUND,MANN & CO SOLICITORS LTD,1700508:152238257,"27,500.00",Legal Aid Lower Crime
MOJ,LAA,01/05/2019,Higher Crime,LEGAL AID FUND,MANN & CO SOLICITORS LTD,1700508:152220685,"26,464.44",Legal Aid Higher Crime
MOJ,LAA,01/05/2019,Lower Crime,LEGAL AID FUND,MARTIN MURRAY & ASSOCIATES,1701084:152238510,"69,104.00",Legal Aid Lower Crime
MOJ,LAA,01/05/2019,Lower Crime,LEGAL AID FUND,MARTIN MURRAY & ASSOCIATES,1701083:152238830,"38,047.00",Legal Aid Lower Crime
MOJ,LAA,01/05/2019,Lower Crime,LEGAL AID FUND,MARTYN HEWETT,1698510:152238205,"25,000.00",Legal Aid Lower Crime
MOJ,LAA,01/05/2019,Legal Help,LEGAL AID FUND,MATTHEW GOLD & CO LTD,1697892:152237279,"26,127.00",Legal Aid Legal Help
MOJ,LAA,01/05/2019,Higher Crime,LEGAL AID FUND,MAYFAIR SOLICITORS,1698829:152264700,"41,764.59",Legal Aid Higher Crime
MOJ,LAA,01/05/2019,Legal Help,LEGAL AID FUND,MCGARVEY I & A P LTD,1699111:152237744,"35,305.00",Legal Aid Legal Help
MOJ,LAA,01/05/2019,Lower Crime,LEGAL AID FUND,MCGRATH & CO SOLICITORS,1697781:152238267,"34,200.00",Legal Aid Lower Crime
MOJ,LAA,01/05/2019,Lower Crime,LEGAL AID FUND,MCLARTYS SOLICITORS,1697695:152234123,"25,000.00",Legal Aid Lower Crime
MOJ,LAA,01/05/2019,Higher Crime,LEGAL AID FUND,MCMILLAN WILLIAMS SOLICITORS LTD,1698317:152244717,"43,513.01",Legal Aid Higher Crime
MOJ,LAA,01/05/2019,Civil Representation,LEGAL AID FUND,MCMILLEN HAMILTON MCCARTHY,1701086:3000002437960010,"30,183.69",Legal Aid Civil Representation
MOJ,LAA,01/05/2019,Lower Crime,LEGAL AID FUND,MCSORLEY LEWIS LAW LTD,1701012:152238363,"30,536.00",Legal Aid Lower Crime
MOJ,LAA,01/05/2019,Legal Help,LEGAL AID FUND,MENTAL HEALTH LEGAL REPRESENTATION LTD,1697757:152237425,"38,963.00",Legal Aid Legal Help
MOJ,LAA,01/05/2019,Lower Crime,LEGAL AID FUND,METCALFE COPEMAN & PETTEFAR,1698062:152238026,"38,700.00",Legal Aid Lower Crime
MOJ,LAA,01/05/2019,Lower Crime,LEGAL AID FUND,MICHAEL CARROLL & CO,1700573:152238080,"37,800.00",Legal Aid Lower Crime
MOJ,LAA,01/05/2019,Higher Crime,LEGAL AID FUND,MICHAEL F R HOLLAND QC,1697514:152211212,"42,000.00",Legal Aid Higher Crime
MOJ,LAA,01/05/2019,Higher Crime,LEGAL AID FUND,MICHAEL IWAN DAVIES,1699674:152220857,"32,460.00",Legal Aid Higher Crime
MOJ,LAA,01/05/2019,Lower Crime,LEGAL AID FUND,MICHAEL PURDON,1700819:152238640,"30,547.00",Legal Aid Lower Crime
MOJ,LAA,01/05/2019,Legal Help,LEGAL AID FUND,MIGRANT LEGAL PROJECT,1699139:152237748,"33,419.00",Legal Aid Legal Help
MOJ,LAA,01/05/2019,Legal Help,LEGAL AID FUND,MIGRANT LEGAL PROJECT,1699320:152237668,"26,218.00",Legal Aid Legal Help
MOJ,LAA,01/05/2019,Civil Representation,LEGAL AID FUND,MILES & PARTNERS LLP,1700846:3000003642570055,"28,726.26",Legal Aid Civil Representation
MOJ,LAA,01/05/2019,Legal Help,LEGAL AID FUND,MINTON MORRILL,1698182:152237245,"26,169.00",Legal Aid Legal Help
MOJ,LAA,01/05/2019,Legal Help,LEGAL AID FUND,MORGAN CULLEN & BALL LTD,1699447:152237852,"25,241.00",Legal Aid Legal Help
MOJ,LAA,01/05/2019,Higher Crime,LEGAL AID FUND,MUSA PATELS SOLICITORS,1698197:152246188,"27,300.09",Legal Aid Higher Crime
MOJ,LAA,01/05/2019,Higher Crime,LEGAL AID FUND,NATALIE K MCNAMEE,1699156:152264045,"46,216.08",Legal Aid Higher Crime
MOJ,LAA,01/05/2019,Civil Representation,LEGAL AID FUND,NATIONAL FAMILY MEDIATION,1697504:152239563,"25,206.00",Legal Aid Civil Representation
MOJ,LAA,01/05/2019,Lower Crime,LEGAL AID FUND,NEEDHAM POULIER LTD,1697870:152238586,"29,432.00",Legal Aid Lower Crime
MOJ,LAA,01/05/2019,Lower Crime,LEGAL AID FUND,NELSON GUEST & PARTNERS,1701091:152238514,"25,319.00",Legal Aid Lower Crime
MOJ,LAA,01/05/2019,Civil Representation,LEGAL AID FUND,NELSONS SOLICITORS LTD,1698052:3000001393180030,"30,465.06",Legal Aid Civil Representation
MOJ,LAA,01/05/2019,Lower Crime,LEGAL AID FUND,NOBLE SOLICITORS,1697604:152238978,"68,487.00",Legal Aid Lower Crime
MOJ,LAA,01/05/2019,Lower Crime,LEGAL AID FUND,NOBLE SOLICITORS,1700646:152238439,"30,595.00",Legal Aid Lower Crime
MOJ,LAA,01/05/2019,Lower Crime,LEGAL AID FUND,NOBLE SOLICITORS,1698838:152239290,"25,980.00",Legal Aid Lower Crime
MOJ,LAA,01/05/2019,Civil Representation,LEGAL AID FUND,NORMAN H BARNETT & CO SOLICITORS,1700964:3000003414110008,"25,327.51",Legal Aid Civil Representation
MOJ,LAA,01/05/2019,Lower Crime,LEGAL AID FUND,NORRIE WAITE & SLATER,1700712:152238131,"36,000.00",Legal Aid Lower Crime
MOJ,LAA,01/05/2019,Lower Crime,LEGAL AID FUND,NUMBER ONE LAW LLP,1700209:152238950,"30,083.00",Legal Aid Lower Crime
MOJ,LAA,01/05/2019,Lower Crime,LEGAL AID FUND,OBW PERERA LTD,1697772:152238024,"29,000.00",Legal Aid Lower Crime
MOJ,LAA,01/05/2019,Lower Crime,LEGAL AID FUND,OLD BAILEY SOLICITORS LTD,1697625:152239014,"36,848.00",Legal Aid Lower Crime
MOJ,LAA,01/05/2019,Higher Crime,LEGAL AID FUND,OLIVER C J SAXBY,1699946:152220465,"26,820.00",Legal Aid Higher Crime
MOJ,LAA,01/05/2019,Higher Crime,LEGAL AID FUND,OLIVER COOK,1699696:152230453,"33,720.00",Legal Aid Higher Crime
MOJ,LAA,01/05/2019,Lower Crime,LEGAL AID FUND,OLLIERS SOLICITORS LTD,1700519:152238743,"31,143.00",Legal Aid Lower Crime
MOJ,LAA,01/05/2019,Lower Crime,LEGAL AID FUND,ONE LEGAL SERVICES LTD,1698887:152239325,"45,265.00",Legal Aid Lower Crime
MOJ,LAA,01/05/2019,Higher Crime,LEGAL AID FUND,ONE LEGAL SERVICES LTD,1698879:152245290,"27,565.74",Legal Aid Higher Crime
MOJ,LAA,01/05/2019,Lower Crime,LEGAL AID FUND,ONE LEGAL SERVICES LTD,1698888:152239324,"26,355.00",Legal Aid Lower Crime
MOJ,LAA,01/05/2019,Lower Crime,LEGAL AID FUND,O'NEILL WRIGHT & NASH,1697629:152238965,"34,178.00",Legal Aid Lower Crime
MOJ,LAA,01/05/2019,Legal Help,LEGAL AID FUND,OSBORNES SOLICITORS LLP,1701099:152236924,"39,300.00",Legal Aid Legal Help
MOJ,LAA,01/05/2019,Civil Representation,LEGAL AID FUND,OSBORNES SOLICITORS LLP,1701099:3000004040680019,"27,255.60",Legal Aid Civil Representation
MOJ,LAA,01/05/2019,Lower Crime,LEGAL AID FUND,OSLERS SOLICITORS,1700230:152238462,"28,158.00",Legal Aid Lower Crime
MOJ,LAA,01/05/2019,Lower Crime,LEGAL AID FUND,OWEN NASH & CO,1701048:152238276,"25,000.00",Legal Aid Lower Crime
MOJ,LAA,01/05/2019,Legal Help,LEGAL AID FUND,OXFORD LAW GROUP,1700428:152237006,"27,700.00",Legal Aid Legal Help
MOJ,LAA,01/05/2019,Higher Crime,LEGAL AID FUND,PAISLEYS,1700793:152220678,"34,946.75",Legal Aid Higher Crime
MOJ,LAA,01/05/2019,Legal Help,LEGAL AID FUND,PARAGON LAW LTD,1697756:152236989,"50,000.00",Legal Aid Legal Help
MOJ,LAA,01/05/2019,Lower Crime,LEGAL AID FUND,PARKER BIRD WHITELEY,1700338:152238685,"25,033.00",Legal Aid Lower Crime
MOJ,LAA,01/05/2019,Legal Help,LEGAL AID FUND,PARKER RHODES HICKMOTTS,1698105:152237218,"35,308.00",Legal Aid Legal Help
MOJ,LAA,01/05/2019,Civil Representation,LEGAL AID FUND,PATRICK LAWRENCE PARTNERSHIP LLP,1697917:3000002284310014,"48,428.93",Legal Aid Civil Representation
MOJ,LAA,01/05/2019,Civil Representation,LEGAL AID FUND,PATRICK LAWRENCE PARTNERSHIP LLP,1697917:3000002284310011RC,"-30,885.30",Legal Aid Civil Representation
MOJ,LAA,01/05/2019,Civil Representation,LEGAL AID FUND,PATRICK R P GOODINGS,1699266:3000002904870020,"27,950.40",Legal Aid Civil Representation
MOJ,LAA,01/05/2019,Higher Crime,LEGAL AID FUND,PAUL ROBINSON SOLICITORS LLP,1698844:152211679,"26,893.52",Legal Aid Higher Crime
MOJ,LAA,01/05/2019,Lower Crime,LEGAL AID FUND,PAUL ROBINSON SOLICITORS LLP,1698844:152239336,"25,354.00",Legal Aid Lower Crime
MOJ,LAA,01/05/2019,Civil Representation,LEGAL AID FUND,PENELOPE A M HOWE,1699576:3000002378250020,"43,303.15",Legal Aid Civil Representation
MOJ,LAA,01/05/2019,Lower Crime,LEGAL AID FUND,PENFOLD & MCPHERSON LTD,1700922:152238831,"25,012.00",Legal Aid Lower Crime
MOJ,LAA,01/05/2019,Lower Crime,LEGAL AID FUND,PETER CLARKE SOLICITORS LLP,1700908:152238818,"31,721.00",Legal Aid Lower Crime
MOJ,LAA,01/05/2019,Legal Help,LEGAL AID FUND,PETER EDWARDS LAW LTD,1700481:152236917,"41,200.00",Legal Aid Legal Help
MOJ,LAA,01/05/2019,Civil Representation,LEGAL AID FUND,PETHERBRIDGE BASSRA SOLICITORS LTD,1700383:3000002314320016,"76,004.58",Legal Aid Civil Representation
MOJ,LAA,01/05/2019,Lower Crime,LEGAL AID FUND,PETHERBRIDGE BASSRA SOLICITORS LTD,1700383:152238681,"26,932.00",Legal Aid Lower Crime
MOJ,LAA,01/05/2019,Civil Representation,LEGAL AID FUND,PETHERBRIDGE BASSRA SOLICITORS LTD,1700383:3000002314320006RC,"-34,879.50",Legal Aid Civil Representation
MOJ,LAA,01/05/2019,Legal Help,LEGAL AID FUND,PICKUP & SCOTT SOLICITORS,1698480:152237472,"25,360.00",Legal Aid Legal Help
MOJ,LAA,01/05/2019,Higher Crime,LEGAL AID FUND,POND MARSH,1700873:152220828,"107,970.13",Legal Aid Higher Crime
MOJ,LAA,01/05/2019,Lower Crime,LEGAL AID FUND,POOLE ALCOCK LLP,1700639:152238734,"28,103.00",Legal Aid Lower Crime
MOJ,LAA,01/05/2019,Civil Representation,LEGAL AID FUND,PORTER DODSON,1698409:152267312,"50,523.65",Legal Aid Civil Representation
MOJ,LAA,01/05/2019,Civil Representation,LEGAL AID FUND,POWELL SPENCER AND PARTNERS,1700962:3000001465270043,"56,632.49",Legal Aid Civil Representation
MOJ,LAA,01/05/2019,Lower Crime,LEGAL AID FUND,POWELL SPENCER AND PARTNERS,1700962:152238040,"36,900.00",Legal Aid Lower Crime
MOJ,LAA,01/05/2019,Higher Crime,LEGAL AID FUND,POWELL SPENCER AND PARTNERS,1700962:152245302,"30,836.52",Legal Aid Higher Crime
MOJ,LAA,01/05/2019,Civil Representation,LEGAL AID FUND,POWELL SPENCER AND PARTNERS,1700962:3000001465270031RC,"-31,665.34",Legal Aid Civil Representation
MOJ,LAA,01/05/2019,Lower Crime,LEGAL AID FUND,PURCELL PARKER LTD,1700650:152238269,"90,000.00",Legal Aid Lower Crime
MOJ,LAA,01/05/2019,Lower Crime,LEGAL AID FUND,PURE LAW CRIMINAL DEFENCE,1698865:152239228,"30,118.00",Legal Aid Lower Crime
MOJ,LAA,01/05/2019,Lower Crime,LEGAL AID FUND,QUALITYSOLICITORS KNIGHT POLSON,1698975:152238313,"28,800.00",Legal Aid Lower Crime
MOJ,LAA,01/05/2019,Higher Crime,LEGAL AID FUND,RASHID & CO SOLICITORS LTD,1697866:152263175,"40,041.74",Legal Aid Higher Crime
MOJ,LAA,01/05/2019,Lower Crime,LEGAL AID FUND,REECE THOMAS WATSON LTD,1696328:152239177,"34,466.00",Legal Aid Lower Crime
MOJ,LAA,01/05/2019,Lower Crime,LEGAL AID FUND,REEDS SOLICITORS LTD,1696138:152234311,"82,370.98",Legal Aid Lower Crime
MOJ,LAA,01/05/2019,Higher Crime,LEGAL AID FUND,REEDS SOLICITORS LTD,1696132:152263537,"73,552.39",Legal Aid Higher Crime
MOJ,LAA,01/05/2019,Lower Crime,LEGAL AID FUND,REEDS SOLICITORS LTD,1696134:152234298,"40,205.26",Legal Aid Lower Crime
MOJ,LAA,01/05/2019,Lower Crime,LEGAL AID FUND,REEDS SOLICITORS LTD,1700634:152234224,"39,117.40",Legal Aid Lower Crime
MOJ,LAA,01/05/2019,Lower Crime,LEGAL AID FUND,REEDS SOLICITORS LTD,1699396:152234387,"35,289.76",Legal Aid Lower Crime
MOJ,LAA,01/05/2019,Lower Crime,LEGAL AID FUND,REEDS SOLICITORS LTD,1696415:152234382,"28,113.18",Legal Aid Lower Crime
MOJ,LAA,01/05/2019,Higher Crime,LEGAL AID FUND,REES CLAYTON SOLICITORS LTD,1698737:152244503,"46,329.44",Legal Aid Higher Crime
MOJ,LAA,01/05/2019,Lower Crime,LEGAL AID FUND,REEVES  & CO SOLICITORS,1697699:152238794,"46,211.00",Legal Aid Lower Crime
MOJ,LAA,01/05/2019,Civil Representation,LEGAL AID FUND,REEVES & CO LAW LTD,1701140:152270729,"42,397.23",Legal Aid Civil Representation
MOJ,LAA,01/05/2019,Lower Crime,LEGAL AID FUND,RENSHAW DERRICK & CO,1698424:152238843,"34,924.00",Legal Aid Lower Crime
MOJ,LAA,01/05/2019,Lower Crime,LEGAL AID FUND,RICHARD HASWELL SOLICITORS LTD,1698288:152238638,"26,391.00",Legal Aid Lower Crime
MOJ,LAA,01/05/2019,Civil Representation,LEGAL AID FUND,RICHARD M A HADLEY,1699749:3000001659060004,"25,242.84",Legal Aid Civil Representation
MOJ,LAA,01/05/2019,Civil Representation,LEGAL AID FUND,RICHARD M A HADLEY,1699749:3000004434770011,"25,056.00",Legal Aid Civil Representation
MOJ,LAA,01/05/2019,Civil Representation,LEGAL AID FUND,RICHARD M A HADLEY,1699749:3000001660260010RC,"-29,710.44",Legal Aid Civil Representation
MOJ,LAA,01/05/2019,Higher Crime,LEGAL AID FUND,RICHARDSON LISSACK LTD,1700891:152263500,"27,544.99",Legal Aid Higher Crime
MOJ,LAA,01/05/2019,Lower Crime,LEGAL AID FUND,RILEY HAYES & CO,1700651:152238285,"29,000.00",Legal Aid Lower Crime
MOJ,LAA,01/05/2019,Lower Crime,LEGAL AID FUND,RILEY HAYES & CO,1696187:152239425,"25,159.00",Legal Aid Lower Crime
MOJ,LAA,01/05/2019,Lower Crime,LEGAL AID FUND,RMNJ SOLICITORS ***,1700625:152238597,"61,801.00",Legal Aid Lower Crime
MOJ,LAA,01/05/2019,Legal Help,LEGAL AID FUND,RMNJ SOLICITORS ***,1700625:152237255,"25,078.00",Legal Aid Legal Help
MOJ,LAA,01/05/2019,Lower Crime,LEGAL AID FUND,ROBERT LIZAR,1700862:152238781,"33,716.00",Legal Aid Lower Crime
MOJ,LAA,01/05/2019,Legal Help,LEGAL AID FUND,ROBERT LIZAR,1700862:152237627,"26,021.00",Legal Aid Legal Help
MOJ,LAA,01/05/2019,Lower Crime,LEGAL AID FUND,ROBERTSON'S SOLICITORS,1700759:152238138,"36,300.00",Legal Aid Lower Crime
MOJ,LAA,01/05/2019,Legal Help,LEGAL AID FUND,ROEBUCKS SOLICITORS,1698228:152237364,"25,419.00",Legal Aid Legal Help
MOJ,LAA,01/05/2019,Lower Crime,LEGAL AID FUND,ROSS SOLICITORS LTD,1701021:152238246,"29,000.00",Legal Aid Lower Crime
MOJ,LAA,01/05/2019,Lower Crime,LEGAL AID FUND,ROWE SPARKES SOLICITORS LTD,1700325:152238220,"35,000.00",Legal Aid Lower Crime
MOJ,LAA,01/05/2019,Lower Crime,LEGAL AID FUND,ROY FOREMAN & CO SOLICITORS,1697970:152238147,"25,800.00",Legal Aid Lower Crime
MOJ,LAA,01/05/2019,Higher Crime,LEGAL AID FUND,RUSSELL & RUSSELL SOLICITORS LLP,1698241:152210917,"25,778.93",Legal Aid Higher Crime
MOJ,LAA,01/05/2019,Higher Crime,LEGAL AID FUND,RUSTEM GUARDIAN LLP,1697810:152221300,"65,036.57",Legal Aid Higher Crime
MOJ,LAA,01/05/2019,Civil Representation,LEGAL AID FUND,RUTH S M HENKE QC,1697190:3000003058250011,"35,056.80",Legal Aid Civil Representation
MOJ,LAA,01/05/2019,Lower Crime,LEGAL AID FUND,S A LAW CHAMBERS SOLICITORS,1697825:152238033,"30,000.00",Legal Aid Lower Crime
MOJ,LAA,01/05/2019,Higher Crime,LEGAL AID FUND,SAM ROBINSON,1697526:152264276,"31,512.17",Legal Aid Higher Crime
MOJ,LAA,01/05/2019,Civil Representation,LEGAL AID FUND,SANDERSONS SOLICITORS LTD,1700861:3000003454790007,"46,269.60",Legal Aid Civil Representation
MOJ,LAA,01/05/2019,Civil Representation,LEGAL AID FUND,SANDERSONS SOLICITORS LTD,1700861:3000003817710007,"35,046.00",Legal Aid Civil Representation
MOJ,LAA,01/05/2019,Lower Crime,LEGAL AID FUND,SANSBURY DOUGLAS,1700277:152238291,"57,500.00",Legal Aid Lower Crime
MOJ,LAA,01/05/2019,Lower Crime,LEGAL AID FUND,SAUNDERS SOLICITORS LTD,1701066:152238073,"31,000.00",Legal Aid Lower Crime
MOJ,LAA,01/05/2019,Civil Representation,LEGAL AID FUND,SCOTT RICHARDS,1698423:3000001425430029,"31,273.85",Legal Aid Civil Representation
MOJ,LAA,01/05/2019,Higher Crime,LEGAL AID FUND,SEBASTIAN GARDINER,1700100:152264007,"34,179.96",Legal Aid Higher Crime
MOJ,LAA,01/05/2019,Higher Crime,LEGAL AID FUND,SHAFI SOLICITORS LLP,1699296:152245533,"61,846.07",Legal Aid Higher Crime
MOJ,LAA,01/05/2019,Higher Crime,LEGAL AID FUND,SHAHID ALI & SOLICITORS CO LTD,1696378:152264659,"89,975.11",Legal Aid Higher Crime
MOJ,LAA,01/05/2019,Higher Crime,LEGAL AID FUND,SHAIKH AYUB SOLICITORS,1697599:152221353,"81,347.44",Legal Aid Higher Crime
MOJ,LAA,01/05/2019,Higher Crime,LEGAL AID FUND,SHEARMAN BOWEN & CO-ADVOCATE,1696856:152211052,"39,802.80",Legal Aid Higher Crime
MOJ,LAA,01/05/2019,Civil Representation,LEGAL AID FUND,SIMPSON MILLAR SOLICITORS LLP,1698192:151122714,"43,644.51",Legal Aid Civil Representation
MOJ,LAA,01/05/2019,Lower Crime,LEGAL AID FUND,SMITH PARTNERSHIP,1700460:152238005,"38,500.00",Legal Aid Lower Crime
MOJ,LAA,01/05/2019,Lower Crime,LEGAL AID FUND,SMITH PARTNERSHIP,1700459:152238006,"27,600.00",Legal Aid Lower Crime
MOJ,LAA,01/05/2019,Lower Crime,LEGAL AID FUND,SONN MACMILLAN WALKER LTD,1701088:152238030,"63,800.00",Legal Aid Lower Crime
MOJ,LAA,01/05/2019,Legal Help,LEGAL AID FUND,SOUTH WEST LONDON LAW CENTRES,1697862:152237537,"30,505.00",Legal Aid Legal Help
MOJ,LAA,01/05/2019,Legal Help,LEGAL AID FUND,SOUTHERNS SOLICITORS LTD,1698272:152237366,"33,328.00",Legal Aid Legal Help
MOJ,LAA,01/05/2019,Higher Crime,LEGAL AID FUND,SPARTANS LAW LTD,1696188:152244183,"89,975.11",Legal Aid Higher Crime
MOJ,LAA,01/05/2019,Higher Crime,LEGAL AID FUND,STEPHEN LICKRISH & ASSOCIATES LTD,1697815:152221093,"105,857.75",Legal Aid Higher Crime
MOJ,LAA,01/05/2019,Lower Crime,LEGAL AID FUND,STEPHEN RIMMER LLP,1700661:152238203,"26,000.00",Legal Aid Lower Crime
MOJ,LAA,01/05/2019,Lower Crime,LEGAL AID FUND,STEPHENSONS SOLICITORS LLP,1700866:152238722,"30,563.00",Legal Aid Lower Crime
MOJ,LAA,01/05/2019,Lower Crime,LEGAL AID FUND,STEVEN YOUNG & CO INC ROWBIS,1700444:152238871,"28,553.00",Legal Aid Lower Crime
MOJ,LAA,01/05/2019,Lower Crime,LEGAL AID FUND,STEVENS SOLICITORS,1698262:152238259,"59,000.00",Legal Aid Lower Crime
MOJ,LAA,01/05/2019,Lower Crime,LEGAL AID FUND,STEVENS SOLICITORS,1698261:152238260,"50,800.00",Legal Aid Lower Crime
MOJ,LAA,01/05/2019,Higher Crime,LEGAL AID FUND,STEWART BEGUM SOLICITORS LTD,1697592:152220382,"62,413.06",Legal Aid Higher Crime
MOJ,LAA,01/05/2019,Lower Crime,LEGAL AID FUND,STUART MILLER SOLICITORS LTD,1700831:152238559,"93,201.00",Legal Aid Lower Crime
MOJ,LAA,01/05/2019,Legal Help,LEGAL AID FUND,SULTAN LLOYD SOLICITORS LTD,1700436:152237057,"28,961.00",Legal Aid Legal Help
MOJ,LAA,01/05/2019,Higher Crime,LEGAL AID FUND,SUNDIP MURRIA SOLICITORS,1697738:152264149,"29,664.55",Legal Aid Higher Crime
MOJ,LAA,01/05/2019,Legal Help,LEGAL AID FUND,SUTOVIC & HARTIGAN,1698435:152236937,"38,000.00",Legal Aid Legal Help
MOJ,LAA,01/05/2019,Higher Crime,LEGAL AID FUND,SVS SOLICITORS,1700263:152231293,"34,311.85",Legal Aid Higher Crime
MOJ,LAA,01/05/2019,Lower Crime,LEGAL AID FUND,SWAIN & CO SOLICITORS,1700445:152238218,"129,700.00",Legal Aid Lower Crime
MOJ,LAA,01/05/2019,Legal Help,LEGAL AID FUND,SWAIN & CO SOLICITORS,1700446:152236997,"30,000.00",Legal Aid Legal Help
MOJ,LAA,01/05/2019,Legal Help,LEGAL AID FUND,SWITALSKI'S SOLICITORS LTD,1698116:152237232,"25,215.00",Legal Aid Legal Help
MOJ,LAA,01/05/2019,Lower Crime,LEGAL AID FUND,T S LAW LTD,1697938:152238066,"25,000.00",Legal Aid Lower Crime
MOJ,LAA,01/05/2019,Legal Help,LEGAL AID FUND,T V EDWARDS LLP,1698290:152236923,"64,900.00",Legal Aid Legal Help
MOJ,LAA,01/05/2019,Lower Crime,LEGAL AID FUND,T V EDWARDS LLP,1698290:152238064,"58,000.00",Legal Aid Lower Crime
MOJ,LAA,01/05/2019,Lower Crime,LEGAL AID FUND,TAIT FARRIER GRAHAM,1700792:152238119,"32,700.00",Legal Aid Lower Crime
MOJ,LAA,01/05/2019,Lower Crime,LEGAL AID FUND,TAYLOR HALDANE BARLEX LLP,1696370:152239208,"31,971.00",Legal Aid Lower Crime
MOJ,LAA,01/05/2019,Lower Crime,LEGAL AID FUND,TAYLOR HALDANE BARLEX LLP,1699391:152239104,"25,697.00",Legal Aid Lower Crime
MOJ,LAA,01/05/2019,Lower Crime,LEGAL AID FUND,TAYLOR HALDANE BARLEX LLP,1700515:152238467,"25,354.00",Legal Aid Lower Crime
MOJ,LAA,01/05/2019,Higher Crime,LEGAL AID FUND,TAYLOR STREET SOLICITORS LLP,1700848:152221224,"86,945.95",Legal Aid Higher Crime
MOJ,LAA,01/05/2019,Lower Crime,LEGAL AID FUND,TAYLOR STREET SOLICITORS LLP,1700848:152238208,"29,000.00",Legal Aid Lower Crime
MOJ,LAA,01/05/2019,Lower Crime,LEGAL AID FUND,TEESSIDE LAW LTD,1696461:152239126,"29,341.00",Legal Aid Lower Crime
MOJ,LAA,01/05/2019,Legal Help,LEGAL AID FUND,THALIWAL & VEJA SOLICITORS,1700388:152237423,"29,671.00",Legal Aid Legal Help
MOJ,LAA,01/05/2019,Lower Crime,LEGAL AID FUND,THE JOHNSON PARTNERSHIP,1698045:152237997,"180,000.00",Legal Aid Lower Crime
MOJ,LAA,01/05/2019,Higher Crime,LEGAL AID FUND,THE JOHNSON PARTNERSHIP,1698045:152222216,"107,970.13",Legal Aid Higher Crime
MOJ,LAA,01/05/2019,Higher Crime,LEGAL AID FUND,THE JOHNSON PARTNERSHIP,1698045:152210413,"105,857.75",Legal Aid Higher Crime
MOJ,LAA,01/05/2019,Higher Crime,LEGAL AID FUND,THE JOHNSON PARTNERSHIP,1698045:152210149,"89,975.11",Legal Aid Higher Crime
MOJ,LAA,01/05/2019,Higher Crime,LEGAL AID FUND,THE JOHNSON PARTNERSHIP,1698045:152222247,"89,975.11",Legal Aid Higher Crime
MOJ,LAA,01/05/2019,Lower Crime,LEGAL AID FUND,THE JOHNSON PARTNERSHIP,1698043:152237999,"42,000.00",Legal Aid Lower Crime
MOJ,LAA,01/05/2019,Lower Crime,LEGAL AID FUND,THE JOHNSON PARTNERSHIP,1700275:152238293,"42,000.00",Legal Aid Lower Crime
MOJ,LAA,01/05/2019,Lower Crime,LEGAL AID FUND,THE JOHNSON PARTNERSHIP,1698044:152237998,"37,500.00",Legal Aid Lower Crime
MOJ,LAA,01/05/2019,Lower Crime,LEGAL AID FUND,THE JOHNSON PARTNERSHIP,1696466:152238305,"29,000.00",Legal Aid Lower Crime
MOJ,LAA,01/05/2019,Lower Crime,LEGAL AID FUND,THE JOHNSON PARTNERSHIP,1696372:152239173,"28,136.00",Legal Aid Lower Crime
MOJ,LAA,01/05/2019,Lower Crime,LEGAL AID FUND,THE PURKISS PRACTICE,1697770:152238211,"25,000.00",Legal Aid Lower Crime
MOJ,LAA,01/05/2019,Higher Crime,LEGAL AID FUND,THOMAS BOYD WHYTE,1701139:152244954,"78,115.34",Legal Aid Higher Crime
MOJ,LAA,01/05/2019,Higher Crime,LEGAL AID FUND,THOMAS BOYD WHYTE,1701139:152210389,"63,451.30",Legal Aid Higher Crime
MOJ,LAA,01/05/2019,Lower Crime,LEGAL AID FUND,THOMAS BOYD WHYTE,1701139:152238517,"40,680.00",Legal Aid Lower Crime
MOJ,LAA,01/05/2019,Legal Help,LEGAL AID FUND,THOMPSON & CO SOLICITORS LTD,1698251:152236926,"38,700.00",Legal Aid Legal Help
MOJ,LAA,01/05/2019,Lower Crime,LEGAL AID FUND,TILLY BAILEY & IRVINE LLP,1698157:152238115,"28,100.00",Legal Aid Lower Crime
MOJ,LAA,01/05/2019,Lower Crime,LEGAL AID FUND,TUCKERS SOLICITORS LLP,1700829:152238074,"140,000.00",Legal Aid Lower Crime
MOJ,LAA,01/05/2019,Lower Crime,LEGAL AID FUND,TUCKERS SOLICITORS LLP,1700828:152238189,"105,000.00",Legal Aid Lower Crime
MOJ,LAA,01/05/2019,Lower Crime,LEGAL AID FUND,TUCKERS SOLICITORS LLP,1696425:152238306,"46,300.00",Legal Aid Lower Crime
MOJ,LAA,01/05/2019,Lower Crime,LEGAL AID FUND,TUCKERS SOLICITORS LLP,1700231:152238078,"42,000.00",Legal Aid Lower Crime
MOJ,LAA,01/05/2019,Lower Crime,LEGAL AID FUND,TUCKERS SOLICITORS LLP,1696264:152239210,"35,221.00",Legal Aid Lower Crime
MOJ,LAA,01/05/2019,Lower Crime,LEGAL AID FUND,TUCKERS SOLICITORS LLP,1700830:152238270,"30,000.00",Legal Aid Lower Crime
MOJ,LAA,01/05/2019,Legal Help,LEGAL AID FUND,TURPIN & MILLER LLP,1697830:152237483,"51,444.00",Legal Aid Legal Help
MOJ,LAA,01/05/2019,Lower Crime,LEGAL AID FUND,USMANI KING LTD,1697829:152238440,"45,080.00",Legal Aid Lower Crime
MOJ,LAA,01/05/2019,Lower Crime,LEGAL AID FUND,VCW LAW LTD,1698140:152238099,"29,100.00",Legal Aid Lower Crime
MOJ,LAA,01/05/2019,Civil Representation,LEGAL AID FUND,VENTERS SOLICITORS,1701127:3000002981210024,"33,785.81",Legal Aid Civil Representation
MOJ,LAA,01/05/2019,Civil Representation,LEGAL AID FUND,VENTERS SOLICITORS,1701127:3000002981210021RC,"-28,266.23",Legal Aid Civil Representation
MOJ,LAA,01/05/2019,Lower Crime,LEGAL AID FUND,VHS FLETCHERS,1698024:152238000,"43,200.00",Legal Aid Lower Crime
MOJ,LAA,01/05/2019,Lower Crime,LEGAL AID FUND,VHS FLETCHERS,1699076:152238311,"29,100.00",Legal Aid Lower Crime
MOJ,LAA,01/05/2019,Legal Help,LEGAL AID FUND,VIRGO SOLICITORS LTD,1696558:152237769,"29,145.00",Legal Aid Legal Help
MOJ,LAA,01/05/2019,Lower Crime,LEGAL AID FUND,VYMAN SOLICITORS LTD,1700416:152238786,"33,119.00",Legal Aid Lower Crime
MOJ,LAA,01/05/2019,Higher Crime,LEGAL AID FUND,WAINWRIGHT & CUMMINS LLP,1697748:152222005,"89,975.11",Legal Aid Higher Crime
MOJ,LAA,01/05/2019,Lower Crime,LEGAL AID FUND,WAINWRIGHT & CUMMINS LLP,1697748:152238085,"33,000.00",Legal Aid Lower Crime
MOJ,LAA,01/05/2019,Lower Crime,LEGAL AID FUND,WANNOPS LLP,1697603:152239092,"44,879.00",Legal Aid Lower Crime
MOJ,LAA,01/05/2019,Civil Representation,LEGAL AID FUND,WARD HADAWAY,1700851:3000002379290018,"51,160.63",Legal Aid Civil Representation
MOJ,LAA,01/05/2019,Civil Representation,LEGAL AID FUND,WARD HADAWAY,1700851:3000002379290017RC,"-43,014.38",Legal Aid Civil Representation
MOJ,LAA,01/05/2019,Higher Crime,LEGAL AID FUND,WARWICK I G ALEESON,1699662:152221259,"53,245.80",Legal Aid Higher Crime
MOJ,LAA,01/05/2019,Lower Crime,LEGAL AID FUND,WATSON WOODHOUSE LTD,1700824:152238100,"50,700.00",Legal Aid Lower Crime
MOJ,LAA,01/05/2019,Lower Crime,LEGAL AID FUND,WELLS BURCOMBE LLP,1700237:152238434,"94,508.00",Legal Aid Lower Crime
MOJ,LAA,01/05/2019,Lower Crime,LEGAL AID FUND,WELLS BURCOMBE LLP,1700142:152239027,"55,699.00",Legal Aid Lower Crime
MOJ,LAA,01/05/2019,Lower Crime,LEGAL AID FUND,WESSEX SOLICITORS CHAMBERS,1700199:152238289,"59,000.00",Legal Aid Lower Crime
MOJ,LAA,01/05/2019,Lower Crime,LEGAL AID FUND,WHELDON LAW,1698162:152238013,"27,000.00",Legal Aid Lower Crime
MOJ,LAA,01/05/2019,Civil Representation,LEGAL AID FUND,WILLIAM J TYLER,1697185:3000002907770012,"25,285.90",Legal Aid Civil Representation
MOJ,LAA,01/05/2019,Lower Crime,LEGAL AID FUND,WILLIAMSONS SOLICITORS LTD,1700778:152238150,"41,600.00",Legal Aid Lower Crime
MOJ,LAA,01/05/2019,Civil Representation,LEGAL AID FUND,WILLSONS SOLICITORS,1697784:3000002326380027,"28,048.95",Legal Aid Civil Representation
MOJ,LAA,01/05/2019,Legal Help,LEGAL AID FUND,WILSON SOLICITORS LLP,1700641:152235862,"96,000.00",Legal Aid Legal Help
MOJ,LAA,01/05/2019,Legal Help,LEGAL AID FUND,WILSON SOLICITORS LLP,1700641:152235863,"95,000.00",Legal Aid Legal Help
MOJ,LAA,01/05/2019,Legal Help,LEGAL AID FUND,WILSON SOLICITORS LLP,1699118:152237770,"85,219.00",Legal Aid Legal Help
MOJ,LAA,01/05/2019,Legal Help,LEGAL AID FUND,WILSON SOLICITORS LLP,1700641:152235864,"68,570.00",Legal Aid Legal Help
MOJ,LAA,01/05/2019,Legal Help,LEGAL AID FUND,WILSON SOLICITORS LLP,1699119:152237771,"36,078.00",Legal Aid Legal Help
MOJ,LAA,01/05/2019,Legal Help,LEGAL AID FUND,WOLTON & CO,1700451:152237072,"33,309.00",Legal Aid Legal Help
MOJ,LAA,01/05/2019,Civil Representation,LEGAL AID FUND,WTB SOLICITORS LLP,1700871:3000001985980013,"33,155.36",Legal Aid Civil Representation
MOJ,LAA,07/05/2019,EXP - PURCHASE OF GOODS/SERVICES - SUPPORT - HOSTING,ISD Management and Admin.,REDCENTRIC SOLUTIONS LTD,263369,"58,543.80",IT Costs
MOJ,LAA,07/05/2019,EXP - SHORT-TERM CONTRACT & AGENCY STAFF - FULL COST - Specialist / Professional,IDP - PMO,ALEXANDER MANN SOLUTIONS LTD-2WM,2068452,"26,461.22",IT Costs
MOJ,LAA,07/05/2019,Civil Representation,LEGAL AID FUND,DEIGHTON GUEDALLA,1701400:151997616,"-26,330.72",Legal Aid Civil Representation
MOJ,LAA,07/05/2019,Civil Representation,LEGAL AID FUND,DEIGHTON GUEDALLA,1701400:152153148,"-27,693.21",Legal Aid Civil Representation
MOJ,LAA,07/05/2019,Civil Representation,LEGAL AID FUND,DEIGHTON GUEDALLA,1701400:151688597,"-88,624.02",Legal Aid Civil Representation
MOJ,LAA,08/05/2019,EXP - MISCELLANEOUS EXPENDITURE - Litigator,Central Funds,MESSRS GORDON SHINE & CO,M1112229/125996,"29,130.33",Fund Costs
MOJ,LAA,08/05/2019,Higher Crime,LEGAL AID FUND,ABRAHAMS LAW LTD,1703142:152284658,"25,696.32",Legal Aid Higher Crime
MOJ,LAA,08/05/2019,Higher Crime,LEGAL AID FUND,ACA LAW LTD,1702843:152272540,"107,574.07",Legal Aid Higher Crime
MOJ,LAA,08/05/2019,Higher Crime,LEGAL AID FUND,AHMED NADIM,1702210:152283272,"37,344.48",Legal Aid Higher Crime
MOJ,LAA,08/05/2019,Civil Representation,LEGAL AID FUND,AMI C.BARTHOLOMEW,1704525:3000003544990014,"29,738.88",Legal Aid Civil Representation
MOJ,LAA,08/05/2019,Higher Crime,LEGAL AID FUND,AMOSU ROBINSHAW LTD,1702855:152293501,"49,374.42",Legal Aid Higher Crime
MOJ,LAA,08/05/2019,Civil Representation,LEGAL AID FUND,ANDREW K BAGCHI QC,1704452:3000002308800012,"59,389.20",Legal Aid Civil Representation
MOJ,LAA,08/05/2019,Higher Crime,LEGAL AID FUND,ANTHONY C BERTHAM,1702103:152324184,"31,140.00",Legal Aid Higher Crime
MOJ,LAA,08/05/2019,Higher Crime,LEGAL AID FUND,ARCHER MAHER SOLICITORS,1703608:152301027,"89,975.11",Legal Aid Higher Crime
MOJ,LAA,08/05/2019,Civil Representation,LEGAL AID FUND,BARRETT & THOMSON,1705274:3000000417100035RC,"-36,000.00",Legal Aid Civil Representation
MOJ,LAA,08/05/2019,Civil Representation,LEGAL AID FUND,BENJAMIN JENKINS,1704118:3000004071120023,"26,740.80",Legal Aid Civil Representation
MOJ,LAA,08/05/2019,Higher Crime,LEGAL AID FUND,BERNARD G TETLOW QC,1702729:152293878,"69,400.26",Legal Aid Higher Crime
MOJ,LAA,08/05/2019,Higher Crime,LEGAL AID FUND,BIRNBERG PEIRCE LTD,1704914:152284638,"63,269.42",Legal Aid Higher Crime
MOJ,LAA,08/05/2019,Higher Crime,LEGAL AID FUND,BLACKFORDS LLP,1705267:152272926,"56,059.13",Legal Aid Higher Crime
MOJ,LAA,08/05/2019,Higher Crime,LEGAL AID FUND,BROCKBANK CURWEN CAIN & HALL LTD,1705052:152292647,"34,946.75",Legal Aid Higher Crime
MOJ,LAA,08/05/2019,Higher Crime,LEGAL AID FUND,CANTARIS LOCKE SOLICITORS,1703603:152293379,"29,664.55",Legal Aid Higher Crime
MOJ,LAA,08/05/2019,Higher Crime,LEGAL AID FUND,CHLOE FORDHAM,1704456:152272676,"31,320.00",Legal Aid Higher Crime
MOJ,LAA,08/05/2019,Higher Crime,LEGAL AID FUND,COBLEYS SOLICITORS LTD,1702844:152294042,"72,588.90",Legal Aid Higher Crime
MOJ,LAA,08/05/2019,Civil Representation,LEGAL AID FUND,CREIGHTON & PARTNERS,1702905:3000002898900012,"26,631.54",Legal Aid Civil Representation
MOJ,LAA,08/05/2019,Higher Crime,LEGAL AID FUND,DAVID B NATHAN QC,1703811:152273338,"40,620.00",Legal Aid Higher Crime
MOJ,LAA,08/05/2019,Legal Help,LEGAL AID FUND,DEIGHTON PIERCE GLYNN LTD,1702742:152323531,"53,524.37",Legal Aid Legal Help
MOJ,LAA,08/05/2019,Higher Crime,LEGAL AID FUND,DUNCAN LEWIS SOLICITORS  LTD,1704903:152273056,"89,975.11",Legal Aid Higher Crime
MOJ,LAA,08/05/2019,Higher Crime,LEGAL AID FUND,EBR ATTRIDGE LLP,1702749:152284530,"32,851.57",Legal Aid Higher Crime
MOJ,LAA,08/05/2019,Higher Crime,LEGAL AID FUND,EBR ATTRIDGE LLP,1702751:152293684,"30,876.94",Legal Aid Higher Crime
MOJ,LAA,08/05/2019,Civil Representation,LEGAL AID FUND,ELIZABETH ISAACS QC,1704608:3000004624110011,"43,254.00",Legal Aid Civil Representation
MOJ,LAA,08/05/2019,Lower Crime,LEGAL AID FUND,ERIC ROBINSON SOLICITORS,1703316:152236489,"-29,600.00",Legal Aid Lower Crime
MOJ,LAA,08/05/2019,Higher Crime,LEGAL AID FUND,FELLOWES SOLICITORS LLP,1705238:152284603,"48,033.06",Legal Aid Higher Crime
MOJ,LAA,08/05/2019,Civil Representation,LEGAL AID FUND,FLG LTD,1702817:3000001158150028,"36,604.80",Legal Aid Civil Representation
MOJ,LAA,08/05/2019,Higher Crime,LEGAL AID FUND,FORBES SOLICITORS,1704936:152292655,"33,503.98",Legal Aid Higher Crime
MOJ,LAA,08/05/2019,Civil Representation,LEGAL AID FUND,FRANK T FEEHAN QC,1702396:3000001975370021,"29,269.48",Legal Aid Civil Representation
MOJ,LAA,08/05/2019,Civil Representation,LEGAL AID FUND,FRASER HOLLANDS SOLICITORS,1703728:3000000698500024,"69,542.43",Legal Aid Civil Representation
MOJ,LAA,08/05/2019,Civil Representation,LEGAL AID FUND,FUTTER CHAPMAN FAMILY LAW SOLICITORS,1704991:3000002535880016,"25,988.17",Legal Aid Civil Representation
MOJ,LAA,08/05/2019,Civil Representation,LEGAL AID FUND,GOODMAN RAY SOLICITORS LLP,1704826:3000002871800008,"26,556.43",Legal Aid Civil Representation
MOJ,LAA,08/05/2019,Civil Representation,LEGAL AID FUND,GORDON SEMPLE,1702489:3000004336550009,"25,039.49",Legal Aid Civil Representation
MOJ,LAA,08/05/2019,Civil Representation,LEGAL AID FUND,HANNAH METTAM,1702712:3000000450470015,"39,727.33",Legal Aid Civil Representation
MOJ,LAA,08/05/2019,Higher Crime,LEGAL AID FUND,HANSON WOODS SOLICITORS  LLP,1702804:152272082,"63,229.01",Legal Aid Higher Crime
MOJ,LAA,08/05/2019,Higher Crime,LEGAL AID FUND,HANSON WOODS SOLICITORS  LLP,1702804:152284623,"44,345.06",Legal Aid Higher Crime
MOJ,LAA,08/05/2019,Higher Crime,LEGAL AID FUND,HASAN SOLICITORS-ADVOCATE,1704004:152273438,"39,279.96",Legal Aid Higher Crime
MOJ,LAA,08/05/2019,Civil Representation,LEGAL AID FUND,HECHT MONTGOMERY SOLICITORS,1701922:3000003086650010,"33,928.25",Legal Aid Civil Representation
MOJ,LAA,08/05/2019,Higher Crime,LEGAL AID FUND,HEDLEY SOLICITORS,1702745:152285155,"105,857.75",Legal Aid Higher Crime
MOJ,LAA,08/05/2019,Higher Crime,LEGAL AID FUND,HUSSAIN SOLICITORS LTD,1704770:152272324,"89,975.11",Legal Aid Higher Crime
MOJ,LAA,08/05/2019,Higher Crime,LEGAL AID FUND,I A LAW,1703577:152282382,"65,378.40",Legal Aid Higher Crime
MOJ,LAA,08/05/2019,Higher Crime,LEGAL AID FUND,IMRAN KHAN & PARTNERS,1705228:152284648,"33,261.48",Legal Aid Higher Crime
MOJ,LAA,08/05/2019,Civil Representation,LEGAL AID FUND,IRWIN MITCHELL LLP,1705092:152322941,"-38,320.32",Legal Aid Civil Representation
MOJ,LAA,08/05/2019,Civil Representation,LEGAL AID FUND,JEREMY P WESTON,1702709:3000002669950019,"28,738.80",Legal Aid Civil Representation
MOJ,LAA,08/05/2019,Higher Crime,LEGAL AID FUND,JOHN FEMI-OLA QC,1703896:152272173,"30,960.00",Legal Aid Higher Crime
MOJ,LAA,08/05/2019,Civil Representation,LEGAL AID FUND,JOHN JACKSON,1702298:3000001826510011,"46,742.40",Legal Aid Civil Representation
MOJ,LAA,08/05/2019,Higher Crime,LEGAL AID FUND,JONAS ROY BLOOM,1704786:152294026,"105,857.75",Legal Aid Higher Crime
MOJ,LAA,08/05/2019,Higher Crime,LEGAL AID FUND,JOSEPH HILL & CO,1703117:152301553,"25,570.65",Legal Aid Higher Crime
MOJ,LAA,08/05/2019,Higher Crime,LEGAL AID FUND,KALBER STRUCKLEY & CO,1703532:152285157,"68,099.45",Legal Aid Higher Crime
MOJ,LAA,08/05/2019,Higher Crime,LEGAL AID FUND,KANGS SOLICITORS,1705213:152272524,"40,250.75",Legal Aid Higher Crime
MOJ,LAA,08/05/2019,Civil Representation,LEGAL AID FUND,KATE M GRIEVE,1702404:3000003203290018,"27,572.59",Legal Aid Civil Representation
MOJ,LAA,08/05/2019,Higher Crime,LEGAL AID FUND,KEITH DYSON SOLICITORS LTD,1703025:152285159,"107,574.07",Legal Aid Higher Crime
MOJ,LAA,08/05/2019,Higher Crime,LEGAL AID FUND,KINGSMAN SOLICITORS LTD,1703544:152284932,"37,791.76",Legal Aid Higher Crime
MOJ,LAA,08/05/2019,Higher Crime,LEGAL AID FUND,KNIGHTSBRIDGE SOLICITORS,1703703:152283726,"29,664.55",Legal Aid Higher Crime
MOJ,LAA,08/05/2019,Civil Representation,LEGAL AID FUND,LANGLEY WELLINGTON LLP,1705253:3000002544170036,"27,894.13",Legal Aid Civil Representation
MOJ,LAA,08/05/2019,Higher Crime,LEGAL AID FUND,LANSBURY WORTHINGTON LTD,1703525:152272341,"37,269.17",Legal Aid Higher Crime
MOJ,LAA,08/05/2019,Civil Representation,LEGAL AID FUND,LEGAL SERVICES FOR CHILDREN,1702746:3000003496130010,"37,467.11",Legal Aid Civil Representation
MOJ,LAA,08/05/2019,Higher Crime,LEGAL AID FUND,LEONARD SMITH QC,1704237:152273262,"30,900.00",Legal Aid Higher Crime
MOJ,LAA,08/05/2019,Civil Representation,LEGAL AID FUND,LISA J HOUGHTON,1702574:152278565,"32,254.20",Legal Aid Civil Representation
MOJ,LAA,08/05/2019,Higher Crime,LEGAL AID FUND,LLOYDS PR SOLICITORS,1702799:152285154,"105,857.75",Legal Aid Higher Crime
MOJ,LAA,08/05/2019,Civil Representation,LEGAL AID FUND,LOUISE MACLYNN,1704255:3000001580900037,"35,534.68",Legal Aid Civil Representation
MOJ,LAA,08/05/2019,Civil Representation,LEGAL AID FUND,LOUISE MACLYNN,1704255:3000001580900030RC,"-35,037.02",Legal Aid Civil Representation
MOJ,LAA,08/05/2019,Higher Crime,LEGAL AID FUND,MARK A WATSON,1701707:152272245,"39,848.52",Legal Aid Higher Crime
MOJ,LAA,08/05/2019,Higher Crime,LEGAL AID FUND,MAYA S CHOPRA,1701625:152294073,"31,200.00",Legal Aid Higher Crime
MOJ,LAA,08/05/2019,Higher Crime,LEGAL AID FUND,MAYFAIR SOLICITORS,1703534:152272310,"101,402.63",Legal Aid Higher Crime
MOJ,LAA,08/05/2019,Higher Crime,LEGAL AID FUND,MCQUEENS SOLICITORS LLP,1704738:152283306,"50,953.30",Legal Aid Higher Crime
MOJ,LAA,08/05/2019,Higher Crime,LEGAL AID FUND,MICHAEL J MAHER,1702113:152298507,"94,379.68",Legal Aid Higher Crime
MOJ,LAA,08/05/2019,Civil Representation,LEGAL AID FUND,MILES & PARTNERS LLP,1705098:3000002638440022,"36,014.11",Legal Aid Civil Representation
MOJ,LAA,08/05/2019,Civil Representation,LEGAL AID FUND,MILES & PARTNERS LLP,1705098:3000003375680010,"29,158.19",Legal Aid Civil Representation
MOJ,LAA,08/05/2019,Higher Crime,LEGAL AID FUND,MUMIN I M HASHIM,1704441:152290035,"37,778.40",Legal Aid Higher Crime
MOJ,LAA,08/05/2019,Civil Representation,LEGAL AID FUND,NICHOLAS W STONOR,1704574:3000001855210022,"63,504.00",Legal Aid Civil Representation
MOJ,LAA,08/05/2019,Civil Representation,LEGAL AID FUND,NORTON PESKETT SOLICITORS,1703016:3000002557630027,"56,548.55",Legal Aid Civil Representation
MOJ,LAA,08/05/2019,Civil Representation,LEGAL AID FUND,NORTON PESKETT SOLICITORS,1703016:3000002557630018RC,"-35,623.80",Legal Aid Civil Representation
MOJ,LAA,08/05/2019,Civil Representation,LEGAL AID FUND,ORLA C S GRANT,1704326:3000001663910018,"42,240.29",Legal Aid Civil Representation
MOJ,LAA,08/05/2019,Civil Representation,LEGAL AID FUND,ORLA C S GRANT,1704326:152008906,"30,499.20",Legal Aid Civil Representation
MOJ,LAA,08/05/2019,Civil Representation,LEGAL AID FUND,ORLA C S GRANT,1704326:3000001773170011RC,"-41,900.69",Legal Aid Civil Representation
MOJ,LAA,08/05/2019,Higher Crime,LEGAL AID FUND,OWEN WHITE & CATLIN,1705241:152293676,"46,556.38",Legal Aid Higher Crime
MOJ,LAA,08/05/2019,Civil Representation,LEGAL AID FUND,PAMELA SCRIVEN QC,1701965:3000003311780020,"33,249.30",Legal Aid Civil Representation
MOJ,LAA,08/05/2019,Civil Representation,LEGAL AID FUND,PATRICK LAWRENCE PARTNERSHIP LLP,1704890:3000002833110011,"25,574.26",Legal Aid Civil Representation
MOJ,LAA,08/05/2019,Higher Crime,LEGAL AID FUND,PETER L WILCOCK,1704624:152298676,"79,596.00",Legal Aid Higher Crime
MOJ,LAA,08/05/2019,Higher Crime,LEGAL AID FUND,RAHMAN RAVELLI SOLICITORS LTD,1703543:152284985,"49,210.19",Legal Aid Higher Crime
MOJ,LAA,08/05/2019,Higher Crime,LEGAL AID FUND,RAHMAN RAVELLI SOLICITORS LTD,1703543:152272217,"43,555.55",Legal Aid Higher Crime
MOJ,LAA,08/05/2019,Higher Crime,LEGAL AID FUND,RAHMAN RAVELLI SOLICITORS LTD,1703543:152284934,"-43,555.55",Legal Aid Higher Crime
MOJ,LAA,08/05/2019,Civil Representation,LEGAL AID FUND,RAMSDENS SOLICITORS LLP,1702029:3000003318280020,"42,770.49",Legal Aid Civil Representation
MOJ,LAA,08/05/2019,Civil Representation,LEGAL AID FUND,RAMSDENS SOLICITORS LLP,1704652:3000002136410015,"41,315.22",Legal Aid Civil Representation
MOJ,LAA,08/05/2019,Civil Representation,LEGAL AID FUND,REBEKAH M WILSON,1704583:3000002308800013,"35,121.60",Legal Aid Civil Representation
MOJ,LAA,08/05/2019,Higher Crime,LEGAL AID FUND,RILEY HAYES & CO,1702994:152272270,"27,239.01",Legal Aid Higher Crime
MOJ,LAA,08/05/2019,Civil Representation,LEGAL AID FUND,RMNJ SOLICITORS ***,1702984:3000003326680014,"25,818.79",Legal Aid Civil Representation
MOJ,LAA,08/05/2019,Higher Crime,LEGAL AID FUND,RODNEY E FERM,1702264:152273460,"28,642.73",Legal Aid Higher Crime
MOJ,LAA,08/05/2019,Civil Representation,LEGAL AID FUND,ROYDS WITHY KING LLP,1703243:3000001580900036,"34,932.68",Legal Aid Civil Representation
MOJ,LAA,08/05/2019,Higher Crime,LEGAL AID FUND,RUDI F FORTSON QC,1704614:152292767,"94,440.00",Legal Aid Higher Crime
MOJ,LAA,08/05/2019,Higher Crime,LEGAL AID FUND,S SATHA & CO LTD,1705082:152293463,"28,095.01",Legal Aid Higher Crime
MOJ,LAA,08/05/2019,Civil Representation,LEGAL AID FUND,SARA A RUDMAN,1704102:3000003058250009,"25,056.00",Legal Aid Civil Representation
MOJ,LAA,08/05/2019,Civil Representation,LEGAL AID FUND,SARA A RUDMAN,1704102:3000002599380019RC,"-31,363.20",Legal Aid Civil Representation
MOJ,LAA,08/05/2019,Higher Crime,LEGAL AID FUND,SHAW GRAHAM KERSH,1704915:152294013,"71,545.90",Legal Aid Higher Crime
MOJ,LAA,08/05/2019,Civil Representation,LEGAL AID FUND,SILVERMAN LIVERMORE,1702851:3000003680890024,"26,259.54",Legal Aid Civil Representation
MOJ,LAA,08/05/2019,Higher Crime,LEGAL AID FUND,STEPHEN M A KAMLISH QC,1704641:152272589,"27,180.00",Legal Aid Higher Crime
MOJ,LAA,08/05/2019,Civil Representation,LEGAL AID FUND,STONE KING LLP,1703239:3000001089520011,"27,750.81",Legal Aid Civil Representation
MOJ,LAA,08/05/2019,Civil Representation,LEGAL AID FUND,TALBOTS LAW LTD,1703934:3000002373850020,"36,115.20",Legal Aid Civil Representation
MOJ,LAA,08/05/2019,Lower Crime,LEGAL AID FUND,THE JOHNSON PARTNERSHIP,1705010:152290686,"27,122.78",Legal Aid Lower Crime
MOJ,LAA,08/05/2019,Higher Crime,LEGAL AID FUND,THOMPSONS,1703283:152293036,"61,306.37",Legal Aid Higher Crime
MOJ,LAA,08/05/2019,Civil Representation,LEGAL AID FUND,TIMMS SOLICITORS,1704962:3000000702330033,"39,741.37",Legal Aid Civil Representation
MOJ,LAA,08/05/2019,Higher Crime,LEGAL AID FUND,TRACY J AYLING QC,1702260:152302161,"40,620.00",Legal Aid Higher Crime
MOJ,LAA,08/05/2019,Higher Crime,LEGAL AID FUND,TUCKERS SOLICITORS LLP,1705035:152292662,"100,417.21",Legal Aid Higher Crime
MOJ,LAA,08/05/2019,Higher Crime,LEGAL AID FUND,TUCKERS SOLICITORS LLP,1705036:152283716,"89,975.11",Legal Aid Higher Crime
MOJ,LAA,08/05/2019,Higher Crime,LEGAL AID FUND,TYLER HOFFMAN LTD,1701668:152293287,"26,893.52",Legal Aid Higher Crime
MOJ,LAA,08/05/2019,Higher Crime,LEGAL AID FUND,UK LAW SOLICITORS,1704731:152283547,"28,088.63",Legal Aid Higher Crime
MOJ,LAA,08/05/2019,Higher Crime,LEGAL AID FUND,VIRDEES SOLICITORS LTD,1702692:152273573,"63,845.45",Legal Aid Higher Crime
MOJ,LAA,08/05/2019,Civil Representation,LEGAL AID FUND,WACE MORGAN SOLICITORS,1705146:3000002796080003,"27,251.02",Legal Aid Civil Representation
MOJ,LAA,08/05/2019,Higher Crime,LEGAL AID FUND,WALKER LAHIVE,1704981:152272272,"40,748.54",Legal Aid Higher Crime
MOJ,LAA,08/05/2019,Higher Crime,LEGAL AID FUND,WANNOPS LLP,1702676:152284013,"30,153.74",Legal Aid Higher Crime
MOJ,LAA,08/05/2019,Civil Representation,LEGAL AID FUND,WOLFERSTANS,1705004:3000004271520006,"29,808.00",Legal Aid Civil Representation
MOJ,LAA,08/05/2019,Higher Crime,LEGAL AID FUND,ZMS LEGAL LTD TA ZMS SOLICITORS,1702831:152284650,"49,729.07",Legal Aid Higher Crime
MOJ,LAA,08/05/2019,Higher Crime,LEGAL AID FUND,ZMS LEGAL LTD TA ZMS SOLICITORS,1702831:152302509,"29,844.34",Legal Aid Higher Crime
MOJ,LAA,10/05/2019,EXP - PURCHASE OF GOODS/SERVICES - SUPPORT - SECURITY,Business Systems Mgmt,VERSION 1 SOLUTION LTD,INVSOL003552,"56,206.81",IT Costs
MOJ,LAA,10/05/2019,Civil Representation,LEGAL AID FUND,KATHERINE WOOD,1705482:3000001863600019RC,"-51,321.60",Legal Aid Civil Representation
MOJ,LAA,13/05/2019,Civil Representation,LEGAL AID FUND,HANNAH M MARKHAM QC,1705490:3000001366840039RC,"-31,041.36",Legal Aid Civil Representation
MOJ,LAA,13/05/2019,Civil Representation,LEGAL AID FUND,RUTH PHILLIPS,1705500:3000001863600018RC,"-34,214.40",Legal Aid Civil Representation
MOJ,LAA,15/05/2019,EXP - PURCHASE OF GOODS/SERVICES - HOSTING - Hosting,Business Systems Mgmt,CAPGEMINI UK PLC,2.60E+12,"90,033.00",IT Costs
MOJ,LAA,15/05/2019,Higher Crime,LEGAL AID FUND,ABBEY LAW SOLICITORS,1709066:152372951,"60,310.56",Legal Aid Higher Crime
MOJ,LAA,15/05/2019,Higher Crime,LEGAL AID FUND,ACA LAW LTD,1709198:152337198,"89,975.11",Legal Aid Higher Crime
MOJ,LAA,15/05/2019,Civil Representation,LEGAL AID FUND,ACCESS LAW LLP,1707090:3000002378350039,"40,626.23",Legal Aid Civil Representation
MOJ,LAA,15/05/2019,Civil Representation,LEGAL AID FUND,ACCESS LAW LLP,1707090:3000002378350031RC,"-26,568.00",Legal Aid Civil Representation
MOJ,LAA,15/05/2019,Higher Crime,LEGAL AID FUND,ACHILLEA & CO,1707212:152355316,"34,294.40",Legal Aid Higher Crime
MOJ,LAA,15/05/2019,Higher Crime,LEGAL AID FUND,ALEXANDER BENNETT,1707888:152355798,"66,746.68",Legal Aid Higher Crime
MOJ,LAA,15/05/2019,Higher Crime,LEGAL AID FUND,ALEXANDER J ROSE,1708651:152374177,"67,433.16",Legal Aid Higher Crime
MOJ,LAA,15/05/2019,Higher Crime,LEGAL AID FUND,ALEXANDER JOHNSON,1709547:152345874,"89,975.11",Legal Aid Higher Crime
MOJ,LAA,15/05/2019,Higher Crime,LEGAL AID FUND,ALPHA SOLICITORS & ADVOCATES,1708060:152346674,"84,490.97",Legal Aid Higher Crime
MOJ,LAA,15/05/2019,Higher Crime,LEGAL AID FUND,ALTAF SOLICITORS LTD,1707027:152355290,"107,574.07",Legal Aid Higher Crime
MOJ,LAA,15/05/2019,Higher Crime,LEGAL AID FUND,AMOSU ROBINSHAW LTD,1707222:152355181,"33,180.65",Legal Aid Higher Crime
MOJ,LAA,15/05/2019,Higher Crime,LEGAL AID FUND,ANDREW STORCH SOLICITORS LTD,1707381:152355406,"50,619.03",Legal Aid Higher Crime
MOJ,LAA,15/05/2019,Higher Crime,LEGAL AID FUND,ANURAG MOHINDRU,1708385:152327375,"32,343.26",Legal Aid Higher Crime
MOJ,LAA,15/05/2019,Higher Crime,LEGAL AID FUND,APPLEBY SHAW LTD,1705889:152326303,"65,378.40",Legal Aid Higher Crime
MOJ,LAA,15/05/2019,Higher Crime,LEGAL AID FUND,BANKS & PARTNERS LTD,1705731:152374640,"33,322.10",Legal Aid Higher Crime
MOJ,LAA,15/05/2019,Higher Crime,LEGAL AID FUND,BERRI'S LAW LLP,1705736:152346730,"89,975.11",Legal Aid Higher Crime
MOJ,LAA,15/05/2019,Higher Crime,LEGAL AID FUND,BIRD & CO SOLICITORS LLP,1707273:152373123,"26,146.45",Legal Aid Higher Crime
MOJ,LAA,15/05/2019,Higher Crime,LEGAL AID FUND,BIRNBERG PEIRCE LTD,1707165:152372288,"107,574.07",Legal Aid Higher Crime
MOJ,LAA,15/05/2019,Higher Crime,LEGAL AID FUND,BIRNBERG PEIRCE LTD,1707165:152337699,"35,294.28",Legal Aid Higher Crime
MOJ,LAA,15/05/2019,Higher Crime,LEGAL AID FUND,BIVONAS LLP,1707331:152336159,"37,296.80",Legal Aid Higher Crime
MOJ,LAA,15/05/2019,Civil Representation,LEGAL AID FUND,BORNEO MARTELL TURNER COULSTON LLP,1707270:3000003012100016,"32,760.50",Legal Aid Civil Representation
MOJ,LAA,15/05/2019,Higher Crime,LEGAL AID FUND,BRADY EASTWOOD PIERCE & STEWART,1707559:152326899,"89,975.11",Legal Aid Higher Crime
MOJ,LAA,15/05/2019,Civil Representation,LEGAL AID FUND,BRENDAN FLEMING SOLICITORS,1709524:3000002972270017,"27,559.78",Legal Aid Civil Representation
MOJ,LAA,15/05/2019,Higher Crime,LEGAL AID FUND,BROOKLYN SOLICITORS LTD,1705729:152373109,"41,796.78",Legal Aid Higher Crime
MOJ,LAA,15/05/2019,Higher Crime,LEGAL AID FUND,BROOKLYN SOLICITORS LTD,1709159:152337814,"38,288.27",Legal Aid Higher Crime
MOJ,LAA,15/05/2019,Higher Crime,LEGAL AID FUND,BROOKLYN SOLICITORS LTD,1705729:152355179,"26,414.63",Legal Aid Higher Crime
MOJ,LAA,15/05/2019,Higher Crime,LEGAL AID FUND,BURRELL JENKINS SOLICITORS,1709081:152345553,"29,664.55",Legal Aid Higher Crime
MOJ,LAA,15/05/2019,Civil Representation,LEGAL AID FUND,CASEYS LEGAL SERVICES LTD,1707531:3000001782270002,"41,453.51",Legal Aid Civil Representation
MOJ,LAA,15/05/2019,Higher Crime,LEGAL AID FUND,CHARTER SOLICITORS,1705867:152345969,"81,272.04",Legal Aid Higher Crime
MOJ,LAA,15/05/2019,Higher Crime,LEGAL AID FUND,CITY LAW CHAMBERS LTD,1707019:152335732,"41,482.39",Legal Aid Higher Crime
MOJ,LAA,15/05/2019,Higher Crime,LEGAL AID FUND,COHEN CRAMER,1707050:152355986,"87,025.72",Legal Aid Higher Crime
MOJ,LAA,15/05/2019,Civil Representation,LEGAL AID FUND,COLES MILLER SOLICITORS LLP,1706175:3000003672200023,"32,991.13",Legal Aid Civil Representation
MOJ,LAA,15/05/2019,Civil Representation,LEGAL AID FUND,COLES MILLER SOLICITORS LLP,1706175:3000003672200019RC,"-27,442.80",Legal Aid Civil Representation
MOJ,LAA,15/05/2019,Higher Crime,LEGAL AID FUND,COLLINGWOOD F J THOMPSON,1709673:152350872,"41,033.33",Legal Aid Higher Crime
MOJ,LAA,15/05/2019,Higher Crime,LEGAL AID FUND,COLLINGWOOD F J THOMPSON,1709673:152350873,"41,033.33",Legal Aid Higher Crime
MOJ,LAA,15/05/2019,Higher Crime,LEGAL AID FUND,COWANS SOLICITORS LLP,1707204:152374223,"39,396.17",Legal Aid Higher Crime
MOJ,LAA,15/05/2019,Civil Representation,LEGAL AID FUND,CREIGHTON & PARTNERS,1709138:3000002505680016,"48,497.25",Legal Aid Civil Representation
MOJ,LAA,15/05/2019,Higher Crime,LEGAL AID FUND,DANIEL J THOMAS,1708610:152346988,"25,380.00",Legal Aid Higher Crime
MOJ,LAA,15/05/2019,Civil Representation,LEGAL AID FUND,DAVID GRAY LLP,1707129:3000002400660020,"34,863.60",Legal Aid Civil Representation
MOJ,LAA,15/05/2019,Higher Crime,LEGAL AID FUND,DE MAIDS SOLICITORS & ADVOCATES,1707434:152327123,"89,975.11",Legal Aid Higher Crime
MOJ,LAA,15/05/2019,Civil Representation,LEGAL AID FUND,DEIGHTON PIERCE GLYNN LTD,1706151:152379236,"25,376.05",Legal Aid Civil Representation
MOJ,LAA,15/05/2019,Higher Crime,LEGAL AID FUND,DEVAS KEOGH JAMES SOLICITORS LTD,1705728:152336413,"73,636.13",Legal Aid Higher Crime
MOJ,LAA,15/05/2019,Higher Crime,LEGAL AID FUND,DRAYCOTT BROWNE LTD,1709281:152337305,"54,560.44",Legal Aid Higher Crime
MOJ,LAA,15/05/2019,Higher Crime,LEGAL AID FUND,EBR ATTRIDGE LLP,1709083:152336944,"59,337.67",Legal Aid Higher Crime
MOJ,LAA,15/05/2019,Higher Crime,LEGAL AID FUND,EDWARD J A HENRY,1708165:152346465,"51,660.00",Legal Aid Higher Crime
MOJ,LAA,15/05/2019,Higher Crime,LEGAL AID FUND,EDWARD P RENVOIZE,1708769:152337861,"27,909.24",Legal Aid Higher Crime
MOJ,LAA,15/05/2019,Higher Crime,LEGAL AID FUND,ELDWICK LAW,1705816:152346028,"44,875.68",Legal Aid Higher Crime
MOJ,LAA,15/05/2019,Higher Crime,LEGAL AID FUND,EMMA C AKUWUDIKE,1708921:152346587,"27,180.00",Legal Aid Higher Crime
MOJ,LAA,15/05/2019,Civil Representation,LEGAL AID FUND,ENOCH EVANS LLP,1707483:3000002445150024,"27,435.60",Legal Aid Civil Representation
MOJ,LAA,15/05/2019,Civil Representation,LEGAL AID FUND,ENOCH EVANS LLP,1707483:3000002445150018RC,"-25,334.88",Legal Aid Civil Representation
MOJ,LAA,15/05/2019,Civil Representation,LEGAL AID FUND,ERIC ROBINSON SOLICITORS,1707605:3000002378250022,"37,897.53",Legal Aid Civil Representation
MOJ,LAA,15/05/2019,Civil Representation,LEGAL AID FUND,EUFRON VAN BESOUW,1708909:3000001300130016RC,"-26,720.27",Legal Aid Civil Representation
MOJ,LAA,15/05/2019,Higher Crime,LEGAL AID FUND,FARADAYS SOLICITORS LTD,1707177:152337319,"67,010.42",Legal Aid Higher Crime
MOJ,LAA,15/05/2019,Higher Crime,LEGAL AID FUND,FARLEYS SOLICITORS LLP,1709444:152355590,"79,360.58",Legal Aid Higher Crime
MOJ,LAA,15/05/2019,Higher Crime,LEGAL AID FUND,FARLEYS SOLICITORS LLP,1709444:152346871,"74,953.44",Legal Aid Higher Crime
MOJ,LAA,15/05/2019,Higher Crime,LEGAL AID FUND,FAVELL SMITH & LAWSON,1707299:152335861,"36,207.65",Legal Aid Higher Crime
MOJ,LAA,15/05/2019,Civil Representation,LEGAL AID FUND,FISHER JONES GREENWOOD LLP,1705531:11684443,"28,986.40",Legal Aid Civil Representation
MOJ,LAA,15/05/2019,Higher Crime,LEGAL AID FUND,FORBES SOLICITORS,1707210:152354771,"105,857.75",Legal Aid Higher Crime
MOJ,LAA,15/05/2019,Higher Crime,LEGAL AID FUND,FORBES SOLICITORS,1707210:152337162,"29,664.55",Legal Aid Higher Crime
MOJ,LAA,15/05/2019,Higher Crime,LEGAL AID FUND,FOXES SOLICITORS,1709002:152354899,"66,795.91",Legal Aid Higher Crime
MOJ,LAA,15/05/2019,Higher Crime,LEGAL AID FUND,FOXES SOLICITORS,1709002:152336795,"63,922.02",Legal Aid Higher Crime
MOJ,LAA,15/05/2019,Higher Crime,LEGAL AID FUND,G T STEWART LTD,1706956:152355293,"29,664.55",Legal Aid Higher Crime
MOJ,LAA,15/05/2019,Civil Representation,LEGAL AID FUND,GAYNOR HALL,1705965:3000003023470028,"35,337.60",Legal Aid Civil Representation
MOJ,LAA,15/05/2019,Higher Crime,LEGAL AID FUND,GORDON SHINE & COMPANY SOLICITORS,1709592:152346987,"71,267.57",Legal Aid Higher Crime
MOJ,LAA,15/05/2019,Higher Crime,LEGAL AID FUND,GURNEY HARDEN SOLICITORS LTD,1706998:152355398,"62,017.51",Legal Aid Higher Crime
MOJ,LAA,15/05/2019,Higher Crime,LEGAL AID FUND,HARDING EVANS LLP,1707535:152355995,"30,866.83",Legal Aid Higher Crime
MOJ,LAA,15/05/2019,Higher Crime,LEGAL AID FUND,HARWOOD SOLICITORS,1705855:152346014,"107,574.07",Legal Aid Higher Crime
MOJ,LAA,15/05/2019,Civil Representation,LEGAL AID FUND,HAY & KILNER LLP,1707323:3000001855210023,"60,319.71",Legal Aid Civil Representation
MOJ,LAA,15/05/2019,Civil Representation,LEGAL AID FUND,HAY & KILNER LLP,1707323:3000001855210011RC,"-42,174.00",Legal Aid Civil Representation
MOJ,LAA,15/05/2019,Civil Representation,LEGAL AID FUND,HELEN M G KHAN,1706386:3000003116550001,"25,260.00",Legal Aid Civil Representation
MOJ,LAA,15/05/2019,Civil Representation,LEGAL AID FUND,HIBBERTS LLP,1709318:3000002693890019,"27,827.73",Legal Aid Civil Representation
MOJ,LAA,15/05/2019,Higher Crime,LEGAL AID FUND,HODGE JONES & ALLEN SOLICITORS LTD,1709542:152333444,"29,924.69",Legal Aid Higher Crime
MOJ,LAA,15/05/2019,Higher Crime,LEGAL AID FUND,HODGE JONES & ALLEN SOLICITORS LTD,1705797:152345690,"25,690.51",Legal Aid Higher Crime
MOJ,LAA,15/05/2019,Civil Representation,LEGAL AID FUND,HOPKIN MURRAY BESKINE LTD,1709664:3000002095920015,"26,159.94",Legal Aid Civil Representation
MOJ,LAA,15/05/2019,Higher Crime,LEGAL AID FUND,HUSSAIN SOLICITORS LTD,1709216:152347059,"29,664.55",Legal Aid Higher Crime
MOJ,LAA,15/05/2019,Civil Representation,LEGAL AID FUND,IRWIN MITCHELL LLP,1707339:3000002711600029,"25,416.64",Legal Aid Civil Representation
MOJ,LAA,15/05/2019,Higher Crime,LEGAL AID FUND,ISAAC SOLICITORS,1705866:152337180,"89,124.13",Legal Aid Higher Crime
MOJ,LAA,15/05/2019,Higher Crime,LEGAL AID FUND,JACKSON LEES GROUP LTD,1708252:152326870,"89,975.11",Legal Aid Higher Crime
MOJ,LAA,15/05/2019,Higher Crime,LEGAL AID FUND,JACOBS & TODD,1706125:152354070,"26,865.12",Legal Aid Higher Crime
MOJ,LAA,15/05/2019,Civil Representation,LEGAL AID FUND,JOANNA HAWKETT,1707797:3000003813330055,"38,240.16",Legal Aid Civil Representation
MOJ,LAA,15/05/2019,Civil Representation,LEGAL AID FUND,JOSEPH LYNCH,1706017:3000004325810006,"73,359.00",Legal Aid Civil Representation
MOJ,LAA,15/05/2019,Civil Representation,LEGAL AID FUND,JULIA CHEETHAM,1708746:3000002669630015,"43,246.44",Legal Aid Civil Representation
MOJ,LAA,15/05/2019,Civil Representation,LEGAL AID FUND,JULIE A SLATER,1706615:3000002669630014,"34,776.00",Legal Aid Civil Representation
MOJ,LAA,15/05/2019,Higher Crime,LEGAL AID FUND,K LEGAL SOLICITORS,1708970:152335809,"27,751.82",Legal Aid Higher Crime
MOJ,LAA,15/05/2019,Higher Crime,LEGAL AID FUND,KARIM S KHALIL QC,1706735:152327407,"30,060.00",Legal Aid Higher Crime
MOJ,LAA,15/05/2019,Civil Representation,LEGAL AID FUND,KATHRYN A HUGHES,1708686:3000003383900026,"39,139.20",Legal Aid Civil Representation
MOJ,LAA,15/05/2019,Civil Representation,LEGAL AID FUND,KELCEY & HALL SOLICITORS,1709319:3000004703470002,"29,721.60",Legal Aid Civil Representation
MOJ,LAA,15/05/2019,Civil Representation,LEGAL AID FUND,KELCEY & HALL SOLICITORS,1709319:3000002070530049,"28,041.60",Legal Aid Civil Representation
MOJ,LAA,15/05/2019,Higher Crime,LEGAL AID FUND,KEVIN MOLLOY,1706021:152373124,"27,301.18",Legal Aid Higher Crime
MOJ,LAA,15/05/2019,Civil Representation,LEGAL AID FUND,KHF SOLICITORS LTD,1709058:3000002669950020,"36,234.00",Legal Aid Civil Representation
MOJ,LAA,15/05/2019,Civil Representation,LEGAL AID FUND,KHF SOLICITORS LTD,1709059:3000003263500019,"35,694.00",Legal Aid Civil Representation
MOJ,LAA,15/05/2019,Higher Crime,LEGAL AID FUND,KINGSMAN SOLICITORS LTD,1705801:152373190,"27,586.64",Legal Aid Higher Crime
MOJ,LAA,15/05/2019,Higher Crime,LEGAL AID FUND,LAM & MEERABUX SOLICITORS,1705747:152327735,"65,378.40",Legal Aid Higher Crime
MOJ,LAA,15/05/2019,Higher Crime,LEGAL AID FUND,LAUREN B SOERTSZ,1708470:152326597,"29,213.52",Legal Aid Higher Crime
MOJ,LAA,15/05/2019,Higher Crime,LEGAL AID FUND,LAURENCE LEE & CO,1707245:152336847,"45,872.59",Legal Aid Higher Crime
MOJ,LAA,15/05/2019,Higher Crime,LEGAL AID FUND,LEE & CO,1709161:152373710,"89,975.11",Legal Aid Higher Crime
MOJ,LAA,15/05/2019,Higher Crime,LEGAL AID FUND,LEFI TSIATTALOU,1708158:152346228,"36,628.27",Legal Aid Higher Crime
MOJ,LAA,15/05/2019,Higher Crime,LEGAL AID FUND,LEVALES SOLICITORS LLP,1706958:152336946,"42,217.49",Legal Aid Higher Crime
MOJ,LAA,15/05/2019,Higher Crime,LEGAL AID FUND,LEVALES SOLICITORS LLP,1706958:152373536,"29,664.55",Legal Aid Higher Crime
MOJ,LAA,15/05/2019,Higher Crime,LEGAL AID FUND,LEVALES SOLICITORS LLP,1706958:152346422,"26,808.53",Legal Aid Higher Crime
MOJ,LAA,15/05/2019,Higher Crime,LEGAL AID FUND,LEVALES SOLICITORS LLP,1706958:152355911,"25,277.09",Legal Aid Higher Crime
MOJ,LAA,15/05/2019,Higher Crime,LEGAL AID FUND,LEWIS POWER QC,1708127:152373351,"51,852.53",Legal Aid Higher Crime
MOJ,LAA,15/05/2019,Higher Crime,LEGAL AID FUND,LIBERTY LAW SOLICITORS LTD,1709050:152327740,"44,987.55",Legal Aid Higher Crime
MOJ,LAA,15/05/2019,Higher Crime,LEGAL AID FUND,LLM SOLICITORS (LONDON) LTD,1709015:152328016,"25,580.12",Legal Aid Higher Crime
MOJ,LAA,15/05/2019,Higher Crime,LEGAL AID FUND,LLOYDS PR SOLICITORS,1709220:152355103,"89,975.11",Legal Aid Higher Crime
MOJ,LAA,15/05/2019,Higher Crime,LEGAL AID FUND,LLOYDS PR SOLICITORS,1707015:152327488,"64,643.57",Legal Aid Higher Crime
MOJ,LAA,15/05/2019,Higher Crime,LEGAL AID FUND,M & M SOLICITORS.,1707113:152336835,"45,886.74",Legal Aid Higher Crime
MOJ,LAA,15/05/2019,Higher Crime,LEGAL AID FUND,M & N SOLICITORS,1707132:152346672,"60,310.56",Legal Aid Higher Crime
MOJ,LAA,15/05/2019,Higher Crime,LEGAL AID FUND,M B LAW LTD,1705682:152374127,"89,975.11",Legal Aid Higher Crime
MOJ,LAA,15/05/2019,Higher Crime,LEGAL AID FUND,M B LAW LTD-ADVOCATE,1705957:152336337,"26,760.00",Legal Aid Higher Crime
MOJ,LAA,15/05/2019,Higher Crime,LEGAL AID FUND,MACAULEY SMITH  LTD,1709407:152345915,"39,437.68",Legal Aid Higher Crime
MOJ,LAA,15/05/2019,Higher Crime,LEGAL AID FUND,MACAULEY SMITH  LTD,1709407:152345866,"26,305.06",Legal Aid Higher Crime
MOJ,LAA,15/05/2019,Higher Crime,LEGAL AID FUND,MARCHANT HARRIES,1709586:152345400,"89,975.11",Legal Aid Higher Crime
MOJ,LAA,15/05/2019,Higher Crime,LEGAL AID FUND,MARILYN VITTE,1708015:152374058,"26,160.00",Legal Aid Higher Crime
MOJ,LAA,15/05/2019,Civil Representation,LEGAL AID FUND,MARK E COOPER,1706133:3000004357690004,"29,030.40",Legal Aid Civil Representation
MOJ,LAA,15/05/2019,Higher Crime,LEGAL AID FUND,MBC SOLICITORS LTD,1709040:152373833,"43,427.93",Legal Aid Higher Crime
MOJ,LAA,15/05/2019,Civil Representation,LEGAL AID FUND,MCMILLAN WILLIAMS SOLICITORS LTD,1707494:152368498,"33,974.04",Legal Aid Civil Representation
MOJ,LAA,15/05/2019,Higher Crime,LEGAL AID FUND,MOHAMMED HUSSAIN SOLICITORS,1709090:152373107,"89,975.11",Legal Aid Higher Crime
MOJ,LAA,15/05/2019,Higher Crime,LEGAL AID FUND,MOHAMMED NAWAZ,1706652:152337186,"25,896.48",Legal Aid Higher Crime
MOJ,LAA,15/05/2019,Higher Crime,LEGAL AID FUND,MORDI & CO,1709186:152345615,"28,392.78",Legal Aid Higher Crime
MOJ,LAA,15/05/2019,Higher Crime,LEGAL AID FUND,MURRAYS PARTNERSHIP SOLICITORS,1709427:152337348,"26,209.96",Legal Aid Higher Crime
MOJ,LAA,15/05/2019,Civil Representation,LEGAL AID FUND,NAOMI MARIA MADDERSON,1708376:3000003813330056,"91,972.80",Legal Aid Civil Representation
MOJ,LAA,15/05/2019,Civil Representation,LEGAL AID FUND,NAZMUN N ISMAIL,1706517:3000004396250009,"73,159.20",Legal Aid Civil Representation
MOJ,LAA,15/05/2019,Higher Crime,LEGAL AID FUND,NEEDHAM POULIER LTD,1709195:152326736,"69,432.86",Legal Aid Higher Crime
MOJ,LAA,15/05/2019,Higher Crime,LEGAL AID FUND,NEWGATE SOLICITORS,1708988:152328048,"86,014.77",Legal Aid Higher Crime
MOJ,LAA,15/05/2019,Lower Crime,LEGAL AID FUND,NIGEL WELLER & CO,1707285:152368652,"28,632.24",Legal Aid Lower Crime
MOJ,LAA,15/05/2019,Higher Crime,LEGAL AID FUND,NINA S GRAHAME,1708748:152335495,"35,730.00",Legal Aid Higher Crime
MOJ,LAA,15/05/2019,Higher Crime,LEGAL AID FUND,NOBLE SOLICITORS,1709238:152346098,"67,422.17",Legal Aid Higher Crime
MOJ,LAA,15/05/2019,Civil Representation,LEGAL AID FUND,NOBLE SOLICITORS,1709238:3000003980000025,"29,656.80",Legal Aid Civil Representation
MOJ,LAA,15/05/2019,Civil Representation,LEGAL AID FUND,NORTON PESKETT SOLICITORS,1709265:152333872,"39,447.46",Legal Aid Civil Representation
MOJ,LAA,15/05/2019,Civil Representation,LEGAL AID FUND,NORTON PESKETT SOLICITORS,1709265:152333945,"39,447.46",Legal Aid Civil Representation
MOJ,LAA,15/05/2019,Civil Representation,LEGAL AID FUND,NORTON PESKETT SOLICITORS,1709265:3000002903930015,"28,731.12",Legal Aid Civil Representation
MOJ,LAA,15/05/2019,Higher Crime,LEGAL AID FUND,OLLIERS SOLICITORS LTD,1707167:152328062,"64,675.68",Legal Aid Higher Crime
MOJ,LAA,15/05/2019,Higher Crime,LEGAL AID FUND,O'NEILL WRIGHT & NASH,1709006:152335875,"72,743.42",Legal Aid Higher Crime
MOJ,LAA,15/05/2019,Civil Representation,LEGAL AID FUND,OWEN WHITE & CATLIN,1709629:3000001861670029,"25,877.52",Legal Aid Civil Representation
MOJ,LAA,15/05/2019,Legal Help,LEGAL AID FUND,PARAGON LAW LTD,1707114:152379222,"25,000.00",Legal Aid Legal Help
MOJ,LAA,15/05/2019,Higher Crime,LEGAL AID FUND,PATRICK D HARTE,1706018:152327797,"36,442.80",Legal Aid Higher Crime
MOJ,LAA,15/05/2019,Higher Crime,LEGAL AID FUND,PAUL R KELEHER QC,1708898:152346638,"40,560.00",Legal Aid Higher Crime
MOJ,LAA,15/05/2019,Civil Representation,LEGAL AID FUND,PAULINE M MOULDER,1708578:3000002262890026,"31,028.40",Legal Aid Civil Representation
MOJ,LAA,15/05/2019,Higher Crime,LEGAL AID FUND,PAVLOS P PANAYI QC,1708486:152337034,"32,022.88",Legal Aid Higher Crime
MOJ,LAA,15/05/2019,Civil Representation,LEGAL AID FUND,PENELOPE A M HOWE,1706409:3000002904870021,"31,006.90",Legal Aid Civil Representation
MOJ,LAA,15/05/2019,Higher Crime,LEGAL AID FUND,PENFOLD & MCPHERSON LTD,1707447:152335710,"41,496.65",Legal Aid Higher Crime
MOJ,LAA,15/05/2019,Higher Crime,LEGAL AID FUND,PETER LOWNDS QC,1706450:152336999,"31,631.28",Legal Aid Higher Crime
MOJ,LAA,15/05/2019,Civil Representation,LEGAL AID FUND,PORTER DODSON,1707536:3000002830020018,"45,012.54",Legal Aid Civil Representation
MOJ,LAA,15/05/2019,Higher Crime,LEGAL AID FUND,POTTER DERBY LTD,1707509:152336635,"89,975.11",Legal Aid Higher Crime
MOJ,LAA,15/05/2019,Civil Representation,LEGAL AID FUND,POWELL SPENCER AND PARTNERS,1709544:3000001537020022,"29,321.05",Legal Aid Civil Representation
MOJ,LAA,15/05/2019,Higher Crime,LEGAL AID FUND,QUENTIN J HUNT,1706419:152335804,"30,792.00",Legal Aid Higher Crime
MOJ,LAA,15/05/2019,Higher Crime,LEGAL AID FUND,QUINN MELVILLE,1709199:152355470,"35,370.65",Legal Aid Higher Crime
MOJ,LAA,15/05/2019,Higher Crime,LEGAL AID FUND,RASHAD MOHAMMED,1706601:152327363,"39,877.20",Legal Aid Higher Crime
MOJ,LAA,15/05/2019,Higher Crime,LEGAL AID FUND,RAYMOND P TULLY,1708605:152350870,"40,000.00",Legal Aid Higher Crime
MOJ,LAA,15/05/2019,Higher Crime,LEGAL AID FUND,RAYMOND P TULLY,1708605:152350871,"40,000.00",Legal Aid Higher Crime
MOJ,LAA,15/05/2019,Higher Crime,LEGAL AID FUND,RED KITE LAW LLP,1709566:152345274,"35,597.46",Legal Aid Higher Crime
MOJ,LAA,15/05/2019,Higher Crime,LEGAL AID FUND,RENSHAW DERRICK & CO,1707548:152355752,"82,273.14",Legal Aid Higher Crime
MOJ,LAA,15/05/2019,Civil Representation,LEGAL AID FUND,RHIAN F KIRBY,1708682:3000003905870015,"30,901.50",Legal Aid Civil Representation
MOJ,LAA,15/05/2019,Higher Crime,LEGAL AID FUND,RHIANNON S CRIMMINS,1706776:152327973,"25,372.92",Legal Aid Higher Crime
MOJ,LAA,15/05/2019,Higher Crime,LEGAL AID FUND,RHODRI W M JAMES,1708859:152337149,"41,277.60",Legal Aid Higher Crime
MOJ,LAA,15/05/2019,Higher Crime,LEGAL AID FUND,RHODRI W M JAMES,1708859:152337177,"-41,113.80",Legal Aid Higher Crime
MOJ,LAA,15/05/2019,Civil Representation,LEGAL AID FUND,RIDLEY & HALL LEGAL LTD,1705711:3000004154880004,"26,400.00",Legal Aid Civil Representation
MOJ,LAA,15/05/2019,Civil Representation,LEGAL AID FUND,RIDLEY & HALL LEGAL LTD,1707053:3000004406650006,"25,968.62",Legal Aid Civil Representation
MOJ,LAA,15/05/2019,Higher Crime,LEGAL AID FUND,RILEY HAYES & CO,1709243:152327645,"89,975.11",Legal Aid Higher Crime
MOJ,LAA,15/05/2019,Higher Crime,LEGAL AID FUND,RUNDLEWALKER,1709589:152345425,"59,183.71",Legal Aid Higher Crime
MOJ,LAA,15/05/2019,Civil Representation,LEGAL AID FUND,RUTH S M HENKE QC,1708663:3000003383900027,"68,396.40",Legal Aid Civil Representation
MOJ,LAA,15/05/2019,Higher Crime,LEGAL AID FUND,S A LAW CHAMBERS SOLICITORS,1709169:152345374,"31,394.34",Legal Aid Higher Crime
MOJ,LAA,15/05/2019,Higher Crime,LEGAL AID FUND,SALHAN & CO LTD,1709152:152354854,"25,130.16",Legal Aid Higher Crime
MOJ,LAA,15/05/2019,Higher Crime,LEGAL AID FUND,SHAFI SOLICITORS LLP,1706112:152345609,"89,975.11",Legal Aid Higher Crime
MOJ,LAA,15/05/2019,Higher Crime,LEGAL AID FUND,SHAFI SOLICITORS LLP,1706112:152336128,"65,676.54",Legal Aid Higher Crime
MOJ,LAA,15/05/2019,Civil Representation,LEGAL AID FUND,SHARRATTS SOLICITORS  LTD,1707094:3000001663910019,"39,409.30",Legal Aid Civil Representation
MOJ,LAA,15/05/2019,Higher Crime,LEGAL AID FUND,SHAW GRAHAM KERSH,1707166:152374176,"25,199.69",Legal Aid Higher Crime
MOJ,LAA,15/05/2019,Civil Representation,LEGAL AID FUND,SILVERMAN LIVERMORE,1707219:3000003204390010,"49,207.20",Legal Aid Civil Representation
MOJ,LAA,15/05/2019,Civil Representation,LEGAL AID FUND,SIMON L BICKLER QC,1706471:3000004325810005,"114,060.16",Legal Aid Civil Representation
MOJ,LAA,15/05/2019,Higher Crime,LEGAL AID FUND,SMITH PARTNERSHIP,1707071:152336085,"89,975.11",Legal Aid Higher Crime
MOJ,LAA,15/05/2019,Higher Crime,LEGAL AID FUND,SONN MACMILLAN WALKER LTD,1709627:152354855,"84,859.18",Legal Aid Higher Crime
MOJ,LAA,15/05/2019,Higher Crime,LEGAL AID FUND,SONN MACMILLAN WALKER LTD,1709627:152336258,"28,262.82",Legal Aid Higher Crime
MOJ,LAA,15/05/2019,Higher Crime,LEGAL AID FUND,STEPHEN MOORE & CO,1707118:152336677,"25,392.11",Legal Aid Higher Crime
MOJ,LAA,15/05/2019,Higher Crime,LEGAL AID FUND,STEPHENSONS SOLICITORS LLP,1709493:152326636,"89,975.11",Legal Aid Higher Crime
MOJ,LAA,15/05/2019,Civil Representation,LEGAL AID FUND,STEVEN ASHWORTH,1708425:3000000864680022,"41,166.12",Legal Aid Civil Representation
MOJ,LAA,15/05/2019,Higher Crime,LEGAL AID FUND,STEVENS SOLICITORS,1709462:152345284,"57,773.32",Legal Aid Higher Crime
MOJ,LAA,15/05/2019,Higher Crime,LEGAL AID FUND,STEWART BEGUM SOLICITORS LTD,1706949:152356016,"39,263.80",Legal Aid Higher Crime
MOJ,LAA,15/05/2019,Civil Representation,LEGAL AID FUND,STONE KING LLP,1707534:3000001561320014,"38,447.52",Legal Aid Civil Representation
MOJ,LAA,15/05/2019,Higher Crime,LEGAL AID FUND,SVS SOLICITORS,1707022:152336336,"29,710.48",Legal Aid Higher Crime
MOJ,LAA,15/05/2019,Civil Representation,LEGAL AID FUND,TALLENTS SOLICITORS,1709356:3000003375260010,"32,999.25",Legal Aid Civil Representation
MOJ,LAA,15/05/2019,Higher Crime,LEGAL AID FUND,THE JOHNSON PARTNERSHIP,1707264:152336199,"28,550.22",Legal Aid Higher Crime
MOJ,LAA,15/05/2019,Higher Crime,LEGAL AID FUND,THOMPSON & CO SOLICITORS LTD,1709116:152345985,"55,964.19",Legal Aid Higher Crime
MOJ,LAA,15/05/2019,Higher Crime,LEGAL AID FUND,TIMOTHY E CLARK,1706751:152336960,"40,833.62",Legal Aid Higher Crime
MOJ,LAA,15/05/2019,Higher Crime,LEGAL AID FUND,TIMOTHY J MOLONEY QC,1708904:152346027,"34,763.53",Legal Aid Higher Crime
MOJ,LAA,15/05/2019,Higher Crime,LEGAL AID FUND,TOM BROOMFIELD,1706051:152336249,"25,830.00",Legal Aid Higher Crime
MOJ,LAA,15/05/2019,Higher Crime,LEGAL AID FUND,VLS SOLICITORS LTD,1709053:152336914,"88,484.19",Legal Aid Higher Crime
MOJ,LAA,15/05/2019,Higher Crime,LEGAL AID FUND,WILLIAM J DOUGLAS-JONES,1705944:152341631,"45,960.00",Legal Aid Higher Crime
MOJ,LAA,15/05/2019,Civil Representation,LEGAL AID FUND,WOLFERSTANS,1707255:300000298502IK562,"28,130.08",Legal Aid Civil Representation
MOJ,LAA,15/05/2019,Civil Representation,LEGAL AID FUND,WOLLENS,1707524:3000001162580016,"25,488.45",Legal Aid Civil Representation
MOJ,LAA,15/05/2019,Higher Crime,LEGAL AID FUND,WOOLFE & CO SOLICITORS LTD,1705869:152355718,"26,464.44",Legal Aid Higher Crime
MOJ,LAA,15/05/2019,Higher Crime,LEGAL AID FUND,YASMIN & SHAID SOLICITORS LTD,1709102:152336280,"71,545.90",Legal Aid Higher Crime
MOJ,LAA,15/05/2019,Higher Crime,LEGAL AID FUND,YASMIN & SHAID SOLICITORS LTD,1709102:152354676,"33,805.38",Legal Aid Higher Crime
MOJ,LAA,15/05/2019,Civil Representation,LEGAL AID FUND,YOLANDA E PEMBERTON,1706357:3000002094490016RC,"-26,224.49",Legal Aid Civil Representation
MOJ,LAA,17/05/2019,EXP - PURCHASE OF GOODS/SERVICES - OTHER TRAVEL - UK Other,Centralised Costs,CORPORATE TRAVEL MANAGEMENT NORTH LTD,8444,"61,639.91",Travel Costs
MOJ,LAA,17/05/2019,EXP - PURCHASE OF GOODS/SERVICES - OTHER TRAVEL - UK Other,Centralised Costs,CORPORATE TRAVEL MANAGEMENT NORTH LTD,8652,"45,735.99",Travel Costs
MOJ,LAA,20/05/2019,Civil Representation,LEGAL AID FUND,JANET C BAZLEY QC,1709936:3000001604900008RC,"-54,885.60",Legal Aid Civil Representation
MOJ,LAA,21/05/2019,EXP - PURCHASE OF GOODS/SERVICES - OTHER - Translation / Interpreting Services,Central Funds,THEBIGWORD INTERPRETING SERVICES LTD,90318133,"1,011,644.30",Translation / Interepreting Costs
MOJ,LAA,21/05/2019,EXP - PURCHASE OF GOODS/SERVICES - NON-PO INVOICES PENDING REALLOCATION,Property Costs - Newcastle,SENATOR INTERNATIONAL LTD,S01522907,"33,981.60",Property Costs
MOJ,LAA,21/05/2019,EXP - PURCHASE OF GOODS/SERVICES - NON-PO INVOICES PENDING REALLOCATION,Property Costs - Newcastle,SENATOR INTERNATIONAL LTD,S01522906,"33,304.07",Property Costs
MOJ,LAA,21/05/2019,Civil Representation,LEGAL AID FUND,DEIRDRE FOTTRELL QC,1709952:151751530,"-42,784.33",Legal Aid Civil Representation
MOJ,LAA,21/05/2019,Civil Representation,LEGAL AID FUND,DEIRDRE FOTTRELL QC,1709952:3000001580900031RC,"-45,781.20",Legal Aid Civil Representation
MOJ,LAA,22/05/2019,Civil Representation,LEGAL AID FUND,A & N CARE SOLICITORS,1711482:3000003345300006,"32,118.24",Legal Aid Civil Representation
MOJ,LAA,22/05/2019,Civil Representation,LEGAL AID FUND,A & N CARE SOLICITORS,1711482:3000002709730028,"27,651.52",Legal Aid Civil Representation
MOJ,LAA,22/05/2019,Higher Crime,LEGAL AID FUND,ABBEY SOLICITORS,1714261:152383713,"30,239.03",Legal Aid Higher Crime
MOJ,LAA,22/05/2019,Higher Crime,LEGAL AID FUND,ABR SOLICITORS,1713177:152392816,"29,629.55",Legal Aid Higher Crime
MOJ,LAA,22/05/2019,Higher Crime,LEGAL AID FUND,ABRAHAM SOLICITORS LTD,1710822:152431184,"29,664.55",Legal Aid Higher Crime
MOJ,LAA,22/05/2019,Higher Crime,LEGAL AID FUND,ABV SOLICITORS,1714315:152383528,"105,857.75",Legal Aid Higher Crime
MOJ,LAA,22/05/2019,Higher Crime,LEGAL AID FUND,ACHOM & PARTNERS,1711933:152430382,"25,038.44",Legal Aid Higher Crime
MOJ,LAA,22/05/2019,Higher Crime,LEGAL AID FUND,AHMED & CO,1710930:152383657,"26,302.54",Legal Aid Higher Crime
MOJ,LAA,22/05/2019,Higher Crime,LEGAL AID FUND,ALC SOLICITORS,1712384:152431041,"27,410.40",Legal Aid Higher Crime
MOJ,LAA,22/05/2019,Civil Representation,LEGAL AID FUND,ALISON D MOORE,1712622:3000002653810011,"28,722.60",Legal Aid Civil Representation
MOJ,LAA,22/05/2019,Civil Representation,LEGAL AID FUND,ALISON D MOORE,1712622:3000002557630020RC,"-29,377.32",Legal Aid Civil Representation
MOJ,LAA,22/05/2019,Higher Crime,LEGAL AID FUND,ANDREW THOMAS QC,1712611:152389463,"50,558.23",Legal Aid Higher Crime
MOJ,LAA,22/05/2019,Higher Crime,LEGAL AID FUND,ANTHONY J BELL,1714021:152382388,"40,237.56",Legal Aid Higher Crime
MOJ,LAA,22/05/2019,Higher Crime,LEGAL AID FUND,APEX LAWYERS LTD,1710101:152402411,"41,471.09",Legal Aid Higher Crime
MOJ,LAA,22/05/2019,Higher Crime,LEGAL AID FUND,ASHMANS SOLICITORS LTD,1712399:152391511,"86,028.50",Legal Aid Higher Crime
MOJ,LAA,22/05/2019,Higher Crime,LEGAL AID FUND,B H MOHAMMED,1712251:152431163,"62,911.34",Legal Aid Higher Crime
MOJ,LAA,22/05/2019,Higher Crime,LEGAL AID FUND,BARK & CO,1710973:152400664,"89,975.11",Legal Aid Higher Crime
MOJ,LAA,22/05/2019,Higher Crime,LEGAL AID FUND,BENJAMIN J MYERS QC,1713889:152438520,"91,400.00",Legal Aid Higher Crime
MOJ,LAA,22/05/2019,Higher Crime,LEGAL AID FUND,BERKELEY SQUARE SOLICITORS LTD,1712394:152412573,"26,464.44",Legal Aid Higher Crime
MOJ,LAA,22/05/2019,Higher Crime,LEGAL AID FUND,BHANDAL LAW,1711265:152383461,"107,970.13",Legal Aid Higher Crime
MOJ,LAA,22/05/2019,Higher Crime,LEGAL AID FUND,BHANDAL LAW,1711265:152412609,"27,352.20",Legal Aid Higher Crime
MOJ,LAA,22/05/2019,Higher Crime,LEGAL AID FUND,BIRD & CO SOLICITORS LLP,1713271:152432182,"52,374.13",Legal Aid Higher Crime
MOJ,LAA,22/05/2019,Higher Crime,LEGAL AID FUND,BJ & CO SOLICITORS LTD T/A  BRIAN JACKSON & CO,1713198:152402463,"107,970.13",Legal Aid Higher Crime
MOJ,LAA,22/05/2019,Higher Crime,LEGAL AID FUND,BLACKFORDS LLP,1714542:152412680,"105,857.75",Legal Aid Higher Crime
MOJ,LAA,22/05/2019,Higher Crime,LEGAL AID FUND,BLACKFORDS LLP,1714548:152402751,"68,210.28",Legal Aid Higher Crime
MOJ,LAA,22/05/2019,Higher Crime,LEGAL AID FUND,BLACKFORDS LLP,1714542:152430519,"49,729.07",Legal Aid Higher Crime
MOJ,LAA,22/05/2019,Higher Crime,LEGAL AID FUND,BLACKFORDS LLP,1714548:152402913,"39,363.79",Legal Aid Higher Crime
MOJ,LAA,22/05/2019,Higher Crime,LEGAL AID FUND,BLACKFORDS LLP,1714542:152412139,"25,335.89",Legal Aid Higher Crime
MOJ,LAA,22/05/2019,Higher Crime,LEGAL AID FUND,BLACKWELLS,1713167:152413308,"26,000.27",Legal Aid Higher Crime
MOJ,LAA,22/05/2019,Civil Representation,LEGAL AID FUND,BRENDAN FLEMING SOLICITORS,1712235:3000002278820014,"26,138.45",Legal Aid Civil Representation
MOJ,LAA,22/05/2019,Civil Representation,LEGAL AID FUND,CAMERON JONES HUSSELL & HOWE,1714511:3000003255970014,"27,764.02",Legal Aid Civil Representation
MOJ,LAA,22/05/2019,Higher Crime,LEGAL AID FUND,CARTER MOORE SOLICITORS LTD,1710829:152383521,"99,984.35",Legal Aid Higher Crime
MOJ,LAA,22/05/2019,Higher Crime,LEGAL AID FUND,CARTWRIGHT KING LTD,1713626:152432346,"96,450.04",Legal Aid Higher Crime
MOJ,LAA,22/05/2019,Higher Crime,LEGAL AID FUND,CARTWRIGHT KING LTD,1712390:152430881,"45,458.47",Legal Aid Higher Crime
MOJ,LAA,22/05/2019,Higher Crime,LEGAL AID FUND,CENTURION LAW LTD,1710082:152402317,"74,979.26",Legal Aid Higher Crime
MOJ,LAA,22/05/2019,Higher Crime,LEGAL AID FUND,CHURCHERS SOLICITORS,1710806:152430344,"26,587.32",Legal Aid Higher Crime
MOJ,LAA,22/05/2019,Higher Crime,LEGAL AID FUND,CITY LAW CHAMBERS LTD,1711886:152382475,"59,344.72",Legal Aid Higher Crime
MOJ,LAA,22/05/2019,Higher Crime,LEGAL AID FUND,CITY LAW CHAMBERS LTD,1711886:152412763,"34,311.85",Legal Aid Higher Crime
MOJ,LAA,22/05/2019,Civil Representation,LEGAL AID FUND,COOPER NIMMO LIMITED,1710908:3000001376470018,"66,800.04",Legal Aid Civil Representation
MOJ,LAA,22/05/2019,Higher Crime,LEGAL AID FUND,CRIMINAL DEFENCE SOLICITORS,1714290:152402016,"29,674.62",Legal Aid Higher Crime
MOJ,LAA,22/05/2019,Higher Crime,LEGAL AID FUND,DALLAS & RICHARDSON SOLICITORS LTD,1711458:152412960,"89,975.11",Legal Aid Higher Crime
MOJ,LAA,22/05/2019,Higher Crime,LEGAL AID FUND,DAVID GRAY LLP,1713172:152403077,"61,306.37",Legal Aid Higher Crime
MOJ,LAA,22/05/2019,Higher Crime,LEGAL AID FUND,DAVID GRAY LLP,1713172:152412831,"32,075.28",Legal Aid Higher Crime
MOJ,LAA,22/05/2019,Higher Crime,LEGAL AID FUND,DAVID M PARVIN,1711305:152382826,"47,377.46",Legal Aid Higher Crime
MOJ,LAA,22/05/2019,Higher Crime,LEGAL AID FUND,DAVID R MCLACHLAN,1711637:152383422,"29,580.00",Legal Aid Higher Crime
MOJ,LAA,22/05/2019,Higher Crime,LEGAL AID FUND,DAVID W HARRIS & CO,1711273:152411543,"105,857.75",Legal Aid Higher Crime
MOJ,LAA,22/05/2019,Civil Representation,LEGAL AID FUND,DAVIS & SIMMONDS & DONAGHEY,1710753:3000001128430010,"28,212.40",Legal Aid Civil Representation
MOJ,LAA,22/05/2019,Legal Help,LEGAL AID FUND,DIRECT HELP & ADVICE LTD,1713118:152425920,"27,458.76",Legal Aid Legal Help
MOJ,LAA,22/05/2019,Higher Crime,LEGAL AID FUND,DPP LAW LTD-ADVOCATE,1713793:152392951,"34,736.04",Legal Aid Higher Crime
MOJ,LAA,22/05/2019,Higher Crime,LEGAL AID FUND,DRAYCOTT BROWNE LTD,1714404:152383149,"27,992.91",Legal Aid Higher Crime
MOJ,LAA,22/05/2019,Higher Crime,LEGAL AID FUND,DRAYCOTT BROWNE LTD,1714403:152392132,"27,699.36",Legal Aid Higher Crime
MOJ,LAA,22/05/2019,Higher Crime,LEGAL AID FUND,DUNCAN LEWIS SOLICITORS  LTD,1712018:152402886,"89,975.11",Legal Aid Higher Crime
MOJ,LAA,22/05/2019,Civil Representation,LEGAL AID FUND,DUTTON GREGORY LLP,1714555:3000002917360015,"36,029.41",Legal Aid Civil Representation
MOJ,LAA,22/05/2019,Higher Crime,LEGAL AID FUND,ENNON & CO LTD,1710772:152383524,"107,970.13",Legal Aid Higher Crime
MOJ,LAA,22/05/2019,Higher Crime,LEGAL AID FUND,FOXES SOLICITORS,1713061:152402863,"26,053.09",Legal Aid Higher Crime
MOJ,LAA,22/05/2019,Higher Crime,LEGAL AID FUND,FRANCES D HERTZOG,1712732:152431229,"32,946.00",Legal Aid Higher Crime
MOJ,LAA,22/05/2019,Higher Crime,LEGAL AID FUND,FRANCO S TIZZANO,1713765:152382690,"39,599.16",Legal Aid Higher Crime
MOJ,LAA,22/05/2019,Civil Representation,LEGAL AID FUND,FRENCH & CO,1713267:152035376,"-25,110.00",Legal Aid Civil Representation
MOJ,LAA,22/05/2019,Higher Crime,LEGAL AID FUND,GALBRAITH BRANLEY SOLICITORS,1710915:152382707,"89,975.11",Legal Aid Higher Crime
MOJ,LAA,22/05/2019,Civil Representation,LEGAL AID FUND,GARETH WEBB & CO LLP,1714323:3000002808950012,"54,356.99",Legal Aid Civil Representation
MOJ,LAA,22/05/2019,Civil Representation,LEGAL AID FUND,GARRATTS,1714374:3000004325810007,"47,700.00",Legal Aid Civil Representation
MOJ,LAA,22/05/2019,Higher Crime,LEGAL AID FUND,GARTSIDES,1712208:152412354,"107,970.13",Legal Aid Higher Crime
MOJ,LAA,22/05/2019,Higher Crime,LEGAL AID FUND,GERALD ARMSTRONG,1712074:152392760,"32,442.60",Legal Aid Higher Crime
MOJ,LAA,22/05/2019,Civil Representation,LEGAL AID FUND,GRAHAM & ROSEN LTD,1711003:3000003813330057,"51,983.10",Legal Aid Civil Representation
MOJ,LAA,22/05/2019,Civil Representation,LEGAL AID FUND,HALA MUSTAFA,1711644:3000003904060016,"31,958.56",Legal Aid Civil Representation
MOJ,LAA,22/05/2019,Civil Representation,LEGAL AID FUND,HARNEY & WELLS,1714301:3000001567390024,"45,258.69",Legal Aid Civil Representation
MOJ,LAA,22/05/2019,Civil Representation,LEGAL AID FUND,HARNEY & WELLS,1714301:3000001567390022RC,"-28,507.96",Legal Aid Civil Representation
MOJ,LAA,22/05/2019,Higher Crime,LEGAL AID FUND,HARRIS SOLICITORS LTD,1713100:152431370,"89,975.11",Legal Aid Higher Crime
MOJ,LAA,22/05/2019,Higher Crime,LEGAL AID FUND,HARRIS SOLICITORS LTD,1713100:152383423,"79,154.75",Legal Aid Higher Crime
MOJ,LAA,22/05/2019,Higher Crime,LEGAL AID FUND,HARRIS SOLICITORS LTD,1713100:152430375,"56,452.62",Legal Aid Higher Crime
MOJ,LAA,22/05/2019,Higher Crime,LEGAL AID FUND,HATTEN WYATT,1711339:152384234,"89,975.11",Legal Aid Higher Crime
MOJ,LAA,22/05/2019,Civil Representation,LEGAL AID FUND,HETTS,1713223:3000000703460022,"27,928.70",Legal Aid Civil Representation
MOJ,LAA,22/05/2019,Higher Crime,LEGAL AID FUND,HORSMAN SOLICITORS LTD,1710969:152411791,"63,992.44",Legal Aid Higher Crime
MOJ,LAA,22/05/2019,Higher Crime,LEGAL AID FUND,HUNT & COOMBS LLP,1713287:152402039,"36,664.07",Legal Aid Higher Crime
MOJ,LAA,22/05/2019,Higher Crime,LEGAL AID FUND,I B B SOLICITORS,1714256:152413034,"89,975.11",Legal Aid Higher Crime
MOJ,LAA,22/05/2019,Higher Crime,LEGAL AID FUND,IAN F HENDERSON,1711613:152412098,"35,580.00",Legal Aid Higher Crime
MOJ,LAA,22/05/2019,Civil Representation,LEGAL AID FUND,JI SOLICITORS LTD,1711009:152216713,"29,340.58",Legal Aid Civil Representation
MOJ,LAA,22/05/2019,Higher Crime,LEGAL AID FUND,JOHN FEMI-OLA QC,1713702:152411222,"36,960.00",Legal Aid Higher Crime
MOJ,LAA,22/05/2019,Higher Crime,LEGAL AID FUND,JOHN MOHAMED & CO LTD,1714262:152413095,"31,372.03",Legal Aid Higher Crime
MOJ,LAA,22/05/2019,Higher Crime,LEGAL AID FUND,JONATHAN LENNON,1710605:152438363,"43,800.00",Legal Aid Higher Crime
MOJ,LAA,22/05/2019,Higher Crime,LEGAL AID FUND,JOSEPH TEMPLETON,1711712:152402616,"35,302.27",Legal Aid Higher Crime
MOJ,LAA,22/05/2019,Civil Representation,LEGAL AID FUND,JUDITH M A MAXWELL,1711600:3000004416300032,"28,868.40",Legal Aid Civil Representation
MOJ,LAA,22/05/2019,Higher Crime,LEGAL AID FUND,K LEGAL SOLICITORS,1713034:152402259,"77,636.03",Legal Aid Higher Crime
MOJ,LAA,22/05/2019,Higher Crime,LEGAL AID FUND,KAMRANS SOLICITORS,1710851:152412693,"107,970.13",Legal Aid Higher Crime
MOJ,LAA,22/05/2019,Civil Representation,LEGAL AID FUND,KATE BURNELL,1714177:3000003403080010,"42,103.80",Legal Aid Civil Representation
MOJ,LAA,22/05/2019,Civil Representation,LEGAL AID FUND,KATE L AKERMAN,1711866:3000003481430023,"26,839.36",Legal Aid Civil Representation
MOJ,LAA,22/05/2019,Civil Representation,LEGAL AID FUND,KATE L AKERMAN,1711866:3000001360540009RC,"-42,768.00",Legal Aid Civil Representation
MOJ,LAA,22/05/2019,Higher Crime,LEGAL AID FUND,KEMPS SOLICITORS,1711022:152430384,"89,975.11",Legal Aid Higher Crime
MOJ,LAA,22/05/2019,Higher Crime,LEGAL AID FUND,KENNETH M BARROW & CO,1710959:152383197,"89,975.11",Legal Aid Higher Crime
MOJ,LAA,22/05/2019,Higher Crime,LEGAL AID FUND,KINGSMAN SOLICITORS LTD,1712451:152431850,"31,604.37",Legal Aid Higher Crime
MOJ,LAA,22/05/2019,Higher Crime,LEGAL AID FUND,LAWTONS SOLICITORS LTD,1713104:152430410,"89,975.11",Legal Aid Higher Crime
MOJ,LAA,22/05/2019,Higher Crime,LEGAL AID FUND,LAWTONS SOLICITORS LTD,1712407:152430843,"39,061.18",Legal Aid Higher Crime
MOJ,LAA,22/05/2019,Higher Crime,LEGAL AID FUND,LEWIS NEDAS LAW LTD,1712420:152402099,"89,975.11",Legal Aid Higher Crime
MOJ,LAA,22/05/2019,Higher Crime,LEGAL AID FUND,LLOYDS PR SOLICITORS,1711969:152400942,"76,053.32",Legal Aid Higher Crime
MOJ,LAA,22/05/2019,Higher Crime,LEGAL AID FUND,LLOYDS PR SOLICITORS,1711969:152401178,"43,397.62",Legal Aid Higher Crime
MOJ,LAA,22/05/2019,Higher Crime,LEGAL AID FUND,LONDONIUM SOLICITORS,1712359:152430723,"50,147.08",Legal Aid Higher Crime
MOJ,LAA,22/05/2019,Higher Crime,LEGAL AID FUND,MARY PRIOR,1711719:152391736,"42,000.00",Legal Aid Higher Crime
MOJ,LAA,22/05/2019,Higher Crime,LEGAL AID FUND,MCMILLAN WILLIAMS SOLICITORS LTD,1713347:152431181,"74,741.20",Legal Aid Higher Crime
MOJ,LAA,22/05/2019,Higher Crime,LEGAL AID FUND,MCQUEENS SOLICITORS LLP,1711944:152401647,"39,021.81",Legal Aid Higher Crime
MOJ,LAA,22/05/2019,Higher Crime,LEGAL AID FUND,MESSRS WATERFORDS SOLICITORS,1712228:152430727,"77,080.44",Legal Aid Higher Crime
MOJ,LAA,22/05/2019,Higher Crime,LEGAL AID FUND,MICHAEL CARROLL & CO-ADVOCATE,1710315:152402885,"25,380.00",Legal Aid Higher Crime
MOJ,LAA,22/05/2019,Higher Crime,LEGAL AID FUND,MIDDLEWEEKS LEGAL LTD,1713326:152383711,"73,097.42",Legal Aid Higher Crime
MOJ,LAA,22/05/2019,Higher Crime,LEGAL AID FUND,MOHAMMED HUSSAIN SOLICITORS,1710737:152382959,"78,041.84",Legal Aid Higher Crime
MOJ,LAA,22/05/2019,Higher Crime,LEGAL AID FUND,MORGAN CULLEN & BALL LTD,1710325:152411153,"33,065.18",Legal Aid Higher Crime
MOJ,LAA,22/05/2019,Higher Crime,LEGAL AID FUND,MORGAN ROSE SOLICITORS LTD,1714322:152431228,"26,464.45",Legal Aid Higher Crime
MOJ,LAA,22/05/2019,Civil Representation,LEGAL AID FUND,MSB LAW LLP,1714432:3000003555890010,"148,989.06",Legal Aid Civil Representation
MOJ,LAA,22/05/2019,Civil Representation,LEGAL AID FUND,NICHOLAS J H BOWEN QC,1712737:152397716,"30,137.40",Legal Aid Civil Representation
MOJ,LAA,22/05/2019,Higher Crime,LEGAL AID FUND,NICHOLAS JAMES,1710564:152431752,"39,336.00",Legal Aid Higher Crime
MOJ,LAA,22/05/2019,Civil Representation,LEGAL AID FUND,OWEN WHITE & CATLIN,1714527:3000002363260029,"28,662.48",Legal Aid Civil Representation
MOJ,LAA,22/05/2019,Civil Representation,LEGAL AID FUND,PAUL M STOREY QC,1710391:3000002548930034,"34,451.82",Legal Aid Civil Representation
MOJ,LAA,22/05/2019,Civil Representation,LEGAL AID FUND,PAUL M STOREY QC,1710391:3000004105120023,"28,714.50",Legal Aid Civil Representation
MOJ,LAA,22/05/2019,Civil Representation,LEGAL AID FUND,PAUL M STOREY QC,1710391:3000002284310006RC,"-57,165.94",Legal Aid Civil Representation
MOJ,LAA,22/05/2019,Higher Crime,LEGAL AID FUND,PAUL R KELEHER QC,1710719:152382511,"44,760.00",Legal Aid Higher Crime
MOJ,LAA,22/05/2019,Civil Representation,LEGAL AID FUND,PORTER DODSON,1711029:3000001782560006,"36,452.40",Legal Aid Civil Representation
MOJ,LAA,22/05/2019,Higher Crime,LEGAL AID FUND,POTTER DERBY LTD,1714507:152393065,"129,088.88",Legal Aid Higher Crime
MOJ,LAA,22/05/2019,Higher Crime,LEGAL AID FUND,POTTER DERBY LTD,1714507:152430781,"107,970.13",Legal Aid Higher Crime
MOJ,LAA,22/05/2019,Higher Crime,LEGAL AID FUND,POTTER DERBY LTD,1714507:152412913,"40,365.05",Legal Aid Higher Crime
MOJ,LAA,22/05/2019,Higher Crime,LEGAL AID FUND,Q & A LEGAL LTD,1713581:152401311,"107,970.13",Legal Aid Higher Crime
MOJ,LAA,22/05/2019,Higher Crime,LEGAL AID FUND,Q & A LEGAL LTD,1713581:152400873,"65,378.40",Legal Aid Higher Crime
MOJ,LAA,22/05/2019,Civil Representation,LEGAL AID FUND,RAHMAN RAVELLI SOLICITORS LTD,1712448:152406258,"28,162.73",Legal Aid Civil Representation
MOJ,LAA,22/05/2019,Higher Crime,LEGAL AID FUND,RAJIV MENON,1713717:152391218,"33,720.00",Legal Aid Higher Crime
MOJ,LAA,22/05/2019,Higher Crime,LEGAL AID FUND,RIAZ SOLICITORS,1710736:152383058,"70,553.90",Legal Aid Higher Crime
MOJ,LAA,22/05/2019,Higher Crime,LEGAL AID FUND,RIAZ SOLICITORS,1710736:152383024,"26,893.52",Legal Aid Higher Crime
MOJ,LAA,22/05/2019,Higher Crime,LEGAL AID FUND,RICHARD BODY LAW LTD,1712006:152382518,"64,075.16",Legal Aid Higher Crime
MOJ,LAA,22/05/2019,Civil Representation,LEGAL AID FUND,RIMA BARUAH,1713941:3000001854700037,"27,632.92",Legal Aid Civil Representation
MOJ,LAA,22/05/2019,Higher Crime,LEGAL AID FUND,ROBERT LIZAR,1714457:152432133,"70,897.06",Legal Aid Higher Crime
MOJ,LAA,22/05/2019,Higher Crime,LEGAL AID FUND,ROSE & DUNN,1710821:152392244,"35,597.46",Legal Aid Higher Crime
MOJ,LAA,22/05/2019,Civil Representation,LEGAL AID FUND,SAMANTHA DUNN,1710210:152426661,"40,976.28",Legal Aid Civil Representation
MOJ,LAA,22/05/2019,Civil Representation,LEGAL AID FUND,SAMANTHA DUNN,1710210:152426666,"-33,988.45",Legal Aid Civil Representation
MOJ,LAA,22/05/2019,Civil Representation,LEGAL AID FUND,SAMANTHA L KING,1710422:3000001768530015,"41,040.00",Legal Aid Civil Representation
MOJ,LAA,22/05/2019,Civil Representation,LEGAL AID FUND,SCOTT-MONCRIEFF & ASSOCIATES LLP,1714570:3000001504540012,"25,735.26",Legal Aid Civil Representation
MOJ,LAA,22/05/2019,Higher Crime,LEGAL AID FUND,SEBASTIAN GARDINER,1710717:152402133,"27,424.04",Legal Aid Higher Crime
MOJ,LAA,22/05/2019,Higher Crime,LEGAL AID FUND,SHAFI SOLICITORS LLP,1712586:152392812,"72,713.37",Legal Aid Higher Crime
MOJ,LAA,22/05/2019,Civil Representation,LEGAL AID FUND,SILLS & BETTERIDGE LLP,1711433:3000002603670033,"50,854.43",Legal Aid Civil Representation
MOJ,LAA,22/05/2019,Higher Crime,LEGAL AID FUND,SIMON CSOKA,1714076:152438364,"86,840.00",Legal Aid Higher Crime
MOJ,LAA,22/05/2019,Higher Crime,LEGAL AID FUND,SIMON P W CHRISTIE,1710533:152382652,"25,725.00",Legal Aid Higher Crime
MOJ,LAA,22/05/2019,Legal Help,LEGAL AID FUND,SIMPSON MILLAR SOLICITORS LLP,1713075:152425841,"109,314.83",Legal Aid Legal Help
MOJ,LAA,22/05/2019,Civil Representation,LEGAL AID FUND,STEEL & SHAMASH,1712179:3000003293830011,"32,834.86",Legal Aid Civil Representation
MOJ,LAA,22/05/2019,Higher Crime,LEGAL AID FUND,STEPHENSONS SOLICITORS LLP,1714460:152431234,"35,597.46",Legal Aid Higher Crime
MOJ,LAA,22/05/2019,Higher Crime,LEGAL AID FUND,STEVENS SOLICITORS,1714431:152401620,"73,473.37",Legal Aid Higher Crime
MOJ,LAA,22/05/2019,Higher Crime,LEGAL AID FUND,STOKOE PARTNERSHIP,1711113:152401349,"29,664.55",Legal Aid Higher Crime
MOJ,LAA,22/05/2019,Higher Crime,LEGAL AID FUND,STUART MILLER SOLICITORS LTD,1710965:152430334,"30,215.58",Legal Aid Higher Crime
MOJ,LAA,22/05/2019,Civil Representation,LEGAL AID FUND,SWITALSKI'S SOLICITORS LTD,1711924:3000003540720006,"32,211.66",Legal Aid Civil Representation
MOJ,LAA,22/05/2019,Civil Representation,LEGAL AID FUND,SWITALSKI'S SOLICITORS LTD,1711924:3000003540720005RC,"-31,933.20",Legal Aid Civil Representation
MOJ,LAA,22/05/2019,Civil Representation,LEGAL AID FUND,SYLVESTER D MCILWAIN,1712567:152368502,"39,106.60",Legal Aid Civil Representation
MOJ,LAA,22/05/2019,Civil Representation,LEGAL AID FUND,SYLVESTER D MCILWAIN,1712567:152368573,"-32,638.00",Legal Aid Civil Representation
MOJ,LAA,22/05/2019,Higher Crime,LEGAL AID FUND,TAYLOR HALDANE BARLEX LLP,1710160:152411537,"89,975.11",Legal Aid Higher Crime
MOJ,LAA,22/05/2019,Civil Representation,LEGAL AID FUND,TEMPERLEY TAYLOR LLP,1711441:3000004223650011,"29,700.00",Legal Aid Civil Representation
MOJ,LAA,22/05/2019,Legal Help,LEGAL AID FUND,THE COMMUNITY LAW PARTNERSHIP LTD,1712026:152436259,"26,101.44",Legal Aid Legal Help
MOJ,LAA,22/05/2019,Civil Representation,LEGAL AID FUND,THE D.M.PARTNERSHIP,1712045:3000002669630017,"45,337.73",Legal Aid Civil Representation
MOJ,LAA,22/05/2019,Higher Crime,LEGAL AID FUND,TIMOTHY W H RAGGATT QC,1710660:152392508,"32,340.00",Legal Aid Higher Crime
MOJ,LAA,22/05/2019,Civil Representation,LEGAL AID FUND,TOWCESTER FAMILY LAW PRACTICE,1711923:152426652,"29,317.88",Legal Aid Civil Representation
MOJ,LAA,22/05/2019,Civil Representation,LEGAL AID FUND,TRACY LAKIN,1714150:3000004357690005,"34,732.80",Legal Aid Civil Representation
MOJ,LAA,22/05/2019,Higher Crime,LEGAL AID FUND,TUCKERS SOLICITORS LLP,1713583:152432169,"55,096.69",Legal Aid Higher Crime
MOJ,LAA,22/05/2019,Higher Crime,LEGAL AID FUND,VIRDEES SOLICITORS LTD,1713072:152430795,"107,574.07",Legal Aid Higher Crime
MOJ,LAA,22/05/2019,Higher Crime,LEGAL AID FUND,WALTER & BARBARY SOLICITORS LLP,1712171:152412375,"37,089.47",Legal Aid Higher Crime
MOJ,LAA,22/05/2019,Civil Representation,LEGAL AID FUND,WARD HADAWAY,1710982:3000002262890027,"33,094.18",Legal Aid Civil Representation
MOJ,LAA,22/05/2019,Higher Crime,LEGAL AID FUND,WHITEROSE BLACKMANS SOLICITORS LLP,1712443:152430863,"38,740.02",Legal Aid Higher Crime
MOJ,LAA,22/05/2019,Civil Representation,LEGAL AID FUND,WILLIAM J TYLER,1711737:3000002643770025,"55,015.20",Legal Aid Civil Representation
MOJ,LAA,24/05/2019,EXP - PURCHASE OF GOODS/SERVICES - OTHER TRAVEL - UK Other,Centralised Costs,CORPORATE TRAVEL MANAGEMENT NORTH LTD,8245,"71,593.94",Travel Costs
MOJ,LAA,24/05/2019,Civil Representation,LEGAL AID FUND,ELIZABETH MCGRATH QC,1714853:151696381,"-36,244.81",Legal Aid Civil Representation
MOJ,LAA,28/05/2019,Civil Representation,LEGAL AID FUND,MCMILLAN WILLIAMS SOLICITORS LTD,1714869:151514874,"-67,716.00",Legal Aid Civil Representation
MOJ,LAA,28/05/2019,Civil Representation,LEGAL AID FUND,OLIVIA A MAGENNIS,1714865:3000002529760019RC,"-36,006.66",Legal Aid Civil Representation
MOJ,LAA,29/05/2019,Lower Crime,LEGAL AID FUND,ABBEY SOLICITORS,1716165:152489477,"25,000.00",Legal Aid Lower Crime
MOJ,LAA,29/05/2019,Legal Help,LEGAL AID FUND,ABBOTSTONE LAW LLP,1717015:152489100,"72,646.00",Legal Aid Legal Help
MOJ,LAA,29/05/2019,Lower Crime,LEGAL AID FUND,ABR SOLICITORS,1719617:152489985,"33,639.00",Legal Aid Lower Crime
MOJ,LAA,29/05/2019,Lower Crime,LEGAL AID FUND,ABV SOLICITORS,1716132:152489341,"67,600.00",Legal Aid Lower Crime
MOJ,LAA,29/05/2019,Higher Crime,LEGAL AID FUND,ABV SOLICITORS,1716132:152440736,"55,663.26",Legal Aid Higher Crime
MOJ,LAA,29/05/2019,Higher Crime,LEGAL AID FUND,ABV SOLICITORS,1716132:152440728,"34,311.85",Legal Aid Higher Crime
MOJ,LAA,29/05/2019,Higher Crime,LEGAL AID FUND,ABV SOLICITORS-ADVOCATE,1717256:152460266,"45,931.68",Legal Aid Higher Crime
MOJ,LAA,29/05/2019,Lower Crime,LEGAL AID FUND,ACA LAW LTD,1717964:152489821,"46,098.00",Legal Aid Lower Crime
MOJ,LAA,29/05/2019,Higher Crime,LEGAL AID FUND,ADVICE WISE SOLICITORS LTD,1717762:152460076,"26,464.44",Legal Aid Higher Crime
MOJ,LAA,29/05/2019,Higher Crime,LEGAL AID FUND,ALAN P KENT QC,1719247:152449936,"28,200.00",Legal Aid Higher Crime
MOJ,LAA,29/05/2019,Legal Help,LEGAL AID FUND,ALASTAIR BATEMAN & CO,1717907:152488553,"28,545.00",Legal Aid Legal Help
MOJ,LAA,29/05/2019,Lower Crime,LEGAL AID FUND,ALBIN & CO LTD,1716869:152490532,"30,185.00",Legal Aid Lower Crime
MOJ,LAA,29/05/2019,Lower Crime,LEGAL AID FUND,ALBIN & CO LTD,1715340:152490753,"25,424.00",Legal Aid Lower Crime
MOJ,LAA,29/05/2019,Lower Crime,LEGAL AID FUND,ALEXANDER BENNETT,1715301:152489591,"25,400.00",Legal Aid Lower Crime
MOJ,LAA,29/05/2019,Lower Crime,LEGAL AID FUND,ALLEN HOOLE LTD,1716079:152489527,"37,700.00",Legal Aid Lower Crime
MOJ,LAA,29/05/2019,Lower Crime,LEGAL AID FUND,ALLEN HOOLE LTD,1718595:152490581,"28,166.00",Legal Aid Lower Crime
MOJ,LAA,29/05/2019,Higher Crime,LEGAL AID FUND,ALPHEGE BELL,1715662:152441145,"36,431.16",Legal Aid Higher Crime
MOJ,LAA,29/05/2019,Higher Crime,LEGAL AID FUND,ANDREW T A DALLAS,1715909:152439972,"29,290.49",Legal Aid Higher Crime
MOJ,LAA,29/05/2019,Lower Crime,LEGAL AID FUND,ANGELA PORTER SOLICITORS,1716144:152490121,"60,482.00",Legal Aid Lower Crime
MOJ,LAA,29/05/2019,Higher Crime,LEGAL AID FUND,ANTHONY C BERRY QC,1715985:152441678,"26,820.00",Legal Aid Higher Crime
MOJ,LAA,29/05/2019,Legal Help,LEGAL AID FUND,APPLEMAN LEGAL,1717009:152489104,"84,648.00",Legal Aid Legal Help
MOJ,LAA,29/05/2019,Legal Help,LEGAL AID FUND,APPLETONS SOLICITORS,1716756:152489164,"27,900.00",Legal Aid Legal Help
MOJ,LAA,29/05/2019,Lower Crime,LEGAL AID FUND,ASGHAR & CO,1718299:152489865,"26,145.00",Legal Aid Lower Crime
MOJ,LAA,29/05/2019,Higher Crime,LEGAL AID FUND,ASHCOTT SOLICITORS LTD,1717702:152460041,"28,271.90",Legal Aid Higher Crime
MOJ,LAA,29/05/2019,Lower Crime,LEGAL AID FUND,ASHLEY SMITH & CO,1716236:152489847,"25,299.00",Legal Aid Lower Crime
MOJ,LAA,29/05/2019,Civil Representation,LEGAL AID FUND,ATKINS HOPE SOLICITORS LTD,1716673:3000002653810012,"33,546.16",Legal Aid Civil Representation
MOJ,LAA,29/05/2019,Civil Representation,LEGAL AID FUND,ATKINS HOPE SOLICITORS LTD,1716673:3000003041210014,"27,858.67",Legal Aid Civil Representation
MOJ,LAA,29/05/2019,Lower Crime,LEGAL AID FUND,BAINS SOLICITORS,1716269:152489692,"32,233.00",Legal Aid Lower Crime
MOJ,LAA,29/05/2019,Lower Crime,LEGAL AID FUND,BAL DHALIWAL SOLICITORS,1719784:152489765,"34,610.00",Legal Aid Lower Crime
MOJ,LAA,29/05/2019,Higher Crime,LEGAL AID FUND,BALBIR SINGH,1717331:152449631,"25,211.16",Legal Aid Higher Crime
MOJ,LAA,29/05/2019,Legal Help,LEGAL AID FUND,BARNES HARRILD & DYER,1717098:152488987,"42,265.00",Legal Aid Legal Help
MOJ,LAA,29/05/2019,Legal Help,LEGAL AID FUND,BARNES HARRILD & DYER,1716502:152488603,"32,358.00",Legal Aid Legal Help
MOJ,LAA,29/05/2019,Higher Crime,LEGAL AID FUND,BARRETT & NELLIGAN SOLICITORS LTD,1719890:152440140,"107,970.13",Legal Aid Higher Crime
MOJ,LAA,29/05/2019,Lower Crime,LEGAL AID FUND,BELL LAMB & JOYNSON,1716241:152489479,"25,500.00",Legal Aid Lower Crime
MOJ,LAA,29/05/2019,Lower Crime,LEGAL AID FUND,BELMORES SOLICITORS LTD,1716196:152489739,"28,603.00",Legal Aid Lower Crime
MOJ,LAA,29/05/2019,Higher Crime,LEGAL AID FUND,BENJAMIN J MYERS QC,1717336:152444945,"174,240.00",Legal Aid Higher Crime
MOJ,LAA,29/05/2019,Lower Crime,LEGAL AID FUND,BESWICKS SOLICITORS LLP,1716548:152490194,"34,890.00",Legal Aid Lower Crime
MOJ,LAA,29/05/2019,Civil Representation,LEGAL AID FUND,BG SOLICITORS LLP,1717730:3000002486840012,"59,990.09",Legal Aid Civil Representation
MOJ,LAA,29/05/2019,Lower Crime,LEGAL AID FUND,BHATIA BEST LTD,1719864:152489275,"90,100.00",Legal Aid Lower Crime
MOJ,LAA,29/05/2019,Lower Crime,LEGAL AID FUND,BHATIA BEST LTD,1719862:152489278,"36,200.00",Legal Aid Lower Crime
MOJ,LAA,29/05/2019,Legal Help,LEGAL AID FUND,BINDMANS LLP,1719704:152488265,"85,000.00",Legal Aid Legal Help
MOJ,LAA,29/05/2019,Lower Crime,LEGAL AID FUND,BIRDS SOLICITORS LTD,1719682:152489331,"153,700.00",Legal Aid Lower Crime
MOJ,LAA,29/05/2019,Higher Crime,LEGAL AID FUND,BIRDS SOLICITORS LTD,1719682:152457560,"70,069.76",Legal Aid Higher Crime
MOJ,LAA,29/05/2019,Legal Help,LEGAL AID FUND,BISON SOLICITORS LTD,1717021:152466344,"98,000.00",Legal Aid Legal Help
MOJ,LAA,29/05/2019,Legal Help,LEGAL AID FUND,BISON SOLICITORS LTD,1717021:152466345,"63,005.00",Legal Aid Legal Help
MOJ,LAA,29/05/2019,Legal Help,LEGAL AID FUND,BISON SOLICITORS LTD,1716683:152489158,"32,732.00",Legal Aid Legal Help
MOJ,LAA,29/05/2019,Lower Crime,LEGAL AID FUND,BJ & CO SOLICITORS LTD T/A  BRIAN JACKSON & CO,1717904:152489383,"32,100.00",Legal Aid Lower Crime
MOJ,LAA,29/05/2019,Lower Crime,LEGAL AID FUND,BLACKFORDS LLP,1716667:152489794,"54,258.00",Legal Aid Lower Crime
MOJ,LAA,29/05/2019,Higher Crime,LEGAL AID FUND,BLACKFORDS LLP,1716667:152440720,"31,513.92",Legal Aid Higher Crime
MOJ,LAA,29/05/2019,Lower Crime,LEGAL AID FUND,BLACKWELLS,1719607:152489427,"46,400.00",Legal Aid Lower Crime
MOJ,LAA,29/05/2019,Lower Crime,LEGAL AID FUND,BOBBETTS MACKAN,1720032:152489520,"34,400.00",Legal Aid Lower Crime
MOJ,LAA,29/05/2019,Lower Crime,LEGAL AID FUND,BOND JOSEPH,1717910:152490084,"40,204.00",Legal Aid Lower Crime
MOJ,LAA,29/05/2019,Lower Crime,LEGAL AID FUND,BOOTS STARKE GOACHER SOLICITORS,1719782:152490094,"26,800.00",Legal Aid Lower Crime
MOJ,LAA,29/05/2019,Legal Help,LEGAL AID FUND,BRAITCH SOLICITORS (RB SOLICITORS),1717814:152488369,"33,699.00",Legal Aid Legal Help
MOJ,LAA,29/05/2019,Lower Crime,LEGAL AID FUND,BREYDONS SOLICITORS LTD,1716998:152490306,"33,538.00",Legal Aid Lower Crime
MOJ,LAA,29/05/2019,Legal Help,LEGAL AID FUND,BURKE NIAZI  LTD,1718186:152466342,"99,000.00",Legal Aid Legal Help
MOJ,LAA,29/05/2019,Legal Help,LEGAL AID FUND,BURKE NIAZI  LTD,1718186:152466343,"39,600.00",Legal Aid Legal Help
MOJ,LAA,29/05/2019,Higher Crime,LEGAL AID FUND,BURTON & CO LLP,1719872:152459237,"29,664.55",Legal Aid Higher Crime
MOJ,LAA,29/05/2019,Lower Crime,LEGAL AID FUND,BURTON COPELAND LLP,1718017:152490066,"41,207.00",Legal Aid Lower Crime
MOJ,LAA,29/05/2019,Legal Help,LEGAL AID FUND,BUTLER & CO,1716201:152488216,"30,000.00",Legal Aid Legal Help
MOJ,LAA,29/05/2019,Lower Crime,LEGAL AID FUND,C S SOLICITORS,1715222:152490459,"30,465.00",Legal Aid Lower Crime
MOJ,LAA,29/05/2019,Civil Representation,LEGAL AID FUND,CAMERON JONES HUSSELL & HOWE,1718195:3000003321050019,"27,527.55",Legal Aid Civil Representation
MOJ,LAA,29/05/2019,Legal Help,LEGAL AID FUND,CAMPBELL TAYLOR SOLICITORS,1718238:152488626,"33,506.00",Legal Aid Legal Help
MOJ,LAA,29/05/2019,Civil Representation,LEGAL AID FUND,CARPENTER SINGH SOLICITORS,1719985:152445098,"28,126.89",Legal Aid Civil Representation
MOJ,LAA,29/05/2019,Lower Crime,LEGAL AID FUND,CARR & CO,1716419:152489425,"27,672.00",Legal Aid Lower Crime
MOJ,LAA,29/05/2019,Lower Crime,LEGAL AID FUND,CARRINGTONS SOLICITORS,1717798:152489696,"237,049.00",Legal Aid Lower Crime
MOJ,LAA,29/05/2019,Lower Crime,LEGAL AID FUND,CARTER OSBORNE LTD,1716351:152489693,"118,274.00",Legal Aid Lower Crime
MOJ,LAA,29/05/2019,Higher Crime,LEGAL AID FUND,CARTWRIGHT KING LTD,1719447:152468849,"68,560.95",Legal Aid Higher Crime
MOJ,LAA,29/05/2019,Legal Help,LEGAL AID FUND,CARTWRIGHT KING LTD,1719661:152488767,"47,886.00",Legal Aid Legal Help
MOJ,LAA,29/05/2019,Higher Crime,LEGAL AID FUND,CITY LAW CHAMBERS LTD,1716093:152469470,"105,857.75",Legal Aid Higher Crime
MOJ,LAA,29/05/2019,Higher Crime,LEGAL AID FUND,CITY LAW CHAMBERS LTD,1716093:152469439,"71,545.90",Legal Aid Higher Crime
MOJ,LAA,29/05/2019,Lower Crime,LEGAL AID FUND,CJH SOLICITORS,1716258:152489296,"28,500.00",Legal Aid Lower Crime
MOJ,LAA,29/05/2019,Legal Help,LEGAL AID FUND,CLIFFORD JOHNSTON & CO,1718015:152488676,"36,351.00",Legal Aid Legal Help
MOJ,LAA,29/05/2019,Legal Help,LEGAL AID FUND,CONFREYS,1720002:152488496,"39,797.00",Legal Aid Legal Help
MOJ,LAA,29/05/2019,Lower Crime,LEGAL AID FUND,CONNOR ROSS-BROWN SOLICITORS,1717194:152489587,"35,000.00",Legal Aid Lower Crime
MOJ,LAA,29/05/2019,Higher Crime,LEGAL AID FUND,COODES LLP,1719980:152450661,"26,906.06",Legal Aid Higher Crime
MOJ,LAA,29/05/2019,Civil Representation,LEGAL AID FUND,COOLE BEVIS LLP,1716670:152486217,"25,937.94",Legal Aid Civil Representation
MOJ,LAA,29/05/2019,Lower Crime,LEGAL AID FUND,COUSINS TYRER SOLICITORS,1718093:152489983,"25,233.00",Legal Aid Lower Crime
MOJ,LAA,29/05/2019,Legal Help,LEGAL AID FUND,COVENTRY LAW CENTRE LTD,1717930:152488386,"47,122.00",Legal Aid Legal Help
MOJ,LAA,29/05/2019,Lower Crime,LEGAL AID FUND,CRIMINAL DEFENCE ASSOCIATES LTD,1717886:152489301,"25,000.00",Legal Aid Lower Crime
MOJ,LAA,29/05/2019,Lower Crime,LEGAL AID FUND,CRIMINAL DEFENCE MILTON KEYNES LTD,1716057:152489504,"29,000.00",Legal Aid Lower Crime
MOJ,LAA,29/05/2019,Lower Crime,LEGAL AID FUND,CRIMINAL DEFENCE SOLICITORS,1717867:152489364,"26,800.00",Legal Aid Lower Crime
MOJ,LAA,29/05/2019,Lower Crime,LEGAL AID FUND,CROWE HUMBLE WESENCRAFT,1717947:152489399,"50,700.00",Legal Aid Lower Crime
MOJ,LAA,29/05/2019,Higher Crime,LEGAL AID FUND,DALTON HOLMES GRAY,1719734:152449595,"85,778.14",Legal Aid Higher Crime
MOJ,LAA,29/05/2019,Lower Crime,LEGAL AID FUND,DALTON HOLMES GRAY,1719734:152489855,"31,699.00",Legal Aid Lower Crime
MOJ,LAA,29/05/2019,Lower Crime,LEGAL AID FUND,DANIEL WOODMAN & CO LTD,1717919:152489525,"26,300.00",Legal Aid Lower Crime
MOJ,LAA,29/05/2019,Civil Representation,LEGAL AID FUND,DARREN F HOWE QC,1719141:3000004008010009,"29,378.70",Legal Aid Civil Representation
MOJ,LAA,29/05/2019,Legal Help,LEGAL AID FUND,DAVID GRAY LLP,1719612:152488725,"56,840.00",Legal Aid Legal Help
MOJ,LAA,29/05/2019,Lower Crime,LEGAL AID FUND,DAVID SEDGWICK SOLICITORS LTD,1719547:152489607,"26,732.00",Legal Aid Lower Crime
MOJ,LAA,29/05/2019,Lower Crime,LEGAL AID FUND,DEFENCE LAW LTD,1719452:152490351,"32,257.00",Legal Aid Lower Crime
MOJ,LAA,29/05/2019,Higher Crime,LEGAL AID FUND,DENNINGS SOLICITORS LTD,1719522:152450857,"48,015.74",Legal Aid Higher Crime
MOJ,LAA,29/05/2019,Lower Crime,LEGAL AID FUND,DEVAS KEOGH JAMES SOLICITORS LTD,1719965:152489757,"27,439.00",Legal Aid Lower Crime
MOJ,LAA,29/05/2019,Lower Crime,LEGAL AID FUND,DEVONALD GRIFFITHS JOHN,1717994:152489268,"45,000.00",Legal Aid Lower Crime
MOJ,LAA,29/05/2019,Higher Crime,LEGAL AID FUND,DEVONALD GRIFFITHS JOHN,1715482:152450847,"34,395.88",Legal Aid Higher Crime
MOJ,LAA,29/05/2019,Lower Crime,LEGAL AID FUND,DJMS SOLICITORS LTD,1716107:152489914,"27,198.00",Legal Aid Lower Crime
MOJ,LAA,29/05/2019,Higher Crime,LEGAL AID FUND,DOMINIC R M THOMAS,1717681:152439898,"35,022.00",Legal Aid Higher Crime
MOJ,LAA,29/05/2019,Legal Help,LEGAL AID FUND,DONOVAN NEWTON SOLICITORS,1719570:152488744,"40,536.00",Legal Aid Legal Help
MOJ,LAA,29/05/2019,Civil Representation,LEGAL AID FUND,DOROTHEA S GARTLAND,1715603:3000003948480008,"38,177.44",Legal Aid Civil Representation
MOJ,LAA,29/05/2019,Higher Crime,LEGAL AID FUND,DPP LAW LTD,1719593:152468844,"105,857.75",Legal Aid Higher Crime
MOJ,LAA,29/05/2019,Legal Help,LEGAL AID FUND,DUNCAN LEWIS SOLICITORS  LTD,1716237:152466340,"93,000.00",Legal Aid Legal Help
MOJ,LAA,29/05/2019,Legal Help,LEGAL AID FUND,DUNCAN LEWIS SOLICITORS  LTD,1716237:152466339,"92,000.00",Legal Aid Legal Help
MOJ,LAA,29/05/2019,Legal Help,LEGAL AID FUND,DUNCAN LEWIS SOLICITORS  LTD,1716238:152466334,"88,000.00",Legal Aid Legal Help
MOJ,LAA,29/05/2019,Legal Help,LEGAL AID FUND,DUNCAN LEWIS SOLICITORS  LTD,1716238:152466335,"87,000.00",Legal Aid Legal Help
MOJ,LAA,29/05/2019,Legal Help,LEGAL AID FUND,DUNCAN LEWIS SOLICITORS  LTD,1716238:152466336,"86,000.00",Legal Aid Legal Help
MOJ,LAA,29/05/2019,Legal Help,LEGAL AID FUND,DUNCAN LEWIS SOLICITORS  LTD,1716238:152466337,"85,000.00",Legal Aid Legal Help
MOJ,LAA,29/05/2019,Legal Help,LEGAL AID FUND,DUNCAN LEWIS SOLICITORS  LTD,1716237:152466341,"83,400.00",Legal Aid Legal Help
MOJ,LAA,29/05/2019,Legal Help,LEGAL AID FUND,DUNCAN LEWIS SOLICITORS  LTD,1715304:152488345,"59,300.00",Legal Aid Legal Help
MOJ,LAA,29/05/2019,Legal Help,LEGAL AID FUND,DUNCAN LEWIS SOLICITORS  LTD,1716238:152466338,"54,000.00",Legal Aid Legal Help
MOJ,LAA,29/05/2019,Lower Crime,LEGAL AID FUND,DUNCAN LEWIS SOLICITORS  LTD,1716237:152489350,"43,200.00",Legal Aid Lower Crime
MOJ,LAA,29/05/2019,Higher Crime,LEGAL AID FUND,EBR ATTRIDGE LLP,1717833:152450088,"50,231.24",Legal Aid Higher Crime
MOJ,LAA,29/05/2019,Lower Crime,LEGAL AID FUND,EBR ATTRIDGE LLP,1717834:152489786,"37,574.00",Legal Aid Lower Crime
MOJ,LAA,29/05/2019,Lower Crime,LEGAL AID FUND,EBR ATTRIDGE LLP,1717833:152489789,"28,211.00",Legal Aid Lower Crime
MOJ,LAA,29/05/2019,Lower Crime,LEGAL AID FUND,EDWARD FAIL BRADSHAW & WATERSON,1716655:152489869,"26,160.00",Legal Aid Lower Crime
MOJ,LAA,29/05/2019,Lower Crime,LEGAL AID FUND,EDWARDS DUTHIE SHAMASH SOLICITORS,1718302:152490414,"31,410.00",Legal Aid Lower Crime
MOJ,LAA,29/05/2019,Lower Crime,LEGAL AID FUND,EDWARDS VAZIRANEY,1717824:152489796,"27,150.00",Legal Aid Lower Crime
MOJ,LAA,29/05/2019,Legal Help,LEGAL AID FUND,ELDER RAHIMI LIMITED,1718021:152488653,"45,698.00",Legal Aid Legal Help
MOJ,LAA,29/05/2019,Higher Crime,LEGAL AID FUND,ELIZABETH A MARSH QC,1715930:152450332,"91,620.00",Legal Aid Higher Crime
MOJ,LAA,29/05/2019,Lower Crime,LEGAL AID FUND,ELLIOT MATHER LLP,1719871:152489292,"28,800.00",Legal Aid Lower Crime
MOJ,LAA,29/05/2019,Lower Crime,LEGAL AID FUND,EVANS HAYES BURNELL SOLICITORS LTD,1716818:152490512,"28,073.00",Legal Aid Lower Crime
MOJ,LAA,29/05/2019,Legal Help,LEGAL AID FUND,FADIGA & CO LTD,1719920:152488595,"39,739.00",Legal Aid Legal Help
MOJ,LAA,29/05/2019,Higher Crime,LEGAL AID FUND,FARLEYS SOLICITORS LLP,1716868:152451009,"41,555.97",Legal Aid Higher Crime
MOJ,LAA,29/05/2019,Lower Crime,LEGAL AID FUND,FARLEYS SOLICITORS LLP,1719905:152489446,"25,700.00",Legal Aid Lower Crime
MOJ,LAA,29/05/2019,Legal Help,LEGAL AID FUND,FISHER JONES GREENWOOD LLP,1718778:152489004,"27,818.00",Legal Aid Legal Help
MOJ,LAA,29/05/2019,Lower Crime,LEGAL AID FUND,FORBES SOLICITORS,1719715:152489454,"50,000.00",Legal Aid Lower Crime
MOJ,LAA,29/05/2019,Lower Crime,LEGAL AID FUND,FORBES SOLICITORS,1719714:152489456,"29,000.00",Legal Aid Lower Crime
MOJ,LAA,29/05/2019,Legal Help,LEGAL AID FUND,FOUNTAIN SOLICITORS LTD,1719551:152466332,"91,000.00",Legal Aid Legal Help
MOJ,LAA,29/05/2019,Legal Help,LEGAL AID FUND,FOUNTAIN SOLICITORS LTD,1719551:152466333,"89,500.00",Legal Aid Legal Help
MOJ,LAA,29/05/2019,Legal Help,LEGAL AID FUND,FOUNTAIN SOLICITORS LTD,1716703:152489153,"35,063.00",Legal Aid Legal Help
MOJ,LAA,29/05/2019,Civil Representation,LEGAL AID FUND,FRANCES R ORCHOVER,1719228:3000004210690032,"26,165.60",Legal Aid Civil Representation
MOJ,LAA,29/05/2019,Lower Crime,LEGAL AID FUND,G T STEWART LTD,1716097:152490296,"63,036.00",Legal Aid Lower Crime
MOJ,LAA,29/05/2019,Legal Help,LEGAL AID FUND,G T STEWART LTD,1715535:152488946,"35,073.00",Legal Aid Legal Help
MOJ,LAA,29/05/2019,Lower Crime,LEGAL AID FUND,G T STEWART LTD,1717852:152489861,"29,473.00",Legal Aid Lower Crime
MOJ,LAA,29/05/2019,Lower Crime,LEGAL AID FUND,GAMMON PIERCY & GAIGER LLP,1716677:152490099,"48,851.00",Legal Aid Lower Crime
MOJ,LAA,29/05/2019,Civil Representation,LEGAL AID FUND,GARDNER LEADER LLP,1718324:3000003099740016,"30,277.80",Legal Aid Civil Representation
MOJ,LAA,29/05/2019,Civil Representation,LEGAL AID FUND,GARETH JONATHAN-JONES,1719223:3000003504270017,"26,838.00",Legal Aid Civil Representation
MOJ,LAA,29/05/2019,Lower Crime,LEGAL AID FUND,GARTSIDES,1719999:152489623,"29,376.00",Legal Aid Lower Crime
MOJ,LAA,29/05/2019,Lower Crime,LEGAL AID FUND,GEOFF WHITE & CO,1716053:152490086,"39,753.00",Legal Aid Lower Crime
MOJ,LAA,29/05/2019,Lower Crime,LEGAL AID FUND,GEOFFREY FORRESTER & CO,1716408:152489394,"35,000.00",Legal Aid Lower Crime
MOJ,LAA,29/05/2019,Lower Crime,LEGAL AID FUND,GEPP & SONS SOLICITORS LLP,1716364:152489311,"25,800.00",Legal Aid Lower Crime
MOJ,LAA,29/05/2019,Lower Crime,LEGAL AID FUND,GGP LAW LTD,1719511:152489673,"31,247.00",Legal Aid Lower Crime
MOJ,LAA,29/05/2019,Lower Crime,LEGAL AID FUND,GHP LEGAL,1716273:152489273,"31,300.00",Legal Aid Lower Crime
MOJ,LAA,29/05/2019,Legal Help,LEGAL AID FUND,GLEDHILL GILL SOLICITORS,1718289:152488409,"53,721.00",Legal Aid Legal Help
MOJ,LAA,29/05/2019,Lower Crime,LEGAL AID FUND,GOLDKORNS,1717778:152490249,"28,746.00",Legal Aid Lower Crime
MOJ,LAA,29/05/2019,Lower Crime,LEGAL AID FUND,GOMER WILLIAMS,1720001:152489636,"36,877.00",Legal Aid Lower Crime
MOJ,LAA,29/05/2019,Lower Crime,LEGAL AID FUND,GOODALL BARNETT JAMES SOLICITORS,1718190:152489485,"27,100.00",Legal Aid Lower Crime
MOJ,LAA,29/05/2019,Lower Crime,LEGAL AID FUND,GRAHAM & CO SOLICITORS LTD,1716836:152490705,"31,452.00",Legal Aid Lower Crime
MOJ,LAA,29/05/2019,Civil Representation,LEGAL AID FUND,GRAHAME STOWE BATESON,1716999:3000003561620010,"26,574.56",Legal Aid Civil Representation
MOJ,LAA,29/05/2019,Civil Representation,LEGAL AID FUND,GRAHAME STOWE BATESON,1716999:3000003311780022,"25,926.52",Legal Aid Civil Representation
MOJ,LAA,29/05/2019,Lower Crime,LEGAL AID FUND,GRECH GOODEN SOLICITORS LTD,1719591:152489652,"26,801.00",Legal Aid Lower Crime
MOJ,LAA,29/05/2019,Legal Help,LEGAL AID FUND,GUILE NICHOLAS-INC DONALD GALBRAITH & CO,1719552:152488263,"80,000.00",Legal Aid Legal Help
MOJ,LAA,29/05/2019,Legal Help,LEGAL AID FUND,GUILE NICHOLAS-INC DONALD GALBRAITH & CO,1717033:152489093,"27,741.00",Legal Aid Legal Help
MOJ,LAA,29/05/2019,Lower Crime,LEGAL AID FUND,GWB HARTHILLS LLP,1719605:152489958,"57,260.00",Legal Aid Lower Crime
MOJ,LAA,29/05/2019,Lower Crime,LEGAL AID FUND,H P GOWER SOLICITORS,1717744:152490333,"41,795.00",Legal Aid Lower Crime
MOJ,LAA,29/05/2019,Legal Help,LEGAL AID FUND,HALLIDAY REEVES LAW FIRM,1719431:152488892,"28,372.00",Legal Aid Legal Help
MOJ,LAA,29/05/2019,Civil Representation,LEGAL AID FUND,HARNEY & WELLS,1716202:3000001109230011,"26,533.08",Legal Aid Civil Representation
MOJ,LAA,29/05/2019,Lower Crime,LEGAL AID FUND,HARRINGTONS LEGAL LLP,1719840:152489562,"26,900.00",Legal Aid Lower Crime
MOJ,LAA,29/05/2019,Lower Crime,LEGAL AID FUND,HARRIS CUFFARO & NICHOLS,1719967:152489307,"44,500.00",Legal Aid Lower Crime
MOJ,LAA,29/05/2019,Higher Crime,LEGAL AID FUND,HARRIS SOLICITORS LTD,1717716:152439770,"89,975.11",Legal Aid Higher Crime
MOJ,LAA,29/05/2019,Higher Crime,LEGAL AID FUND,HARRIS SOLICITORS LTD,1717716:152440925,"89,975.11",Legal Aid Higher Crime
MOJ,LAA,29/05/2019,Higher Crime,LEGAL AID FUND,HARRY J BENTLEY,1715972:152441113,"34,596.00",Legal Aid Higher Crime
MOJ,LAA,29/05/2019,Higher Crime,LEGAL AID FUND,HARWOOD SOLICITORS,1715217:152440290,"45,928.38",Legal Aid Higher Crime
MOJ,LAA,29/05/2019,Lower Crime,LEGAL AID FUND,HASKELL & CO,1719543:152490078,"29,718.00",Legal Aid Lower Crime
MOJ,LAA,29/05/2019,Lower Crime,LEGAL AID FUND,HAY & KILNER LLP,1718126:152489925,"28,560.00",Legal Aid Lower Crime
MOJ,LAA,29/05/2019,Lower Crime,LEGAL AID FUND,HENNESSY & HAMMUDI,1719525:152489511,"50,000.00",Legal Aid Lower Crime
MOJ,LAA,29/05/2019,Lower Crime,LEGAL AID FUND,HENRY HYAMS LTD,1718102:152489981,"35,316.00",Legal Aid Lower Crime
MOJ,LAA,29/05/2019,Lower Crime,LEGAL AID FUND,HERMANS,1717979:152489450,"28,500.00",Legal Aid Lower Crime
MOJ,LAA,29/05/2019,Lower Crime,LEGAL AID FUND,HILL TWINE,1715331:152490407,"27,984.00",Legal Aid Lower Crime
MOJ,LAA,29/05/2019,Lower Crime,LEGAL AID FUND,HINE SOLICITORS,1717707:152490299,"43,527.00",Legal Aid Lower Crime
MOJ,LAA,29/05/2019,Lower Crime,LEGAL AID FUND,HINE SOLICITORS,1718590:152490585,"26,639.00",Legal Aid Lower Crime
MOJ,LAA,29/05/2019,Lower Crime,LEGAL AID FUND,HODGE JONES & ALLEN SOLICITORS LTD,1720050:152489844,"106,064.00",Legal Aid Lower Crime
MOJ,LAA,29/05/2019,Higher Crime,LEGAL AID FUND,HODGE JONES & ALLEN SOLICITORS LTD,1720050:152459358,"80,680.55",Legal Aid Higher Crime
MOJ,LAA,29/05/2019,Legal Help,LEGAL AID FUND,HODGE JONES & ALLEN SOLICITORS LTD,1720050:152488635,"63,852.00",Legal Aid Legal Help
MOJ,LAA,29/05/2019,Higher Crime,LEGAL AID FUND,HODGE JONES & ALLEN SOLICITORS LTD,1720050:152449690,"62,458.64",Legal Aid Higher Crime
MOJ,LAA,29/05/2019,Higher Crime,LEGAL AID FUND,HOPLEYS GMA-INC KEENE & KELLY,1716276:152458900,"89,975.11",Legal Aid Higher Crime
MOJ,LAA,29/05/2019,Lower Crime,LEGAL AID FUND,HORSMAN SOLICITORS LTD,1716469:152490081,"32,961.00",Legal Aid Lower Crime
MOJ,LAA,29/05/2019,Lower Crime,LEGAL AID FUND,HOWARD & BYRNE SOLICITORS,1719679:152489424,"67,500.00",Legal Aid Lower Crime
MOJ,LAA,29/05/2019,Lower Crime,LEGAL AID FUND,HOWARDS & HENRY'S SOLICITORS LTD,1718617:152490561,"26,428.00",Legal Aid Lower Crime
MOJ,LAA,29/05/2019,Legal Help,LEGAL AID FUND,HOWE & CO,1719606:152488649,"43,622.00",Legal Aid Legal Help
MOJ,LAA,29/05/2019,Lower Crime,LEGAL AID FUND,HOWELLS LLP,1718088:152489414,"39,000.00",Legal Aid Lower Crime
MOJ,LAA,29/05/2019,Legal Help,LEGAL AID FUND,HOWELLS LLP,1718088:152488235,"33,500.00",Legal Aid Legal Help
MOJ,LAA,29/05/2019,Lower Crime,LEGAL AID FUND,HOWELLS LLP,1718087:152489420,"28,500.00",Legal Aid Lower Crime
MOJ,LAA,29/05/2019,Civil Representation,LEGAL AID FUND,HPJV SOLICITORS,1716527:152446918,"-31,807.53",Legal Aid Civil Representation
MOJ,LAA,29/05/2019,Lower Crime,LEGAL AID FUND,I B B SOLICITORS,1716154:152489338,"48,600.00",Legal Aid Lower Crime
MOJ,LAA,29/05/2019,Legal Help,LEGAL AID FUND,IMMIGRATION ADVICE SERVICE,1718752:152489017,"29,167.00",Legal Aid Legal Help
MOJ,LAA,29/05/2019,Lower Crime,LEGAL AID FUND,INSTALAW,1718739:152490463,"89,722.00",Legal Aid Lower Crime
MOJ,LAA,29/05/2019,Legal Help,LEGAL AID FUND,IRIS LAW SOLICITORS,1719428:152488915,"25,301.00",Legal Aid Legal Help
MOJ,LAA,29/05/2019,Lower Crime,LEGAL AID FUND,IRVINE THANVI NATAS SOLICITORS,1717973:152489326,"43,500.00",Legal Aid Lower Crime
MOJ,LAA,29/05/2019,Civil Representation,LEGAL AID FUND,ISON HARRISON LTD,1719633:152208191,"28,253.36",Legal Aid Civil Representation
MOJ,LAA,29/05/2019,Civil Representation,LEGAL AID FUND,ISON HARRISON LTD,1719633:152208190,"-28,253.37",Legal Aid Civil Representation
MOJ,LAA,29/05/2019,Lower Crime,LEGAL AID FUND,J D SOLICITORS,1715147:152445436,"68,709.17",Legal Aid Lower Crime
MOJ,LAA,29/05/2019,Lower Crime,LEGAL AID FUND,J D SPICER ZEB,1720053:152489804,"58,451.00",Legal Aid Lower Crime
MOJ,LAA,29/05/2019,Legal Help,LEGAL AID FUND,J D SPICER ZEB,1720052:152488612,"36,797.00",Legal Aid Legal Help
MOJ,LAA,29/05/2019,Legal Help,LEGAL AID FUND,JACKSON LEES GROUP LTD,1715518:152489075,"94,286.00",Legal Aid Legal Help
MOJ,LAA,29/05/2019,Lower Crime,LEGAL AID FUND,JACKSON LEES GROUP LTD,1715518:152490391,"47,311.00",Legal Aid Lower Crime
MOJ,LAA,29/05/2019,Legal Help,LEGAL AID FUND,JACKSON LEES GROUP LTD,1718836:152489020,"25,334.00",Legal Aid Legal Help
MOJ,LAA,29/05/2019,Higher Crime,LEGAL AID FUND,JAKE TAYLOR,1718693:152465112,"43,800.00",Legal Aid Higher Crime
MOJ,LAA,29/05/2019,Lower Crime,LEGAL AID FUND,JAMES MURRAY SOLICITORS,1719700:152489890,"28,689.00",Legal Aid Lower Crime
MOJ,LAA,29/05/2019,Higher Crime,LEGAL AID FUND,JANES SOLICITORS,1719929:152447257,"41,620.34",Legal Aid Higher Crime
MOJ,LAA,29/05/2019,Civil Representation,LEGAL AID FUND,JANET E REANEY,1715717:3000002654790041,"42,330.60",Legal Aid Civil Representation
MOJ,LAA,29/05/2019,Lower Crime,LEGAL AID FUND,JASON NICHOLSON,1715073:152490682,"28,634.00",Legal Aid Lower Crime
MOJ,LAA,29/05/2019,Civil Representation,LEGAL AID FUND,JEREMY P WESTON,1715942:152485669,"53,316.00",Legal Aid Civil Representation
MOJ,LAA,29/05/2019,Civil Representation,LEGAL AID FUND,JEREMY P WESTON,1715942:152485672,"-56,088.00",Legal Aid Civil Representation
MOJ,LAA,29/05/2019,Higher Crime,LEGAL AID FUND,JEREMY S DEIN QC,1717612:152440028,"39,180.00",Legal Aid Higher Crime
MOJ,LAA,29/05/2019,Lower Crime,LEGAL AID FUND,JERMAN SAMUELS & PEARSON LLP,1715109:152489597,"63,000.00",Legal Aid Lower Crime
MOJ,LAA,29/05/2019,Higher Crime,LEGAL AID FUND,JOE STONE,1717384:152449470,"28,200.00",Legal Aid Higher Crime
MOJ,LAA,29/05/2019,Civil Representation,LEGAL AID FUND,JOEL N BENNATHAN QC,1715949:3000001699380003,"33,874.50",Legal Aid Civil Representation
MOJ,LAA,29/05/2019,Legal Help,LEGAL AID FUND,JOHN BLACK SOLICITORS LTD,1718616:152489140,"27,189.00",Legal Aid Legal Help
MOJ,LAA,29/05/2019,Lower Crime,LEGAL AID FUND,JOHN DELANEY & CO SOLICITORS,1719635:152489432,"33,000.00",Legal Aid Lower Crime
MOJ,LAA,29/05/2019,Civil Representation,LEGAL AID FUND,JONATHAN C WILSON,1719119:3000003304450045,"55,817.45",Legal Aid Civil Representation
MOJ,LAA,29/05/2019,Lower Crime,LEGAL AID FUND,JSP LAW LTD,1718703:152490427,"44,746.00",Legal Aid Lower Crime
MOJ,LAA,29/05/2019,Higher Crime,LEGAL AID FUND,K LEGAL SOLICITORS,1719453:152449597,"107,970.13",Legal Aid Higher Crime
MOJ,LAA,29/05/2019,Higher Crime,LEGAL AID FUND,KEANEY WHITEHEAD PARTNERSHIP,1719583:152459360,"78,261.36",Legal Aid Higher Crime
MOJ,LAA,29/05/2019,Higher Crime,LEGAL AID FUND,KENNETH M BARROW & CO,1716459:152440640,"27,315.30",Legal Aid Higher Crime
MOJ,LAA,29/05/2019,Lower Crime,LEGAL AID FUND,KESAR & CO SOLICITORS,1719448:152490352,"46,365.00",Legal Aid Lower Crime
MOJ,LAA,29/05/2019,Lower Crime,LEGAL AID FUND,KYLES LEGAL PRACTICE,1717728:152490247,"25,739.00",Legal Aid Lower Crime
MOJ,LAA,29/05/2019,Lower Crime,LEGAL AID FUND,LANSBURY WORTHINGTON LTD,1719963:152489317,"45,000.00",Legal Aid Lower Crime
MOJ,LAA,29/05/2019,Legal Help,LEGAL AID FUND,LAWANA & CO,1719509:152488251,"64,000.00",Legal Aid Legal Help
MOJ,LAA,29/05/2019,Lower Crime,LEGAL AID FUND,LAWRENCE & CO SOLICITORS CDS LLP,1719817:152489362,"42,500.00",Legal Aid Lower Crime
MOJ,LAA,29/05/2019,Lower Crime,LEGAL AID FUND,LAWTONS SOLICITORS LTD,1717736:152489581,"35,500.00",Legal Aid Lower Crime
MOJ,LAA,29/05/2019,Lower Crime,LEGAL AID FUND,LAWTONS SOLICITORS LTD,1716814:152489598,"35,000.00",Legal Aid Lower Crime
MOJ,LAA,29/05/2019,Legal Help,LEGAL AID FUND,LEGAL JUSTICE SOLICITORS,1718832:152489026,"49,064.00",Legal Aid Legal Help
MOJ,LAA,29/05/2019,Legal Help,LEGAL AID FUND,LEI DAT & BAIG SOLICITORS LTD,1715992:152488917,"74,364.00",Legal Aid Legal Help
MOJ,LAA,29/05/2019,Lower Crime,LEGAL AID FUND,LESLIE FRANKS SOLICITORS,1717804:152489849,"35,895.00",Legal Aid Lower Crime
MOJ,LAA,29/05/2019,Lower Crime,LEGAL AID FUND,LEVY & CO SOLICITORS LLP,1719505:152489735,"36,158.00",Legal Aid Lower Crime
MOJ,LAA,29/05/2019,Legal Help,LEGAL AID FUND,LEVY & CO SOLICITORS LLP,1719505:152489062,"34,129.00",Legal Aid Legal Help
MOJ,LAA,29/05/2019,Lower Crime,LEGAL AID FUND,LEVY & CO SOLICITORS LLP,1716062:152489308,"30,700.00",Legal Aid Lower Crime
MOJ,LAA,29/05/2019,Higher Crime,LEGAL AID FUND,LEWIS NEDAS LAW LTD,1720027:152449664,"89,975.11",Legal Aid Higher Crime
MOJ,LAA,29/05/2019,Lower Crime,LEGAL AID FUND,LEWIS NEDAS LAW LTD,1715151:152490696,"26,665.00",Legal Aid Lower Crime
MOJ,LAA,29/05/2019,Lower Crime,LEGAL AID FUND,LHD SOLICITORS LTD,1717853:152489441,"32,000.00",Legal Aid Lower Crime
MOJ,LAA,29/05/2019,Higher Crime,LEGAL AID FUND,LIBERTY LAW SOLICITORS LTD,1719560:152441009,"71,851.03",Legal Aid Higher Crime
MOJ,LAA,29/05/2019,Higher Crime,LEGAL AID FUND,LIBERTY LAW SOLICITORS LTD,1719560:152431747,"-52,485.47",Legal Aid Higher Crime
MOJ,LAA,29/05/2019,Lower Crime,LEGAL AID FUND,LLM SOLICITORS (LONDON) LTD,1717733:152490344,"30,132.00",Legal Aid Lower Crime
MOJ,LAA,29/05/2019,Lower Crime,LEGAL AID FUND,LLOYDS PR SOLICITORS,1716083:152489721,"42,993.00",Legal Aid Lower Crime
MOJ,LAA,29/05/2019,Higher Crime,LEGAL AID FUND,LONDONIUM SOLICITORS,1718600:152469718,"59,674.88",Legal Aid Higher Crime
MOJ,LAA,29/05/2019,Lower Crime,LEGAL AID FUND,LUMB & MACGILL,1719614:152489426,"30,000.00",Legal Aid Lower Crime
MOJ,LAA,29/05/2019,Legal Help,LEGAL AID FUND,LUQMANI THOMPSON & PARTNERS,1717962:152488587,"53,909.00",Legal Aid Legal Help
MOJ,LAA,29/05/2019,Higher Crime,LEGAL AID FUND,M & N SOLICITORS-ADVOCATE,1717287:152460090,"25,755.36",Legal Aid Higher Crime
MOJ,LAA,29/05/2019,Lower Crime,LEGAL AID FUND,M K LAW SOLICITORS LTD,1717210:152490493,"26,612.00",Legal Aid Lower Crime
MOJ,LAA,29/05/2019,Civil Representation,LEGAL AID FUND,MACHINS SOLICITORS LLP,1716363:152466772,"75,472.73",Legal Aid Civil Representation
MOJ,LAA,29/05/2019,Civil Representation,LEGAL AID FUND,MACHINS SOLICITORS LLP,1716363:152466847,"-52,710.17",Legal Aid Civil Representation
MOJ,LAA,29/05/2019,Higher Crime,LEGAL AID FUND,MAGUIRES SOLICITORS LTD,1719515:152450722,"31,812.25",Legal Aid Higher Crime
MOJ,LAA,29/05/2019,Lower Crime,LEGAL AID FUND,MANN & CO SOLICITORS LTD,1716254:152489540,"27,500.00",Legal Aid Lower Crime
MOJ,LAA,29/05/2019,Civil Representation,LEGAL AID FUND,MARGARET F SWEETING,1718874:3000003173020010,"42,214.79",Legal Aid Civil Representation
MOJ,LAA,29/05/2019,Higher Crime,LEGAL AID FUND,MARK G MILLIKEN-SMITH,1717381:152468712,"71,537.70",Legal Aid Higher Crime
MOJ,LAA,29/05/2019,Higher Crime,LEGAL AID FUND,MARK M GEORGE QC,1719159:152459012,"72,840.00",Legal Aid Higher Crime
MOJ,LAA,29/05/2019,Lower Crime,LEGAL AID FUND,MARTIN MURRAY & ASSOCIATES,1716621:152490113,"38,480.00",Legal Aid Lower Crime
MOJ,LAA,29/05/2019,Lower Crime,LEGAL AID FUND,MARTIN MURRAY & ASSOCIATES,1716622:152489797,"31,004.00",Legal Aid Lower Crime
MOJ,LAA,29/05/2019,Civil Representation,LEGAL AID FUND,MARTINA VAN DER LEGH,1717579:3000003808020029,"26,730.00",Legal Aid Civil Representation
MOJ,LAA,29/05/2019,Lower Crime,LEGAL AID FUND,MARTYN HEWETT,1716632:152489488,"25,000.00",Legal Aid Lower Crime
MOJ,LAA,29/05/2019,Legal Help,LEGAL AID FUND,MATTHEW GOLD & CO LTD,1717983:152488593,"32,862.00",Legal Aid Legal Help
MOJ,LAA,29/05/2019,Higher Crime,LEGAL AID FUND,MBC SOLICITORS LTD,1719535:152459457,"39,083.13",Legal Aid Higher Crime
MOJ,LAA,29/05/2019,Lower Crime,LEGAL AID FUND,MCGRATH & CO SOLICITORS,1716189:152489550,"34,200.00",Legal Aid Lower Crime
MOJ,LAA,29/05/2019,Lower Crime,LEGAL AID FUND,MCLARTYS SOLICITORS,1719576:152489347,"25,000.00",Legal Aid Lower Crime
MOJ,LAA,29/05/2019,Lower Crime,LEGAL AID FUND,MCMILLAN WILLIAMS SOLICITORS LTD,1718656:152490773,"64,366.00",Legal Aid Lower Crime
MOJ,LAA,29/05/2019,Lower Crime,LEGAL AID FUND,MCMILLAN WILLIAMS SOLICITORS LTD,1718579:152490594,"58,497.00",Legal Aid Lower Crime
MOJ,LAA,29/05/2019,Lower Crime,LEGAL AID FUND,MCSORLEY LEWIS LAW LTD,1720008:152489645,"30,374.00",Legal Aid Lower Crime
MOJ,LAA,29/05/2019,Legal Help,LEGAL AID FUND,MENTAL HEALTH LEGAL REPRESENTATION LTD,1716164:152488745,"28,735.00",Legal Aid Legal Help
MOJ,LAA,29/05/2019,Lower Crime,LEGAL AID FUND,MICHAEL CARROLL & CO,1716222:152489367,"37,800.00",Legal Aid Lower Crime
MOJ,LAA,29/05/2019,Higher Crime,LEGAL AID FUND,MICHAEL J MAHER,1715575:152444944,"89,920.01",Legal Aid Higher Crime
MOJ,LAA,29/05/2019,Higher Crime,LEGAL AID FUND,MICHAEL P GOOLD,1718760:152468024,"29,400.00",Legal Aid Higher Crime
MOJ,LAA,29/05/2019,Lower Crime,LEGAL AID FUND,MICHAEL PURDON,1716452:152489929,"38,322.00",Legal Aid Lower Crime
MOJ,LAA,29/05/2019,Higher Crime,LEGAL AID FUND,MIDDLEWEEKS LEGAL LTD,1716577:152468755,"46,036.82",Legal Aid Higher Crime
MOJ,LAA,29/05/2019,Lower Crime,LEGAL AID FUND,NEEDHAM POULIER LTD,1717960:152489874,"26,362.00",Legal Aid Lower Crime
MOJ,LAA,29/05/2019,Lower Crime,LEGAL AID FUND,NOBLE SOLICITORS,1717787:152490261,"43,758.00",Legal Aid Lower Crime
MOJ,LAA,29/05/2019,Lower Crime,LEGAL AID FUND,NOBLE SOLICITORS,1718597:152490579,"26,623.00",Legal Aid Lower Crime
MOJ,LAA,29/05/2019,Lower Crime,LEGAL AID FUND,NORRIE WAITE & SLATER,1719792:152489416,"36,000.00",Legal Aid Lower Crime
MOJ,LAA,29/05/2019,Lower Crime,LEGAL AID FUND,NORTON PESKETT SOLICITORS,1718003:152489744,"27,992.00",Legal Aid Lower Crime
MOJ,LAA,29/05/2019,Lower Crime,LEGAL AID FUND,OBW PERERA LTD,1716179:152489313,"29,000.00",Legal Aid Lower Crime
MOJ,LAA,29/05/2019,Lower Crime,LEGAL AID FUND,OLD BAILEY SOLICITORS LTD,1717713:152490297,"36,454.00",Legal Aid Lower Crime
MOJ,LAA,29/05/2019,Higher Crime,LEGAL AID FUND,OLLIERS SOLICITORS LTD,1716264:152440569,"73,585.29",Legal Aid Higher Crime
MOJ,LAA,29/05/2019,Lower Crime,LEGAL AID FUND,OLLIERS SOLICITORS LTD,1716264:152490031,"25,597.00",Legal Aid Lower Crime
MOJ,LAA,29/05/2019,Lower Crime,LEGAL AID FUND,ONE LEGAL SERVICES LTD,1718559:152490612,"47,810.00",Legal Aid Lower Crime
MOJ,LAA,29/05/2019,Lower Crime,LEGAL AID FUND,ONE LEGAL SERVICES LTD,1718560:152490611,"29,390.00",Legal Aid Lower Crime
MOJ,LAA,29/05/2019,Higher Crime,LEGAL AID FUND,O'NEILL WRIGHT & NASH,1717717:152449259,"45,394.71",Legal Aid Higher Crime
MOJ,LAA,29/05/2019,Lower Crime,LEGAL AID FUND,O'NEILL WRIGHT & NASH,1717717:152490248,"29,102.00",Legal Aid Lower Crime
MOJ,LAA,29/05/2019,Lower Crime,LEGAL AID FUND,ORACLE SOLICITORS & CONSULTANTS LTD,1716213:152489857,"49,016.00",Legal Aid Lower Crime
MOJ,LAA,29/05/2019,Legal Help,LEGAL AID FUND,OSBORNES SOLICITORS LLP,1716664:152488255,"39,300.00",Legal Aid Legal Help
MOJ,LAA,29/05/2019,Lower Crime,LEGAL AID FUND,OSLERS SOLICITORS,1716065:152489750,"42,270.00",Legal Aid Lower Crime
MOJ,LAA,29/05/2019,Lower Crime,LEGAL AID FUND,OWEN NASH & CO,1716568:152489560,"25,000.00",Legal Aid Lower Crime
MOJ,LAA,29/05/2019,Legal Help,LEGAL AID FUND,OXFORD LAW GROUP,1719662:152488337,"27,700.00",Legal Aid Legal Help
MOJ,LAA,29/05/2019,Higher Crime,LEGAL AID FUND,PANESAR & CO SOLICITORS,1717957:152450649,"78,413.21",Legal Aid Higher Crime
MOJ,LAA,29/05/2019,Lower Crime,LEGAL AID FUND,PANESAR & CO SOLICITORS,1717957:152489732,"28,711.00",Legal Aid Lower Crime
MOJ,LAA,29/05/2019,Legal Help,LEGAL AID FUND,PARAGON LAW LTD,1716163:152488323,"50,000.00",Legal Aid Legal Help
MOJ,LAA,29/05/2019,Lower Crime,LEGAL AID FUND,PARDOES SOLICITORS LLP,1716044:152490376,"26,036.00",Legal Aid Lower Crime
MOJ,LAA,29/05/2019,Legal Help,LEGAL AID FUND,PARKER RHODES HICKMOTTS,1718084:152488535,"45,146.00",Legal Aid Legal Help
MOJ,LAA,29/05/2019,Legal Help,LEGAL AID FUND,PARKER RHODES HICKMOTTS,1717117:152489042,"34,344.00",Legal Aid Legal Help
MOJ,LAA,29/05/2019,Higher Crime,LEGAL AID FUND,PAUL R KELEHER QC,1717613:152440124,"32,580.00",Legal Aid Higher Crime
MOJ,LAA,29/05/2019,Legal Help,LEGAL AID FUND,PETER EDWARDS LAW LTD,1716226:152488249,"41,200.00",Legal Aid Legal Help
MOJ,LAA,29/05/2019,Higher Crime,LEGAL AID FUND,POTTER DERBY LTD,1718187:152469969,"26,486.26",Legal Aid Higher Crime
MOJ,LAA,29/05/2019,Lower Crime,LEGAL AID FUND,POWELL SPENCER AND PARTNERS,1720054:152489327,"36,900.00",Legal Aid Lower Crime
MOJ,LAA,29/05/2019,Lower Crime,LEGAL AID FUND,PURCELL PARKER LTD,1718068:152489552,"90,000.00",Legal Aid Lower Crime
MOJ,LAA,29/05/2019,Lower Crime,LEGAL AID FUND,PURE LAW CRIMINAL DEFENCE,1715141:152490516,"52,635.00",Legal Aid Lower Crime
MOJ,LAA,29/05/2019,Lower Crime,LEGAL AID FUND,QAMAR SOLICITORS LLP,1719783:152489973,"30,332.00",Legal Aid Lower Crime
MOJ,LAA,29/05/2019,Lower Crime,LEGAL AID FUND,QUALITYSOLICITORS KNIGHT POLSON,1716923:152489595,"28,800.00",Legal Aid Lower Crime
MOJ,LAA,29/05/2019,Civil Representation,LEGAL AID FUND,RAMSDENS SOLICITORS LLP,1717126:3000002651230007,"25,312.44",Legal Aid Civil Representation
MOJ,LAA,29/05/2019,Higher Crime,LEGAL AID FUND,REBECCA TROWLER,1717368:152465111,"86,840.00",Legal Aid Higher Crime
MOJ,LAA,29/05/2019,Lower Crime,LEGAL AID FUND,REECE THOMAS WATSON LTD,1718730:152490466,"49,075.00",Legal Aid Lower Crime
MOJ,LAA,29/05/2019,Lower Crime,LEGAL AID FUND,REEDS SOLICITORS LTD,1715080:152490675,"60,427.00",Legal Aid Lower Crime
MOJ,LAA,29/05/2019,Lower Crime,LEGAL AID FUND,REEDS SOLICITORS LTD,1718051:152490119,"56,862.00",Legal Aid Lower Crime
MOJ,LAA,29/05/2019,Lower Crime,LEGAL AID FUND,REEDS SOLICITORS LTD,1715076:152490679,"51,971.00",Legal Aid Lower Crime
MOJ,LAA,29/05/2019,Lower Crime,LEGAL AID FUND,REEDS SOLICITORS LTD,1718585:152490501,"27,506.00",Legal Aid Lower Crime
MOJ,LAA,29/05/2019,Lower Crime,LEGAL AID FUND,REEDS SOLICITORS LTD,1715074:152490681,"26,496.00",Legal Aid Lower Crime
MOJ,LAA,29/05/2019,Lower Crime,LEGAL AID FUND,RENSHAW DERRICK & CO,1718284:152490126,"36,635.00",Legal Aid Lower Crime
MOJ,LAA,29/05/2019,Civil Representation,LEGAL AID FUND,RICHARD REED SOLICITORS,1716438:3000002073870010,"26,183.89",Legal Aid Civil Representation
MOJ,LAA,29/05/2019,Higher Crime,LEGAL AID FUND,RICHARD T KEOGH,1715697:152449436,"28,053.60",Legal Aid Higher Crime
MOJ,LAA,29/05/2019,Lower Crime,LEGAL AID FUND,RILEY HAYES & CO,1718069:152489570,"32,000.00",Legal Aid Lower Crime
MOJ,LAA,29/05/2019,Lower Crime,LEGAL AID FUND,RMNJ SOLICITORS ***,1718044:152489886,"71,935.00",Legal Aid Lower Crime
MOJ,LAA,29/05/2019,Legal Help,LEGAL AID FUND,RMNJ SOLICITORS ***,1718044:152488574,"25,031.00",Legal Aid Legal Help
MOJ,LAA,29/05/2019,Lower Crime,LEGAL AID FUND,ROBERT LIZAR,1718267:152490067,"50,876.00",Legal Aid Lower Crime
MOJ,LAA,29/05/2019,Lower Crime,LEGAL AID FUND,ROBERTSON'S SOLICITORS,1719850:152489422,"36,300.00",Legal Aid Lower Crime
MOJ,LAA,29/05/2019,Legal Help,LEGAL AID FUND,ROEBUCKS SOLICITORS,1719900:152488679,"28,428.00",Legal Aid Legal Help
MOJ,LAA,29/05/2019,Lower Crime,LEGAL AID FUND,ROSS SOLICITORS LTD,1720017:152489529,"29,000.00",Legal Aid Lower Crime
MOJ,LAA,29/05/2019,Lower Crime,LEGAL AID FUND,ROWE SPARKES SOLICITORS LTD,1717863:152489503,"35,000.00",Legal Aid Lower Crime
MOJ,LAA,29/05/2019,Lower Crime,LEGAL AID FUND,ROY FOREMAN & CO SOLICITORS,1719756:152489430,"25,800.00",Legal Aid Lower Crime
MOJ,LAA,29/05/2019,Lower Crime,LEGAL AID FUND,S A LAW CHAMBERS SOLICITORS,1717916:152489321,"30,000.00",Legal Aid Lower Crime
MOJ,LAA,29/05/2019,Higher Crime,LEGAL AID FUND,SAHOTA & SAHOTA SOLICITORS,1718740:152459352,"56,128.68",Legal Aid Higher Crime
MOJ,LAA,29/05/2019,Civil Representation,LEGAL AID FUND,SAMANTHA M REDDINGTON,1718682:3000003900430016,"28,092.42",Legal Aid Civil Representation
MOJ,LAA,29/05/2019,Lower Crime,LEGAL AID FUND,SANSBURY DOUGLAS,1716114:152489576,"57,500.00",Legal Aid Lower Crime
MOJ,LAA,29/05/2019,Civil Representation,LEGAL AID FUND,SARA A RUDMAN,1719096:3000002083060020,"37,065.60",Legal Aid Civil Representation
MOJ,LAA,29/05/2019,Civil Representation,LEGAL AID FUND,SARA A RUDMAN,1719096:3000003058250012,"25,056.00",Legal Aid Civil Representation
MOJ,LAA,29/05/2019,Civil Representation,LEGAL AID FUND,SARA M LEWIS,1717349:3000003714890026,"30,672.00",Legal Aid Civil Representation
MOJ,LAA,29/05/2019,Higher Crime,LEGAL AID FUND,SHAFI SOLICITORS LLP,1717220:152459298,"44,056.20",Legal Aid Higher Crime
MOJ,LAA,29/05/2019,Higher Crime,LEGAL AID FUND,SHEARMAN BOWEN & CO,1719744:152450681,"105,857.75",Legal Aid Higher Crime
MOJ,LAA,29/05/2019,Higher Crime,LEGAL AID FUND,SHEARMAN BOWEN & CO,1719744:152449961,"89,975.11",Legal Aid Higher Crime
MOJ,LAA,29/05/2019,Lower Crime,LEGAL AID FUND,SHELLEY & CO,1718063:152489763,"37,836.00",Legal Aid Lower Crime
MOJ,LAA,29/05/2019,Higher Crime,LEGAL AID FUND,SIMPSON HEALD PEARSON,1718073:152450598,"29,386.45",Legal Aid Higher Crime
MOJ,LAA,29/05/2019,Lower Crime,LEGAL AID FUND,SMITH PARTNERSHIP,1719597:152489294,"53,400.00",Legal Aid Lower Crime
MOJ,LAA,29/05/2019,Lower Crime,LEGAL AID FUND,SMITH PARTNERSHIP,1719595:152489295,"27,600.00",Legal Aid Lower Crime
MOJ,LAA,29/05/2019,Higher Crime,LEGAL AID FUND,SOHEIL KHAN,1715370:152468752,"29,520.00",Legal Aid Higher Crime
MOJ,LAA,29/05/2019,Lower Crime,LEGAL AID FUND,SONN MACMILLAN WALKER LTD,1716625:152489318,"63,800.00",Legal Aid Lower Crime
MOJ,LAA,29/05/2019,Lower Crime,LEGAL AID FUND,SOUTHERNS SOLICITORS LTD,1716473:152490040,"31,918.00",Legal Aid Lower Crime
MOJ,LAA,29/05/2019,Legal Help,LEGAL AID FUND,SOUTHERNS SOLICITORS LTD,1716473:152488680,"26,918.00",Legal Aid Legal Help
MOJ,LAA,29/05/2019,Legal Help,LEGAL AID FUND,SOUTHWARK LAW CENTRE,1716280:152488842,"25,949.00",Legal Aid Legal Help
MOJ,LAA,29/05/2019,Legal Help,LEGAL AID FUND,STAFFORDSHIRE NORTH & STOKE-ON-TRENT-CAB,1717860:152488830,"31,152.00",Legal Aid Legal Help
MOJ,LAA,29/05/2019,Civil Representation,LEGAL AID FUND,STEPHEN C COTTLE,1717080:152454769,"35,546.72",Legal Aid Civil Representation
MOJ,LAA,29/05/2019,Civil Representation,LEGAL AID FUND,STEPHEN C COTTLE,1717080:152455017,"-34,200.00",Legal Aid Civil Representation
MOJ,LAA,29/05/2019,Lower Crime,LEGAL AID FUND,STEPHEN RIMMER LLP,1718078:152489486,"26,000.00",Legal Aid Lower Crime
MOJ,LAA,29/05/2019,Higher Crime,LEGAL AID FUND,STEVEN YOUNG & CO INC ROWBIS,1717970:152469680,"107,970.13",Legal Aid Higher Crime
MOJ,LAA,29/05/2019,Lower Crime,LEGAL AID FUND,STEVEN YOUNG & CO INC ROWBIS,1717970:152490154,"25,192.00",Legal Aid Lower Crime
MOJ,LAA,29/05/2019,Lower Crime,LEGAL AID FUND,STEVENS SOLICITORS,1719933:152489542,"59,000.00",Legal Aid Lower Crime
MOJ,LAA,29/05/2019,Lower Crime,LEGAL AID FUND,STEVENS SOLICITORS,1719932:152489543,"50,800.00",Legal Aid Lower Crime
MOJ,LAA,29/05/2019,Higher Crime,LEGAL AID FUND,STEVENS SOLICITORS,1719932:152468840,"42,319.96",Legal Aid Higher Crime
MOJ,LAA,29/05/2019,Higher Crime,LEGAL AID FUND,STUART MILLER SOLICITORS LTD,1716465:152459300,"102,916.49",Legal Aid Higher Crime
MOJ,LAA,29/05/2019,Lower Crime,LEGAL AID FUND,STUART MILLER SOLICITORS LTD,1716465:152489846,"76,464.00",Legal Aid Lower Crime
MOJ,LAA,29/05/2019,Higher Crime,LEGAL AID FUND,STUART MILLER SOLICITORS LTD,1716465:152449570,"60,371.10",Legal Aid Higher Crime
MOJ,LAA,29/05/2019,Legal Help,LEGAL AID FUND,SUTOVIC & HARTIGAN,1718297:152488269,"38,000.00",Legal Aid Legal Help
MOJ,LAA,29/05/2019,Higher Crime,LEGAL AID FUND,SVS SOLICITORS,1719577:152440786,"89,975.11",Legal Aid Higher Crime
MOJ,LAA,29/05/2019,Lower Crime,LEGAL AID FUND,SWAIN & CO SOLICITORS,1717971:152489501,"129,700.00",Legal Aid Lower Crime
MOJ,LAA,29/05/2019,Legal Help,LEGAL AID FUND,SWAIN & CO SOLICITORS,1717972:152488330,"30,000.00",Legal Aid Legal Help
MOJ,LAA,29/05/2019,Legal Help,LEGAL AID FUND,SWITALSKI'S SOLICITORS LTD,1718092:152488550,"39,806.00",Legal Aid Legal Help
MOJ,LAA,29/05/2019,Lower Crime,LEGAL AID FUND,T S LAW LTD,1719728:152489353,"25,000.00",Legal Aid Lower Crime
MOJ,LAA,29/05/2019,Legal Help,LEGAL AID FUND,T V EDWARDS LLP,1719964:152488254,"64,900.00",Legal Aid Legal Help
MOJ,LAA,29/05/2019,Lower Crime,LEGAL AID FUND,T V EDWARDS LLP,1719964:152489351,"58,000.00",Legal Aid Lower Crime
MOJ,LAA,29/05/2019,Lower Crime,LEGAL AID FUND,TAIT FARRIER GRAHAM,1716427:152489404,"32,700.00",Legal Aid Lower Crime
MOJ,LAA,29/05/2019,Lower Crime,LEGAL AID FUND,TANG BENTLEY & JACKSON LIMITED,1716867:152490534,"28,019.00",Legal Aid Lower Crime
MOJ,LAA,29/05/2019,Legal Help,LEGAL AID FUND,TAYLOR HALDANE BARLEX LLP,1719009:152489134,"36,229.00",Legal Aid Legal Help
MOJ,LAA,29/05/2019,Lower Crime,LEGAL AID FUND,TAYLOR HALDANE BARLEX LLP,1716260:152489755,"34,765.00",Legal Aid Lower Crime
MOJ,LAA,29/05/2019,Lower Crime,LEGAL AID FUND,TAYLOR HALDANE BARLEX LLP,1718674:152490495,"30,603.00",Legal Aid Lower Crime
MOJ,LAA,29/05/2019,Lower Crime,LEGAL AID FUND,TAYLOR STREET SOLICITORS LLP,1716481:152489491,"29,000.00",Legal Aid Lower Crime
MOJ,LAA,29/05/2019,Lower Crime,LEGAL AID FUND,TEESSIDE LAW LTD,1715298:152490413,"29,295.00",Legal Aid Lower Crime
MOJ,LAA,29/05/2019,Civil Representation,LEGAL AID FUND,TEMPERLEY TAYLOR LLP,1715537:3000001982920014,"43,101.59",Legal Aid Civil Representation
MOJ,LAA,29/05/2019,Legal Help,LEGAL AID FUND,THALIWAL & VEJA SOLICITORS,1719621:152488743,"33,925.00",Legal Aid Legal Help
MOJ,LAA,29/05/2019,Lower Crime,LEGAL AID FUND,THE JOHNSON PARTNERSHIP,1716340:152489286,"180,000.00",Legal Aid Lower Crime
MOJ,LAA,29/05/2019,Higher Crime,LEGAL AID FUND,THE JOHNSON PARTNERSHIP,1716340:152469603,"129,088.88",Legal Aid Higher Crime
MOJ,LAA,29/05/2019,Higher Crime,LEGAL AID FUND,THE JOHNSON PARTNERSHIP,1716340:152459754,"105,857.75",Legal Aid Higher Crime
MOJ,LAA,29/05/2019,Higher Crime,LEGAL AID FUND,THE JOHNSON PARTNERSHIP,1716340:152439899,"89,975.11",Legal Aid Higher Crime
MOJ,LAA,29/05/2019,Lower Crime,LEGAL AID FUND,THE JOHNSON PARTNERSHIP,1716112:152489578,"42,000.00",Legal Aid Lower Crime
MOJ,LAA,29/05/2019,Lower Crime,LEGAL AID FUND,THE JOHNSON PARTNERSHIP,1716338:152489288,"42,000.00",Legal Aid Lower Crime
MOJ,LAA,29/05/2019,Lower Crime,LEGAL AID FUND,THE JOHNSON PARTNERSHIP,1716339:152489287,"37,500.00",Legal Aid Lower Crime
MOJ,LAA,29/05/2019,Legal Help,LEGAL AID FUND,THE MENTAL HEALTH PRACTICE,1717917:152488423,"53,429.00",Legal Aid Legal Help
MOJ,LAA,29/05/2019,Lower Crime,LEGAL AID FUND,THE PURKISS PRACTICE,1716177:152489494,"25,000.00",Legal Aid Lower Crime
MOJ,LAA,29/05/2019,Lower Crime,LEGAL AID FUND,THOMAS BOYD WHYTE,1716674:152489803,"27,611.00",Legal Aid Lower Crime
MOJ,LAA,29/05/2019,Legal Help,LEGAL AID FUND,THOMPSON & CO SOLICITORS LTD,1719921:152488257,"38,700.00",Legal Aid Legal Help
MOJ,LAA,29/05/2019,Lower Crime,LEGAL AID FUND,TILLY BAILEY & IRVINE LLP,1718130:152489400,"28,100.00",Legal Aid Lower Crime
MOJ,LAA,29/05/2019,Higher Crime,LEGAL AID FUND,TRANTERS SOLICITORS LTD,1718075:152440987,"77,404.46",Legal Aid Higher Crime
MOJ,LAA,29/05/2019,Legal Help,LEGAL AID FUND,TRP SOLICITORS LTD,1719545:152488383,"35,442.00",Legal Aid Legal Help
MOJ,LAA,29/05/2019,Lower Crime,LEGAL AID FUND,TUCKERS SOLICITORS LLP,1716463:152489361,"140,000.00",Legal Aid Lower Crime
MOJ,LAA,29/05/2019,Lower Crime,LEGAL AID FUND,TUCKERS SOLICITORS LLP,1716462:152489472,"105,000.00",Legal Aid Lower Crime
MOJ,LAA,29/05/2019,Lower Crime,LEGAL AID FUND,TUCKERS SOLICITORS LLP,1715350:152489589,"46,300.00",Legal Aid Lower Crime
MOJ,LAA,29/05/2019,Lower Crime,LEGAL AID FUND,TUCKERS SOLICITORS LLP,1716066:152489365,"42,000.00",Legal Aid Lower Crime
MOJ,LAA,29/05/2019,Lower Crime,LEGAL AID FUND,TUCKERS SOLICITORS LLP,1716887:152490498,"31,526.00",Legal Aid Lower Crime
MOJ,LAA,29/05/2019,Lower Crime,LEGAL AID FUND,TUCKERS SOLICITORS LLP,1716464:152489553,"30,000.00",Legal Aid Lower Crime
MOJ,LAA,29/05/2019,Legal Help,LEGAL AID FUND,TURPIN & MILLER LLP,1717921:152488797,"29,787.00",Legal Aid Legal Help
MOJ,LAA,29/05/2019,Civil Representation,LEGAL AID FUND,TYRER ROXBURGH SOLICITORS LLP,1719969:3000003811050010,"26,628.64",Legal Aid Civil Representation
MOJ,LAA,29/05/2019,Civil Representation,LEGAL AID FUND,TYRER ROXBURGH SOLICITORS LLP,1719969:3000002808320010,"26,130.32",Legal Aid Civil Representation
MOJ,LAA,29/05/2019,Lower Crime,LEGAL AID FUND,USMANI KING LTD,1717920:152489726,"49,645.00",Legal Aid Lower Crime
MOJ,LAA,29/05/2019,Lower Crime,LEGAL AID FUND,VCW LAW LTD,1718113:152489384,"29,100.00",Legal Aid Lower Crime
MOJ,LAA,29/05/2019,Lower Crime,LEGAL AID FUND,VHS FLETCHERS,1716320:152489289,"43,200.00",Legal Aid Lower Crime
MOJ,LAA,29/05/2019,Lower Crime,LEGAL AID FUND,VHS FLETCHERS,1718713:152489593,"29,100.00",Legal Aid Lower Crime
MOJ,LAA,29/05/2019,Legal Help,LEGAL AID FUND,VIRGO SOLICITORS LTD,1717093:152489055,"37,379.00",Legal Aid Legal Help
MOJ,LAA,29/05/2019,Lower Crime,LEGAL AID FUND,VYMAN SOLICITORS LTD,1719650:152490072,"30,603.00",Legal Aid Lower Crime
MOJ,LAA,29/05/2019,Civil Representation,LEGAL AID FUND,W M B LAW LTD,1719693:3000002620280022,"27,325.13",Legal Aid Civil Representation
MOJ,LAA,29/05/2019,Lower Crime,LEGAL AID FUND,WAINWRIGHT & CUMMINS LLP,1716155:152489371,"33,000.00",Legal Aid Lower Crime
MOJ,LAA,29/05/2019,Lower Crime,LEGAL AID FUND,WANNOPS LLP,1717786:152490375,"42,004.00",Legal Aid Lower Crime
MOJ,LAA,29/05/2019,Civil Representation,LEGAL AID FUND,WATKINS & GUNN,1716565:3000002483880017,"29,671.28",Legal Aid Civil Representation
MOJ,LAA,29/05/2019,Lower Crime,LEGAL AID FUND,WATSON WOODHOUSE LTD,1716457:152489385,"50,700.00",Legal Aid Lower Crime
MOJ,LAA,29/05/2019,Lower Crime,LEGAL AID FUND,WELLS BURCOMBE LLP,1716072:152489720,"85,066.00",Legal Aid Lower Crime
MOJ,LAA,29/05/2019,Lower Crime,LEGAL AID FUND,WELLS BURCOMBE LLP,1719457:152490309,"58,060.00",Legal Aid Lower Crime
MOJ,LAA,29/05/2019,Lower Crime,LEGAL AID FUND,WESSEX SOLICITORS CHAMBERS,1716036:152489574,"59,000.00",Legal Aid Lower Crime
MOJ,LAA,29/05/2019,Lower Crime,LEGAL AID FUND,WHELDON LAW,1718135:152489302,"27,000.00",Legal Aid Lower Crime
MOJ,LAA,29/05/2019,Civil Representation,LEGAL AID FUND,WHISKERS LLP SOLICITORS & NOTARIES,1716303:3000002446540009,"39,424.46",Legal Aid Civil Representation
MOJ,LAA,29/05/2019,Legal Help,LEGAL AID FUND,WICK & CO,1718349:152488607,"27,150.00",Legal Aid Legal Help
MOJ,LAA,29/05/2019,Lower Crime,LEGAL AID FUND,WILLIAMSONS SOLICITORS LTD,1716414:152489433,"41,600.00",Legal Aid Lower Crime
MOJ,LAA,29/05/2019,Legal Help,LEGAL AID FUND,WILSON SOLICITORS LLP,1719766:152488582,"72,446.00",Legal Aid Legal Help
MOJ,LAA,29/05/2019,Legal Help,LEGAL AID FUND,WILSON SOLICITORS LLP,1718756:152489056,"44,970.00",Legal Aid Legal Help
MOJ,LAA,29/05/2019,Higher Crime,LEGAL AID FUND,WISEMAN LEE LLP,1718198:152460522,"35,817.79",Legal Aid Higher Crime
MOJ,LAA,29/05/2019,Legal Help,LEGAL AID FUND,WOLTON & CO,1719683:152488403,"28,276.00",Legal Aid Legal Help
MOJ,LAA,31/05/2019,Civil Representation,LEGAL AID FUND,ELIZABETH A GUNTHER,1720305:150390418,"-40,188.00",Legal Aid Civil Representation
MOJ,LAA,31/05/2019,Civil Representation,LEGAL AID FUND,JULIAN D MATTHEWS,1720311:151686718,"-25,900.02",Legal Aid Civil Representation
